Organisation Code,Organisation Label,Effective Date,Organisational Unit,Service Division Label,Category Internal Name,Purpose,Detailed Expenditure Code,Payment Date,Transaction Number,Irrecoverable VAT Amount,Amount,Capital Or Revenue,Benificiary Name,Procurement Card
Http://opendatacommunities.org/id/metropolitan-district-council/leeds,Leeds City Council,31/05/2018,Resources and Housing,Leeds Building Services,Supplies and Services,Operational Materials,205,03/05/2018,1805-00001,0.00,89.70,R,A & A Electrical Distributors Ltd,No
Http://opendatacommunities.org/id/metropolitan-district-council/leeds,Leeds City Council,31/05/2018,Resources and Housing,Leeds Building Services,Supplies and Services,Operational Materials,205,03/05/2018,1805-00002,0.00,43.49,R,A Andrews & Sons (Marbles & Tiles),No
Http://opendatacommunities.org/id/metropolitan-district-council/leeds,Leeds City Council,31/05/2018,Resources and Housing,Leeds Building Services,Supplies and Services,Operational Materials,205,03/05/2018,1805-00003,0.00,16.93,R,A Andrews & Sons (Marbles & Tiles),No
Http://opendatacommunities.org/id/metropolitan-district-council/leeds,Leeds City Council,31/05/2018,Resources and Housing,Leeds Building Services,Supplies and Services,Operational Materials,205,04/05/2018,1805-00004,0.00,10.80,R,A Andrews & Sons (Marbles & Tiles),No
Http://opendatacommunities.org/id/metropolitan-district-council/leeds,Leeds City Council,31/05/2018,Resources and Housing,Leeds Building Services,Supplies and Services,Operational Materials,205,22/05/2018,1805-00005,0.00,14.53,R,A Andrews & Sons (Marbles & Tiles),No
Http://opendatacommunities.org/id/metropolitan-district-council/leeds,Leeds City Council,31/05/2018,City Development,Highways,Capital,Construction,3,23/05/2018,1805-00006,0.00,177540.73,C,A E Yates Ltd,No
Http://opendatacommunities.org/id/metropolitan-district-council/leeds,Leeds City Council,31/05/2018,Resources and Housing,Commercial Services  ,Supplies and Services,Clothing & Uniforms,241,19/04/2018,1805-00007,0.00,86.75,R,A F Blakemore & Son Ltd,Yes
Http://opendatacommunities.org/id/metropolitan-district-council/leeds,Leeds City Council,31/05/2018,City Development,Libraries  Arts & Heritage,Supplies and Services,Other Hired And Contracted Services,265,25/05/2018,1805-00008,0.00,307.50,R,A J Carter Organ Builder Ltd,No
Http://opendatacommunities.org/id/metropolitan-district-council/leeds,Leeds City Council,31/05/2018,Resources and Housing,Leeds Building Services,Supplies and Services,Operational Materials,205,01/05/2018,1805-00009,0.00,48.00,R,A J H  Pump Supply & Repair Ltd,No
Http://opendatacommunities.org/id/metropolitan-district-council/leeds,Leeds City Council,31/05/2018,Resources and Housing,Leeds Building Services,Supplies and Services,Operational Materials,205,01/05/2018,1805-00010,0.00,145.00,R,A J H  Pump Supply & Repair Ltd,No
Http://opendatacommunities.org/id/metropolitan-district-council/leeds,Leeds City Council,31/05/2018,Resources and Housing,Leeds Building Services,Supplies and Services,Operational Materials,205,01/05/2018,1805-00011,0.00,17.80,R,A J H  Pump Supply & Repair Ltd,No
Http://opendatacommunities.org/id/metropolitan-district-council/leeds,Leeds City Council,31/05/2018,Resources and Housing,Leeds Building Services,Supplies and Services,Operational Materials,205,01/05/2018,1805-00012,0.00,455.00,R,A J H  Pump Supply & Repair Ltd,No
Http://opendatacommunities.org/id/metropolitan-district-council/leeds,Leeds City Council,31/05/2018,Resources and Housing,Leeds Building Services,Supplies and Services,Operational Materials,205,01/05/2018,1805-00013,0.00,190.37,R,A J H  Pump Supply & Repair Ltd,No
Http://opendatacommunities.org/id/metropolitan-district-council/leeds,Leeds City Council,31/05/2018,Resources and Housing,Leeds Building Services,Supplies and Services,Operational Materials,205,01/05/2018,1805-00014,0.00,508.20,R,A J H  Pump Supply & Repair Ltd,No
Http://opendatacommunities.org/id/metropolitan-district-council/leeds,Leeds City Council,31/05/2018,Resources and Housing,Leeds Building Services,Supplies and Services,Operational Materials,205,01/05/2018,1805-00015,0.00,178.82,R,A J H  Pump Supply & Repair Ltd,No
Http://opendatacommunities.org/id/metropolitan-district-council/leeds,Leeds City Council,31/05/2018,Resources and Housing,Leeds Building Services,Supplies and Services,Operational Materials,205,01/05/2018,1805-00016,0.00,20.45,R,A J H  Pump Supply & Repair Ltd,No
Http://opendatacommunities.org/id/metropolitan-district-council/leeds,Leeds City Council,31/05/2018,Resources and Housing,Leeds Building Services,Supplies and Services,Operational Materials,205,01/05/2018,1805-00017,0.00,35.44,R,A J H  Pump Supply & Repair Ltd,No
Http://opendatacommunities.org/id/metropolitan-district-council/leeds,Leeds City Council,31/05/2018,Resources and Housing,Leeds Building Services,Supplies and Services,Operational Materials,205,01/05/2018,1805-00018,0.00,32.50,R,A J H  Pump Supply & Repair Ltd,No
Http://opendatacommunities.org/id/metropolitan-district-council/leeds,Leeds City Council,31/05/2018,Resources and Housing,Leeds Building Services,Supplies and Services,Operational Materials,205,01/05/2018,1805-00019,0.00,197.01,R,A J H  Pump Supply & Repair Ltd,No
Http://opendatacommunities.org/id/metropolitan-district-council/leeds,Leeds City Council,31/05/2018,Resources and Housing,Leeds Building Services,Supplies and Services,Operational Materials,205,01/05/2018,1805-00020,0.00,79.70,R,A J H  Pump Supply & Repair Ltd,No
Http://opendatacommunities.org/id/metropolitan-district-council/leeds,Leeds City Council,31/05/2018,Resources and Housing,Leeds Building Services,Supplies and Services,Operational Materials,205,01/05/2018,1805-00021,0.00,110.90,R,A J H  Pump Supply & Repair Ltd,No
Http://opendatacommunities.org/id/metropolitan-district-council/leeds,Leeds City Council,31/05/2018,Resources and Housing,Leeds Building Services,Supplies and Services,Operational Materials,205,01/05/2018,1805-00022,0.00,35.00,R,A J H  Pump Supply & Repair Ltd,No
Http://opendatacommunities.org/id/metropolitan-district-council/leeds,Leeds City Council,31/05/2018,Resources and Housing,Leeds Building Services,Supplies and Services,Operational Materials,205,01/05/2018,1805-00023,0.00,37.58,R,A J H  Pump Supply & Repair Ltd,No
Http://opendatacommunities.org/id/metropolitan-district-council/leeds,Leeds City Council,31/05/2018,Resources and Housing,Leeds Building Services,Supplies and Services,Operational Materials,205,03/05/2018,1805-00024,0.00,528.75,R,A J H  Pump Supply & Repair Ltd,No
Http://opendatacommunities.org/id/metropolitan-district-council/leeds,Leeds City Council,31/05/2018,Resources and Housing,Leeds Building Services,Supplies and Services,Operational Materials,205,03/05/2018,1805-00025,0.00,284.00,R,A J H  Pump Supply & Repair Ltd,No
Http://opendatacommunities.org/id/metropolitan-district-council/leeds,Leeds City Council,31/05/2018,Resources and Housing,Leeds Building Services,Supplies and Services,Operational Materials,205,03/05/2018,1805-00026,0.00,110.00,R,A J H  Pump Supply & Repair Ltd,No
Http://opendatacommunities.org/id/metropolitan-district-council/leeds,Leeds City Council,31/05/2018,Resources and Housing,Leeds Building Services,Supplies and Services,Operational Materials,205,03/05/2018,1805-00027,0.00,2650.00,R,A J H  Pump Supply & Repair Ltd,No
Http://opendatacommunities.org/id/metropolitan-district-council/leeds,Leeds City Council,31/05/2018,Resources and Housing,Leeds Building Services,Supplies and Services,Operational Materials,205,03/05/2018,1805-00028,0.00,1610.00,R,A J H  Pump Supply & Repair Ltd,No
Http://opendatacommunities.org/id/metropolitan-district-council/leeds,Leeds City Council,31/05/2018,Resources and Housing,Leeds Building Services,Supplies and Services,Operational Materials,205,03/05/2018,1805-00029,0.00,1548.00,R,A J H  Pump Supply & Repair Ltd,No
Http://opendatacommunities.org/id/metropolitan-district-council/leeds,Leeds City Council,31/05/2018,Resources and Housing,Leeds Building Services,Supplies and Services,Operational Materials,205,04/05/2018,1805-00030,0.00,35.50,R,A J H  Pump Supply & Repair Ltd,No
Http://opendatacommunities.org/id/metropolitan-district-council/leeds,Leeds City Council,31/05/2018,Resources and Housing,Leeds Building Services,Supplies and Services,Operational Materials,205,04/05/2018,1805-00031,0.00,230.00,R,A J H  Pump Supply & Repair Ltd,No
Http://opendatacommunities.org/id/metropolitan-district-council/leeds,Leeds City Council,31/05/2018,Resources and Housing,Leeds Building Services,Supplies and Services,Operational Materials,205,04/05/2018,1805-00032,0.00,75.00,R,A J H  Pump Supply & Repair Ltd,No
Http://opendatacommunities.org/id/metropolitan-district-council/leeds,Leeds City Council,31/05/2018,Resources and Housing,Leeds Building Services,Supplies and Services,Operational Materials,205,04/05/2018,1805-00033,0.00,182.77,R,A J H  Pump Supply & Repair Ltd,No
Http://opendatacommunities.org/id/metropolitan-district-council/leeds,Leeds City Council,31/05/2018,Resources and Housing,Leeds Building Services,Supplies and Services,Operational Materials,205,04/05/2018,1805-00034,0.00,123.54,R,A J H  Pump Supply & Repair Ltd,No
Http://opendatacommunities.org/id/metropolitan-district-council/leeds,Leeds City Council,31/05/2018,Resources and Housing,Leeds Building Services,Supplies and Services,Operational Furniture And Equipment,203,04/05/2018,1805-00035,0.00,125.00,R,A J H  Pump Supply & Repair Ltd,No
Http://opendatacommunities.org/id/metropolitan-district-council/leeds,Leeds City Council,31/05/2018,Resources and Housing,Leeds Building Services,Supplies and Services,Operational Materials,205,04/05/2018,1805-00036,0.00,39.00,R,A J H  Pump Supply & Repair Ltd,No
Http://opendatacommunities.org/id/metropolitan-district-council/leeds,Leeds City Council,31/05/2018,Resources and Housing,Leeds Building Services,Supplies and Services,Operational Materials,205,04/05/2018,1805-00037,0.00,18.25,R,A J H  Pump Supply & Repair Ltd,No
Http://opendatacommunities.org/id/metropolitan-district-council/leeds,Leeds City Council,31/05/2018,Resources and Housing,Leeds Building Services,Supplies and Services,Operational Materials,205,04/05/2018,1805-00038,0.00,210.58,R,A J H  Pump Supply & Repair Ltd,No
Http://opendatacommunities.org/id/metropolitan-district-council/leeds,Leeds City Council,31/05/2018,Resources and Housing,Leeds Building Services,Supplies and Services,Operational Materials,205,04/05/2018,1805-00039,0.00,207.50,R,A J H  Pump Supply & Repair Ltd,No
Http://opendatacommunities.org/id/metropolitan-district-council/leeds,Leeds City Council,31/05/2018,Resources and Housing,Leeds Building Services,Supplies and Services,Operational Furniture And Equipment,203,04/05/2018,1805-00040,0.00,49.50,R,A J H  Pump Supply & Repair Ltd,No
Http://opendatacommunities.org/id/metropolitan-district-council/leeds,Leeds City Council,31/05/2018,Resources and Housing,Leeds Building Services,Supplies and Services,Operational Materials,205,04/05/2018,1805-00041,0.00,48.85,R,A J H  Pump Supply & Repair Ltd,No
Http://opendatacommunities.org/id/metropolitan-district-council/leeds,Leeds City Council,31/05/2018,Resources and Housing,Leeds Building Services,Supplies and Services,Operational Materials,205,04/05/2018,1805-00042,0.00,106.00,R,A J H  Pump Supply & Repair Ltd,No
Http://opendatacommunities.org/id/metropolitan-district-council/leeds,Leeds City Council,31/05/2018,Resources and Housing,Leeds Building Services,Supplies and Services,Operational Materials,205,04/05/2018,1805-00043,0.00,219.95,R,A J H  Pump Supply & Repair Ltd,No
Http://opendatacommunities.org/id/metropolitan-district-council/leeds,Leeds City Council,31/05/2018,Resources and Housing,Leeds Building Services,Supplies and Services,Operational Materials,205,04/05/2018,1805-00044,0.00,267.88,R,A J H  Pump Supply & Repair Ltd,No
Http://opendatacommunities.org/id/metropolitan-district-council/leeds,Leeds City Council,31/05/2018,Resources and Housing,Leeds Building Services,Supplies and Services,Operational Materials,205,04/05/2018,1805-00045,0.00,47.50,R,A J H  Pump Supply & Repair Ltd,No
Http://opendatacommunities.org/id/metropolitan-district-council/leeds,Leeds City Council,31/05/2018,Resources and Housing,Leeds Building Services,Supplies and Services,Operational Materials,205,09/05/2018,1805-00046,0.00,145.00,R,A J H  Pump Supply & Repair Ltd,No
Http://opendatacommunities.org/id/metropolitan-district-council/leeds,Leeds City Council,31/05/2018,Resources and Housing,Leeds Building Services,Supplies and Services,Operational Materials,205,09/05/2018,1805-00047,0.00,72.65,R,A J H  Pump Supply & Repair Ltd,No
Http://opendatacommunities.org/id/metropolitan-district-council/leeds,Leeds City Council,31/05/2018,Resources and Housing,Leeds Building Services,Supplies and Services,Operational Materials,205,14/05/2018,1805-00048,0.00,90.00,R,A J H  Pump Supply & Repair Ltd,No
Http://opendatacommunities.org/id/metropolitan-district-council/leeds,Leeds City Council,31/05/2018,Resources and Housing,Leeds Building Services,Supplies and Services,Operational Materials,205,14/05/2018,1805-00049,0.00,1213.00,R,A J H  Pump Supply & Repair Ltd,No
Http://opendatacommunities.org/id/metropolitan-district-council/leeds,Leeds City Council,31/05/2018,Resources and Housing,Leeds Building Services,Supplies and Services,Operational Materials,205,14/05/2018,1805-00050,0.00,2859.00,R,A J H  Pump Supply & Repair Ltd,No
Http://opendatacommunities.org/id/metropolitan-district-council/leeds,Leeds City Council,31/05/2018,Resources and Housing,Leeds Building Services,Supplies and Services,Operational Materials,205,14/05/2018,1805-00051,0.00,4286.00,R,A J H  Pump Supply & Repair Ltd,No
Http://opendatacommunities.org/id/metropolitan-district-council/leeds,Leeds City Council,31/05/2018,Resources and Housing,Leeds Building Services,Supplies and Services,Operational Materials,205,14/05/2018,1805-00052,0.00,316.82,R,A J H  Pump Supply & Repair Ltd,No
Http://opendatacommunities.org/id/metropolitan-district-council/leeds,Leeds City Council,31/05/2018,Resources and Housing,Leeds Building Services,Supplies and Services,Operational Materials,205,14/05/2018,1805-00053,0.00,275.00,R,A J H  Pump Supply & Repair Ltd,No
Http://opendatacommunities.org/id/metropolitan-district-council/leeds,Leeds City Council,31/05/2018,Resources and Housing,Leeds Building Services,Supplies and Services,Operational Materials,205,14/05/2018,1805-00054,0.00,68.00,R,A J H  Pump Supply & Repair Ltd,No
Http://opendatacommunities.org/id/metropolitan-district-council/leeds,Leeds City Council,31/05/2018,Resources and Housing,Leeds Building Services,Supplies and Services,Operational Materials,205,14/05/2018,1805-00055,0.00,21.00,R,A J H  Pump Supply & Repair Ltd,No
Http://opendatacommunities.org/id/metropolitan-district-council/leeds,Leeds City Council,31/05/2018,Resources and Housing,Leeds Building Services,Supplies and Services,Operational Materials,205,14/05/2018,1805-00056,0.00,92.44,R,A J H  Pump Supply & Repair Ltd,No
Http://opendatacommunities.org/id/metropolitan-district-council/leeds,Leeds City Council,31/05/2018,Resources and Housing,Leeds Building Services,Supplies and Services,Operational Materials,205,14/05/2018,1805-00057,0.00,235.84,R,A J H  Pump Supply & Repair Ltd,No
Http://opendatacommunities.org/id/metropolitan-district-council/leeds,Leeds City Council,31/05/2018,Resources and Housing,Leeds Building Services,Supplies and Services,Operational Materials,205,14/05/2018,1805-00058,0.00,32.45,R,A J H  Pump Supply & Repair Ltd,No
Http://opendatacommunities.org/id/metropolitan-district-council/leeds,Leeds City Council,31/05/2018,Resources and Housing,Leeds Building Services,Supplies and Services,Operational Materials,205,14/05/2018,1805-00059,0.00,116.23,R,A J H  Pump Supply & Repair Ltd,No
Http://opendatacommunities.org/id/metropolitan-district-council/leeds,Leeds City Council,31/05/2018,Resources and Housing,Leeds Building Services,Supplies and Services,Operational Materials,205,14/05/2018,1805-00060,0.00,591.80,R,A J H  Pump Supply & Repair Ltd,No
Http://opendatacommunities.org/id/metropolitan-district-council/leeds,Leeds City Council,31/05/2018,Resources and Housing,Leeds Building Services,Supplies and Services,Operational Materials,205,14/05/2018,1805-00061,0.00,11.45,R,A J H  Pump Supply & Repair Ltd,No
Http://opendatacommunities.org/id/metropolitan-district-council/leeds,Leeds City Council,31/05/2018,Resources and Housing,Leeds Building Services,Supplies and Services,Operational Materials,205,14/05/2018,1805-00062,0.00,99.00,R,A J H  Pump Supply & Repair Ltd,No
Http://opendatacommunities.org/id/metropolitan-district-council/leeds,Leeds City Council,31/05/2018,Resources and Housing,Leeds Building Services,Supplies and Services,Operational Materials,205,14/05/2018,1805-00063,0.00,114.50,R,A J H  Pump Supply & Repair Ltd,No
Http://opendatacommunities.org/id/metropolitan-district-council/leeds,Leeds City Council,31/05/2018,Resources and Housing,Leeds Building Services,Supplies and Services,Operational Furniture And Equipment,203,14/05/2018,1805-00064,0.00,125.00,R,A J H  Pump Supply & Repair Ltd,No
Http://opendatacommunities.org/id/metropolitan-district-council/leeds,Leeds City Council,31/05/2018,Resources and Housing,Leeds Building Services,Supplies and Services,Operational Materials,205,14/05/2018,1805-00065,0.00,220.01,R,A J H  Pump Supply & Repair Ltd,No
Http://opendatacommunities.org/id/metropolitan-district-council/leeds,Leeds City Council,31/05/2018,Resources and Housing,Leeds Building Services,Supplies and Services,Operational Materials,205,14/05/2018,1805-00066,0.00,35.70,R,A J H  Pump Supply & Repair Ltd,No
Http://opendatacommunities.org/id/metropolitan-district-council/leeds,Leeds City Council,31/05/2018,Resources and Housing,Leeds Building Services,Supplies and Services,Operational Materials,205,14/05/2018,1805-00067,0.00,41.56,R,A J H  Pump Supply & Repair Ltd,No
Http://opendatacommunities.org/id/metropolitan-district-council/leeds,Leeds City Council,31/05/2018,Resources and Housing,Leeds Building Services,Supplies and Services,Operational Materials,205,14/05/2018,1805-00068,0.00,22.45,R,A J H  Pump Supply & Repair Ltd,No
Http://opendatacommunities.org/id/metropolitan-district-council/leeds,Leeds City Council,31/05/2018,Resources and Housing,Leeds Building Services,Supplies and Services,Operational Materials,205,14/05/2018,1805-00069,0.00,547.02,R,A J H  Pump Supply & Repair Ltd,No
Http://opendatacommunities.org/id/metropolitan-district-council/leeds,Leeds City Council,31/05/2018,Resources and Housing,Leeds Building Services,Supplies and Services,Operational Materials,205,14/05/2018,1805-00070,0.00,61.38,R,A J H  Pump Supply & Repair Ltd,No
Http://opendatacommunities.org/id/metropolitan-district-council/leeds,Leeds City Council,31/05/2018,Resources and Housing,Leeds Building Services,Supplies and Services,Operational Materials,205,14/05/2018,1805-00071,0.00,4.50,R,A J H  Pump Supply & Repair Ltd,No
Http://opendatacommunities.org/id/metropolitan-district-council/leeds,Leeds City Council,31/05/2018,Resources and Housing,Leeds Building Services,Supplies and Services,Operational Materials,205,14/05/2018,1805-00072,0.00,61.25,R,A J H  Pump Supply & Repair Ltd,No
Http://opendatacommunities.org/id/metropolitan-district-council/leeds,Leeds City Council,31/05/2018,Resources and Housing,Leeds Building Services,Supplies and Services,Operational Materials,205,25/05/2018,1805-00073,0.00,62.15,R,A J H  Pump Supply & Repair Ltd,No
Http://opendatacommunities.org/id/metropolitan-district-council/leeds,Leeds City Council,31/05/2018,Resources and Housing,Leeds Building Services,Supplies and Services,Operational Materials,205,25/05/2018,1805-00074,0.00,50.81,R,A J H  Pump Supply & Repair Ltd,No
Http://opendatacommunities.org/id/metropolitan-district-council/leeds,Leeds City Council,31/05/2018,Resources and Housing,Leeds Building Services,Supplies and Services,Operational Materials,205,25/05/2018,1805-00075,0.00,28.00,R,A J H  Pump Supply & Repair Ltd,No
Http://opendatacommunities.org/id/metropolitan-district-council/leeds,Leeds City Council,31/05/2018,Resources and Housing,Leeds Building Services,Supplies and Services,Operational Materials,205,25/05/2018,1805-00076,0.00,162.00,R,A J H  Pump Supply & Repair Ltd,No
Http://opendatacommunities.org/id/metropolitan-district-council/leeds,Leeds City Council,31/05/2018,Resources and Housing,Leeds Building Services,Supplies and Services,Operational Materials,205,25/05/2018,1805-00077,0.00,145.00,R,A J H  Pump Supply & Repair Ltd,No
Http://opendatacommunities.org/id/metropolitan-district-council/leeds,Leeds City Council,31/05/2018,Resources and Housing,Leeds Building Services,Supplies and Services,Operational Materials,205,25/05/2018,1805-00078,0.00,990.00,R,A J H  Pump Supply & Repair Ltd,No
Http://opendatacommunities.org/id/metropolitan-district-council/leeds,Leeds City Council,31/05/2018,Resources and Housing,Leeds Building Services,Supplies and Services,Operational Materials,205,25/05/2018,1805-00079,0.00,191.35,R,A J H  Pump Supply & Repair Ltd,No
Http://opendatacommunities.org/id/metropolitan-district-council/leeds,Leeds City Council,31/05/2018,Resources and Housing,Leeds Building Services,Supplies and Services,Operational Materials,205,25/05/2018,1805-00080,0.00,1380.00,R,A J H  Pump Supply & Repair Ltd,No
Http://opendatacommunities.org/id/metropolitan-district-council/leeds,Leeds City Council,31/05/2018,Resources and Housing,Leeds Building Services,Supplies and Services,Operational Materials,205,25/05/2018,1805-00081,0.00,125.00,R,A J H  Pump Supply & Repair Ltd,No
Http://opendatacommunities.org/id/metropolitan-district-council/leeds,Leeds City Council,31/05/2018,Resources and Housing,Leeds Building Services,Supplies and Services,Operational Materials,205,25/05/2018,1805-00082,0.00,158.25,R,A J H  Pump Supply & Repair Ltd,No
Http://opendatacommunities.org/id/metropolitan-district-council/leeds,Leeds City Council,31/05/2018,Resources and Housing,Leeds Building Services,Supplies and Services,Operational Materials,205,25/05/2018,1805-00083,0.00,181.17,R,A J H  Pump Supply & Repair Ltd,No
Http://opendatacommunities.org/id/metropolitan-district-council/leeds,Leeds City Council,31/05/2018,Resources and Housing,Leeds Building Services,Supplies and Services,Operational Materials,205,25/05/2018,1805-00084,0.00,153.00,R,A J H  Pump Supply & Repair Ltd,No
Http://opendatacommunities.org/id/metropolitan-district-council/leeds,Leeds City Council,31/05/2018,Resources and Housing,Leeds Building Services,Supplies and Services,Operational Materials,205,25/05/2018,1805-00085,0.00,278.75,R,A J H  Pump Supply & Repair Ltd,No
Http://opendatacommunities.org/id/metropolitan-district-council/leeds,Leeds City Council,31/05/2018,Resources and Housing,Leeds Building Services,Supplies and Services,Operational Materials,205,25/05/2018,1805-00086,0.00,150.31,R,A J H  Pump Supply & Repair Ltd,No
Http://opendatacommunities.org/id/metropolitan-district-council/leeds,Leeds City Council,31/05/2018,Resources and Housing,Leeds Building Services,Supplies and Services,Operational Materials,205,25/05/2018,1805-00087,0.00,163.45,R,A J H  Pump Supply & Repair Ltd,No
Http://opendatacommunities.org/id/metropolitan-district-council/leeds,Leeds City Council,31/05/2018,Resources and Housing,Leeds Building Services,Supplies and Services,Operational Materials,205,25/05/2018,1805-00088,0.00,1055.55,R,A J H  Pump Supply & Repair Ltd,No
Http://opendatacommunities.org/id/metropolitan-district-council/leeds,Leeds City Council,31/05/2018,Resources and Housing,Leeds Building Services,Supplies and Services,Operational Materials,205,25/05/2018,1805-00089,0.00,115.38,R,A J H  Pump Supply & Repair Ltd,No
Http://opendatacommunities.org/id/metropolitan-district-council/leeds,Leeds City Council,31/05/2018,Resources and Housing,Leeds Building Services,Supplies and Services,Operational Materials,205,29/05/2018,1805-00090,0.00,280.00,R,A J H  Pump Supply & Repair Ltd,No
Http://opendatacommunities.org/id/metropolitan-district-council/leeds,Leeds City Council,31/05/2018,City Development,Libraries  Arts & Heritage,Employees,Art Galleries Total Stores,3,04/05/2018,1805-00091,0.00,845.50,R,A J Promotions,No
Http://opendatacommunities.org/id/metropolitan-district-council/leeds,Leeds City Council,31/05/2018,Communities and Environment,Parks and Countryside,Supplies and Services,Resaleable Materials,204,11/05/2018,1805-00092,0.00,952.90,R,A J Promotions,No
Http://opendatacommunities.org/id/metropolitan-district-council/leeds,Leeds City Council,31/05/2018,Communities and Environment,Parks and Countryside,Supplies and Services,Resaleable Materials,204,11/05/2018,1805-00093,0.00,619.07,R,A J Promotions,No
Http://opendatacommunities.org/id/metropolitan-district-council/leeds,Leeds City Council,31/05/2018,City Development,Libraries  Arts & Heritage,Employees,Art Galleries Total Stores,3,25/05/2018,1805-00094,0.00,25.55,R,A J Promotions,No
Http://opendatacommunities.org/id/metropolitan-district-council/leeds,Leeds City Council,31/05/2018,Children and Families,Safeguarding Targeted & Specialist,Third Party Payments,Contact,548,09/05/2018,1805-00095,0.00,8.00,R,REDACTED PERSONAL DATA,No
Http://opendatacommunities.org/id/metropolitan-district-council/leeds,Leeds City Council,31/05/2018,Children and Families,Safeguarding Targeted & Specialist,Third Party Payments,Services Rendered By Other Organisations,511,30/05/2018,1805-00096,0.00,1181.25,R,A Little Something Extra Ltd,No
Http://opendatacommunities.org/id/metropolitan-district-council/leeds,Leeds City Council,31/05/2018,Communities and Environment,Customer Access,Supplies and Services,Other Hired And Contracted Services,265,03/05/2018,1805-00097,0.00,442.50,R,A Mohammed,No
Http://opendatacommunities.org/id/metropolitan-district-council/leeds,Leeds City Council,31/05/2018,Communities and Environment,Customer Access,Supplies and Services,Other Hired And Contracted Services,265,03/05/2018,1805-00098,0.00,50.00,R,A Musalam,No
Http://opendatacommunities.org/id/metropolitan-district-council/leeds,Leeds City Council,31/05/2018,Communities and Environment,Customer Access,Supplies and Services,Other Hired And Contracted Services,265,31/05/2018,1805-00099,0.00,22.50,R,A Musalam,No
Http://opendatacommunities.org/id/metropolitan-district-council/leeds,Leeds City Council,31/05/2018,Communities and Environment,Customer Access,Supplies and Services,Other Hired And Contracted Services,265,03/05/2018,1805-00100,0.00,121.50,R,A Namaki,No
Http://opendatacommunities.org/id/metropolitan-district-council/leeds,Leeds City Council,31/05/2018,Communities and Environment,Parks and Countryside,Supplies and Services,Operational Materials,205,15/05/2018,1805-00101,0.00,906.00,R,A Newton,No
Http://opendatacommunities.org/id/metropolitan-district-council/leeds,Leeds City Council,31/05/2018,Resources and Housing,HRA Housing Leeds,Capital,Other Costs,7,31/05/2018,1805-00102,0.00,466.06,C,REDACTED PERSONAL DATA,No
Http://opendatacommunities.org/id/metropolitan-district-council/leeds,Leeds City Council,31/05/2018,Communities and Environment,Parks and Countryside,Supplies and Services,Operational Furniture And Equipment,203,11/05/2018,1805-00103,0.00,153.50,R,A R Twigg & Son Limited,No
Http://opendatacommunities.org/id/metropolitan-district-council/leeds,Leeds City Council,31/05/2018,Resources and Housing,Strategic Housing Partnership & Support,Supplies and Services,Other Hired And Contracted Services,265,14/05/2018,1805-00104,0.00,680.00,R,REDACTED PERSONAL DATA,No
Http://opendatacommunities.org/id/metropolitan-district-council/leeds,Leeds City Council,31/05/2018,Resources and Housing,Shared Services,Supplies and Services,Other Hired And Contracted Services,265,18/05/2018,1805-00105,0.00,46.25,R,A Star Couriers Ltd,No
Http://opendatacommunities.org/id/metropolitan-district-council/leeds,Leeds City Council,31/05/2018,Resources and Housing,Shared Services,Supplies and Services,Other Hired And Contracted Services,265,29/05/2018,1805-00106,0.00,111.25,R,A Star Couriers Ltd,No
Http://opendatacommunities.org/id/metropolitan-district-council/leeds,Leeds City Council,31/05/2018,City Development,Libraries  Arts & Heritage,Supplies and Services,Operational Materials,205,08/05/2018,1805-00107,0.00,1772.88,R,A V Parts Master Ltd,No
Http://opendatacommunities.org/id/metropolitan-district-council/leeds,Leeds City Council,31/05/2018,City Development,Libraries  Arts & Heritage,Supplies and Services,Operational Furniture And Equipment,203,11/05/2018,1805-00108,0.00,228.99,R,A V Parts Master Ltd,No
Http://opendatacommunities.org/id/metropolitan-district-council/leeds,Leeds City Council,31/05/2018,Children and Families,Safeguarding Targeted & Specialist,Transfer Payments,Leaving Care Allowances,634,01/05/2018,1805-00109,0.00,120.00,R,A Van About Town,No
Http://opendatacommunities.org/id/metropolitan-district-council/leeds,Leeds City Council,31/05/2018,Children and Families,Safeguarding Targeted & Specialist,Third Party Payments,General External Residential Placements,507,15/05/2018,1805-00110,0.00,18422.86,R,A Wilderness Way Ltd,No
Http://opendatacommunities.org/id/metropolitan-district-council/leeds,Leeds City Council,31/05/2018,Children and Families,Safeguarding Targeted & Specialist,Third Party Payments,General External Residential Placements,507,15/05/2018,1805-00111,0.00,1470.00,R,A Wilderness Way Ltd,No
Http://opendatacommunities.org/id/metropolitan-district-council/leeds,Leeds City Council,31/05/2018,Children and Families,Safeguarding Targeted & Specialist,Third Party Payments,General External Residential Placements,507,15/05/2018,1805-00112,0.00,17828.40,R,A Wilderness Way Ltd,No
Http://opendatacommunities.org/id/metropolitan-district-council/leeds,Leeds City Council,31/05/2018,Children and Families,Safeguarding Targeted & Specialist,Third Party Payments,General External Residential Placements,507,15/05/2018,1805-00113,0.00,770.00,R,A Wilderness Way Ltd,No
Http://opendatacommunities.org/id/metropolitan-district-council/leeds,Leeds City Council,31/05/2018,Communities and Environment,Waste Management,Capital,Furniture And Equipment,5,21/05/2018,1805-00114,0.00,12313.50,C,A&C Weber Uk Ltd,No
Http://opendatacommunities.org/id/metropolitan-district-council/leeds,Leeds City Council,31/05/2018,Adults and Health,Public Health,Third Party Payments,Public Health Commissioned Services,526,18/05/2018,1805-00115,0.00,10.00,R,A&R Engineering Ltd,No
Http://opendatacommunities.org/id/metropolitan-district-council/leeds,Leeds City Council,31/05/2018,Adults and Health,Public Health,Third Party Payments,Public Health Commissioned Services,526,22/05/2018,1805-00116,0.00,190.02,R,Aaa Healthcare Ltd,No
Http://opendatacommunities.org/id/metropolitan-district-council/leeds,Leeds City Council,31/05/2018,Resources and Housing,Leeds Building Services,Supplies and Services,Other Hired And Contracted Services,265,03/05/2018,1805-00117,0.00,360.00,R,Aalco Leeds,No
Http://opendatacommunities.org/id/metropolitan-district-council/leeds,Leeds City Council,31/05/2018,Resources and Housing,Leeds Building Services,Supplies and Services,Operational Materials,205,29/05/2018,1805-00118,0.00,65.00,R,Aalco Leeds,No
Http://opendatacommunities.org/id/metropolitan-district-council/leeds,Leeds City Council,31/05/2018,Resources and Housing,Leeds Building Services,Supplies and Services,Operational Materials,205,29/05/2018,1805-00119,0.00,33.60,R,Aalco Leeds,No
Http://opendatacommunities.org/id/metropolitan-district-council/leeds,Leeds City Council,31/05/2018,City Development,Libraries  Arts & Heritage,Transport,Public Transport Expenses,310,09/05/2018,1805-00120,0.00,176.60,R,Aardman Animations Ltd,No
Http://opendatacommunities.org/id/metropolitan-district-council/leeds,Leeds City Council,31/05/2018,Children and Families,Safeguarding Targeted & Specialist  ,Supplies and Services,Operational Furniture And Equipment,203,27/04/2018,1805-00121,0.00,23.71,R,Aardvark Archery,Yes
Http://opendatacommunities.org/id/metropolitan-district-council/leeds,Leeds City Council,31/05/2018,Children and Families,Safeguarding Targeted & Specialist  ,Supplies and Services,Operational Furniture And Equipment,203,27/04/2018,1805-00122,0.00,229.07,R,Aardvark Archery,Yes
Http://opendatacommunities.org/id/metropolitan-district-council/leeds,Leeds City Council,31/05/2018,Adults and Health,Social Services Support Services,Transport,Public Transport Expenses,310,04/05/2018,1805-00123,0.00,170.00,R,Ab Cars (Garforth) Ltd,No
Http://opendatacommunities.org/id/metropolitan-district-council/leeds,Leeds City Council,31/05/2018,Communities and Environment,Car Parking Services  ,Supplies and Services,Postages,212,03/04/2018,1805-00124,0.00,20.00,R,Abacus Express,Yes
Http://opendatacommunities.org/id/metropolitan-district-council/leeds,Leeds City Council,31/05/2018,Communities and Environment,Car Parking Services  ,Supplies and Services,Postages,212,16/04/2018,1805-00125,0.00,14.50,R,Abacus Express,Yes
Http://opendatacommunities.org/id/metropolitan-district-council/leeds,Leeds City Council,31/05/2018,Communities and Environment,Car Parking Services  ,Supplies and Services,Postages,212,18/04/2018,1805-00126,0.00,14.50,R,Abacus Express,Yes
Http://opendatacommunities.org/id/metropolitan-district-council/leeds,Leeds City Council,31/05/2018,Children and Families,Safeguarding Targeted & Specialist,Support Services,Legal Disbursements,411,16/05/2018,1805-00127,0.00,18.28,R,Abacus Express Limited,No
Http://opendatacommunities.org/id/metropolitan-district-council/leeds,Leeds City Council,31/05/2018,Children and Families,Safeguarding Targeted & Specialist,Support Services,Legal Disbursements,411,16/05/2018,1805-00128,0.00,20.96,R,Abacus Express Limited,No
Http://opendatacommunities.org/id/metropolitan-district-council/leeds,Leeds City Council,31/05/2018,Children and Families,Safeguarding Targeted & Specialist,Support Services,Legal Disbursements,411,16/05/2018,1805-00129,0.00,18.28,R,Abacus Express Limited,No
Http://opendatacommunities.org/id/metropolitan-district-council/leeds,Leeds City Council,31/05/2018,Children and Families,Safeguarding Targeted & Specialist,Support Services,Legal Disbursements,411,17/05/2018,1805-00130,0.00,15.59,R,Abacus Express Limited,No
Http://opendatacommunities.org/id/metropolitan-district-council/leeds,Leeds City Council,31/05/2018,Children and Families,Safeguarding Targeted & Specialist,Support Services,Legal Disbursements,411,17/05/2018,1805-00131,0.00,21.50,R,Abacus Express Limited,No
Http://opendatacommunities.org/id/metropolitan-district-council/leeds,Leeds City Council,31/05/2018,Children and Families,Safeguarding Targeted & Specialist,Support Services,Legal Disbursements,411,23/05/2018,1805-00132,0.00,17.74,R,Abacus Express Limited,No
Http://opendatacommunities.org/id/metropolitan-district-council/leeds,Leeds City Council,31/05/2018,Adults and Health,Services For Older People - 65 And Over,Third Party Payments,Nursing Care Dementia,574,02/05/2018,1805-00133,0.00,1556.00,R,Abbendon Nursing Home,No
Http://opendatacommunities.org/id/metropolitan-district-council/leeds,Leeds City Council,31/05/2018,Adults and Health,Services For Older People - 65 And Over,Third Party Payments,Nursing Care Dementia,574,30/05/2018,1805-00134,0.00,1556.00,R,Abbendon Nursing Home,No
Http://opendatacommunities.org/id/metropolitan-district-council/leeds,Leeds City Council,31/05/2018,Children and Families,Safeguarding Targeted & Specialist,Supplies and Services,Food & Drink,231,04/05/2018,1805-00135,0.00,100.00,R,Abbey Grange C Of E Academy Trust,No
Http://opendatacommunities.org/id/metropolitan-district-council/leeds,Leeds City Council,31/05/2018,Children and Families,Safeguarding Targeted & Specialist,Premises,Hire of meeting rooms,143,04/05/2018,1805-00136,0.00,50.00,R,Abbey Grange C Of E Academy Trust,No
Http://opendatacommunities.org/id/metropolitan-district-council/leeds,Leeds City Council,31/05/2018,Adults and Health,Services For Adults Under 65 Mental/Dis,Third Party Payments,Nursing Home,570,02/05/2018,1805-00137,0.00,1972.00,R,Abbey Grange Nursing Home,No
Http://opendatacommunities.org/id/metropolitan-district-council/leeds,Leeds City Council,31/05/2018,Adults and Health,Services For Adults Under 65 Mental/Dis,Third Party Payments,Nursing Home,570,30/05/2018,1805-00138,0.00,1852.00,R,Abbey Grange Nursing Home,No
Http://opendatacommunities.org/id/metropolitan-district-council/leeds,Leeds City Council,31/05/2018,Communities and Environment,Cleaner Neighbourhood Teams,Supplies and Services,Bought In Professional Services,277,08/05/2018,1805-00139,0.00,60.33,R,Abbey House Veterinary Hospital,No
Http://opendatacommunities.org/id/metropolitan-district-council/leeds,Leeds City Council,31/05/2018,Communities and Environment,Cleaner Neighbourhood Teams,Supplies and Services,Bought In Professional Services,277,08/05/2018,1805-00140,0.00,51.59,R,Abbey House Veterinary Hospital,No
Http://opendatacommunities.org/id/metropolitan-district-council/leeds,Leeds City Council,31/05/2018,Communities and Environment,Cleaner Neighbourhood Teams,Supplies and Services,Bought In Professional Services,277,25/05/2018,1805-00141,0.00,100.66,R,Abbey House Veterinary Hospital,No
Http://opendatacommunities.org/id/metropolitan-district-council/leeds,Leeds City Council,31/05/2018,Communities and Environment,Cleaner Neighbourhood Teams,Supplies and Services,Bought In Professional Services,277,25/05/2018,1805-00142,0.00,41.54,R,Abbey House Veterinary Hospital,No
Http://opendatacommunities.org/id/metropolitan-district-council/leeds,Leeds City Council,31/05/2018,Communities and Environment,Customer Access,Supplies and Services,Other Hired And Contracted Services,265,03/05/2018,1805-00143,0.00,73.25,R,Abdul Wadood Kazizadha,No
Http://opendatacommunities.org/id/metropolitan-district-council/leeds,Leeds City Council,31/05/2018,Communities and Environment,Customer Access,Supplies and Services,Other Hired And Contracted Services,265,03/05/2018,1805-00144,0.00,15.00,R,Abdulahad Denha,No
Http://opendatacommunities.org/id/metropolitan-district-council/leeds,Leeds City Council,31/05/2018,Communities and Environment,Elections  Licensing and Registration,Income,Admissions  Booking Fees & Ticket Sales,933,24/05/2018,1805-00145,0.00,265.00,R,REDACTED PERSONAL DATA,No
Http://opendatacommunities.org/id/metropolitan-district-council/leeds,Leeds City Council,31/05/2018,Communities and Environment,Parks and Countryside,Supplies and Services,Non-Recurring Grants,227,10/05/2018,1805-00146,0.00,550.00,R,Aberford And District Parish Council,No
Http://opendatacommunities.org/id/metropolitan-district-council/leeds,Leeds City Council,31/05/2018,Adults and Health,Services For Older People - 65 And Over,Third Party Payments,Nursing Home,570,02/05/2018,1805-00147,0.00,25647.13,R,Aberford Hall,No
Http://opendatacommunities.org/id/metropolitan-district-council/leeds,Leeds City Council,31/05/2018,Adults and Health,Services For Older People - 65 And Over,Third Party Payments,Nursing Care Dementia,574,02/05/2018,1805-00148,0.00,3405.84,R,Aberford Hall,No
Http://opendatacommunities.org/id/metropolitan-district-council/leeds,Leeds City Council,31/05/2018,Adults and Health,Services For Older People - 65 And Over,Third Party Payments,Residential,580,02/05/2018,1805-00149,0.00,1479.12,R,Aberford Hall,No
Http://opendatacommunities.org/id/metropolitan-district-council/leeds,Leeds City Council,31/05/2018,Adults and Health,Services For Older People - 65 And Over,Third Party Payments,Nursing Home,570,30/05/2018,1805-00150,0.00,46557.82,R,Aberford Hall,No
Http://opendatacommunities.org/id/metropolitan-district-council/leeds,Leeds City Council,31/05/2018,Adults and Health,Services For Older People - 65 And Over,Third Party Payments,Nursing Care Dementia,574,30/05/2018,1805-00151,0.00,3405.84,R,Aberford Hall,No
Http://opendatacommunities.org/id/metropolitan-district-council/leeds,Leeds City Council,31/05/2018,Adults and Health,Services For Older People - 65 And Over,Third Party Payments,Residential,580,30/05/2018,1805-00152,0.00,1479.12,R,Aberford Hall,No
Http://opendatacommunities.org/id/metropolitan-district-council/leeds,Leeds City Council,31/05/2018,Communities and Environment,Elections  Licensing and Registration,Premises,Rents,141,15/05/2018,1805-00153,0.00,400.00,R,Aberford Village Hall,No
Http://opendatacommunities.org/id/metropolitan-district-council/leeds,Leeds City Council,31/05/2018,Resources and Housing,Leeds Building Services,Supplies and Services,Operational Materials,205,09/05/2018,1805-00154,0.00,250.45,R,Abi Garage Doors Ltd,No
Http://opendatacommunities.org/id/metropolitan-district-council/leeds,Leeds City Council,31/05/2018,Resources and Housing,Leeds Building Services,Supplies and Services,Operational Materials,205,14/05/2018,1805-00155,0.00,10.00,R,Abi Garage Doors Ltd,No
Http://opendatacommunities.org/id/metropolitan-district-council/leeds,Leeds City Council,31/05/2018,Resources and Housing,Leeds Building Services,Supplies and Services,Operational Materials,205,14/05/2018,1805-00156,0.00,10.00,R,Abi Garage Doors Ltd,No
Http://opendatacommunities.org/id/metropolitan-district-council/leeds,Leeds City Council,31/05/2018,Resources and Housing,Leeds Building Services,Supplies and Services,Operational Materials,205,14/05/2018,1805-00157,0.00,10.00,R,Abi Garage Doors Ltd,No
Http://opendatacommunities.org/id/metropolitan-district-council/leeds,Leeds City Council,31/05/2018,Resources and Housing,Leeds Building Services,Supplies and Services,Operational Materials,205,14/05/2018,1805-00158,0.00,10.00,R,Abi Garage Doors Ltd,No
Http://opendatacommunities.org/id/metropolitan-district-council/leeds,Leeds City Council,31/05/2018,Resources and Housing,Leeds Building Services,Supplies and Services,Operational Materials,205,14/05/2018,1805-00159,0.00,30.00,R,Abi Garage Doors Ltd,No
Http://opendatacommunities.org/id/metropolitan-district-council/leeds,Leeds City Council,31/05/2018,Resources and Housing,Leeds Building Services,Supplies and Services,Operational Materials,205,16/05/2018,1805-00160,0.00,250.45,R,Abi Garage Doors Ltd,No
Http://opendatacommunities.org/id/metropolitan-district-council/leeds,Leeds City Council,31/05/2018,Resources and Housing,Leeds Building Services,Supplies and Services,Operational Materials,205,25/05/2018,1805-00161,0.00,18.50,R,Abi Garage Doors Ltd,No
Http://opendatacommunities.org/id/metropolitan-district-council/leeds,Leeds City Council,31/05/2018,Resources and Housing,Leeds Building Services,Supplies and Services,Operational Materials,205,29/05/2018,1805-00162,0.00,250.45,R,Abi Garage Doors Ltd,No
Http://opendatacommunities.org/id/metropolitan-district-council/leeds,Leeds City Council,31/05/2018,Resources and Housing,Strategic Housing Partnership & Support,Supplies and Services,Other Hired And Contracted Services,265,08/05/2018,1805-00163,0.00,648.22,R,Abid N Riaz,No
Http://opendatacommunities.org/id/metropolitan-district-council/leeds,Leeds City Council,31/05/2018,Children and Families,Partnerships,Supplies and Services,Operational Furniture And Equipment,203,03/05/2018,1805-00164,0.00,1596.00,R,Ability Smart Limited,No
Http://opendatacommunities.org/id/metropolitan-district-council/leeds,Leeds City Council,31/05/2018,Resources and Housing,Shared Services,Employees,Central Training,79,17/05/2018,1805-00165,0.00,327.50,R,Ability Smart Limited,No
Http://opendatacommunities.org/id/metropolitan-district-council/leeds,Leeds City Council,31/05/2018,Resources and Housing,Finance,Supplies and Services,Office Furniture & Equipment,201,30/05/2018,1805-00166,0.00,300.00,R,Ability Smart Limited,No
Http://opendatacommunities.org/id/metropolitan-district-council/leeds,Leeds City Council,31/05/2018,Communities and Environment,Communities,Capital,Furniture And Equipment,5,11/05/2018,1805-00167,0.00,6048.00,C,Able & Able Upholstery Ltd,No
Http://opendatacommunities.org/id/metropolitan-district-council/leeds,Leeds City Council,31/05/2018,Communities and Environment,Communities,Capital,Furniture And Equipment,5,11/05/2018,1805-00168,0.00,6372.00,C,Able & Able Upholstery Ltd,No
Http://opendatacommunities.org/id/metropolitan-district-council/leeds,Leeds City Council,31/05/2018,City Development,Libraries  Arts & Heritage  ,Supplies and Services,Food & Drink,231,29/03/2018,1805-00169,0.00,1.63,R,Abo Leeds,Yes
Http://opendatacommunities.org/id/metropolitan-district-council/leeds,Leeds City Council,31/05/2018,City Development,Libraries  Arts & Heritage  ,Supplies and Services,Food & Drink,231,29/03/2018,1805-00170,0.00,37.67,R,Abo Leeds,Yes
Http://opendatacommunities.org/id/metropolitan-district-council/leeds,Leeds City Council,31/05/2018,Children and Families,Safeguarding Targeted & Specialist  ,Supplies and Services,Food & Drink,231,10/04/2018,1805-00171,0.00,18.73,R,Abu Bakar Ltd,Yes
Http://opendatacommunities.org/id/metropolitan-district-council/leeds,Leeds City Council,31/05/2018,Children and Families,Safeguarding Targeted & Specialist  ,Supplies and Services,Office Consumables,210,14/04/2018,1805-00172,0.00,14.26,R,Abu Bakar Ltd,Yes
Http://opendatacommunities.org/id/metropolitan-district-council/leeds,Leeds City Council,31/05/2018,Communities and Environment,Community Safety,Transport,Hire Of Movable Plant & Machinery,315,30/05/2018,1805-00173,0.00,1268.57,R,Access Hire Nationwide Ltd,No
Http://opendatacommunities.org/id/metropolitan-district-council/leeds,Leeds City Council,31/05/2018,Children and Families,Safeguarding Targeted & Specialist  ,Premises,Maintenance Of Buildings,101,13/04/2018,1805-00174,0.00,27.96,R,Access Locksmiths,Yes
Http://opendatacommunities.org/id/metropolitan-district-council/leeds,Leeds City Council,31/05/2018,Communities and Environment,Cleaner Neighbourhood Teams  ,Supplies and Services,Operational Furniture And Equipment,203,18/04/2018,1805-00175,0.00,64.23,R,Access Locksmiths,Yes
Http://opendatacommunities.org/id/metropolitan-district-council/leeds,Leeds City Council,31/05/2018,Communities and Environment,Cleaner Neighbourhood Teams  ,Supplies and Services,Operational Furniture And Equipment,203,19/04/2018,1805-00176,0.00,63.00,R,Access Locksmiths,Yes
Http://opendatacommunities.org/id/metropolitan-district-council/leeds,Leeds City Council,31/05/2018,Strategic Landlord,Housing Management,Premises,Premises Security Services,162,02/05/2018,1805-00177,0.00,27.80,R,Access Locksmiths (Leeds) Limited,No
Http://opendatacommunities.org/id/metropolitan-district-council/leeds,Leeds City Council,31/05/2018,Strategic Landlord,Housing Management,Premises,Fixtures & Fittings,131,02/05/2018,1805-00178,0.00,114.00,R,Access Locksmiths (Leeds) Limited,No
Http://opendatacommunities.org/id/metropolitan-district-council/leeds,Leeds City Council,31/05/2018,Resources and Housing,HRA Housing Leeds,Capital,Construction,3,02/05/2018,1805-00179,0.00,22.80,C,Access Locksmiths (Leeds) Limited,No
Http://opendatacommunities.org/id/metropolitan-district-council/leeds,Leeds City Council,31/05/2018,Resources and Housing,Leeds Building Services,Supplies and Services,Other Hired And Contracted Services,265,03/05/2018,1805-00180,0.00,241.94,R,Access Locksmiths (Leeds) Limited,No
Http://opendatacommunities.org/id/metropolitan-district-council/leeds,Leeds City Council,31/05/2018,Resources and Housing,Leeds Building Services,Supplies and Services,Operational Materials,205,03/05/2018,1805-00181,0.00,14.09,R,Access Locksmiths (Leeds) Limited,No
Http://opendatacommunities.org/id/metropolitan-district-council/leeds,Leeds City Council,31/05/2018,Resources and Housing,Leeds Building Services,Supplies and Services,Operational Materials,205,03/05/2018,1805-00182,0.00,96.25,R,Access Locksmiths (Leeds) Limited,No
Http://opendatacommunities.org/id/metropolitan-district-council/leeds,Leeds City Council,31/05/2018,Resources and Housing,Leeds Building Services,Supplies and Services,Operational Materials,205,03/05/2018,1805-00183,0.00,8.25,R,Access Locksmiths (Leeds) Limited,No
Http://opendatacommunities.org/id/metropolitan-district-council/leeds,Leeds City Council,31/05/2018,Resources and Housing,Leeds Building Services,Supplies and Services,Operational Materials,205,03/05/2018,1805-00184,0.00,16.99,R,Access Locksmiths (Leeds) Limited,No
Http://opendatacommunities.org/id/metropolitan-district-council/leeds,Leeds City Council,31/05/2018,Resources and Housing,Leeds Building Services,Supplies and Services,Operational Materials,205,03/05/2018,1805-00185,0.00,16.83,R,Access Locksmiths (Leeds) Limited,No
Http://opendatacommunities.org/id/metropolitan-district-council/leeds,Leeds City Council,31/05/2018,Resources and Housing,Leeds Building Services,Supplies and Services,Operational Materials,205,03/05/2018,1805-00186,0.00,10.31,R,Access Locksmiths (Leeds) Limited,No
Http://opendatacommunities.org/id/metropolitan-district-council/leeds,Leeds City Council,31/05/2018,Resources and Housing,Leeds Building Services,Supplies and Services,Operational Materials,205,04/05/2018,1805-00187,0.00,74.99,R,Access Locksmiths (Leeds) Limited,No
Http://opendatacommunities.org/id/metropolitan-district-council/leeds,Leeds City Council,31/05/2018,Resources and Housing,Leeds Building Services,Supplies and Services,Operational Materials,205,04/05/2018,1805-00188,0.00,33.31,R,Access Locksmiths (Leeds) Limited,No
Http://opendatacommunities.org/id/metropolitan-district-council/leeds,Leeds City Council,31/05/2018,Resources and Housing,Leeds Building Services,Supplies and Services,Operational Materials,205,09/05/2018,1805-00189,0.00,17.55,R,Access Locksmiths (Leeds) Limited,No
Http://opendatacommunities.org/id/metropolitan-district-council/leeds,Leeds City Council,31/05/2018,Strategic Landlord,Property and Contracts,Premises,General Maintenance,104,18/05/2018,1805-00190,0.00,132.93,R,Access Locksmiths (Leeds) Limited,No
Http://opendatacommunities.org/id/metropolitan-district-council/leeds,Leeds City Council,31/05/2018,Strategic Landlord,Property and Contracts,Premises,General Maintenance,104,18/05/2018,1805-00191,0.00,201.80,R,Access Locksmiths (Leeds) Limited,No
Http://opendatacommunities.org/id/metropolitan-district-council/leeds,Leeds City Council,31/05/2018,Resources and Housing,Commercial Services,Supplies and Services,Operational Furniture And Equipment,203,23/05/2018,1805-00192,0.00,205.00,R,Access Locksmiths (Leeds) Limited,No
Http://opendatacommunities.org/id/metropolitan-district-council/leeds,Leeds City Council,31/05/2018,Resources and Housing,HRA Housing Leeds,Capital,Other Costs,7,23/05/2018,1805-00193,0.00,121.08,C,Access Locksmiths (Leeds) Limited,No
Http://opendatacommunities.org/id/metropolitan-district-council/leeds,Leeds City Council,31/05/2018,Resources and Housing,HRA Housing Leeds,Capital,Other Costs,7,23/05/2018,1805-00194,0.00,148.14,C,Access Locksmiths (Leeds) Limited,No
Http://opendatacommunities.org/id/metropolitan-district-council/leeds,Leeds City Council,31/05/2018,Strategic Landlord,Housing Management,Supplies and Services,Resaleable Materials,204,23/05/2018,1805-00195,0.00,25.00,R,Access Locksmiths (Leeds) Limited,No
Http://opendatacommunities.org/id/metropolitan-district-council/leeds,Leeds City Council,31/05/2018,Strategic Landlord,Housing Management,Supplies and Services,Resaleable Materials,204,23/05/2018,1805-00196,0.00,319.20,R,Access Locksmiths (Leeds) Limited,No
Http://opendatacommunities.org/id/metropolitan-district-council/leeds,Leeds City Council,31/05/2018,Resources and Housing,Leeds Building Services,Supplies and Services,Operational Materials,205,29/05/2018,1805-00197,0.00,23.83,R,Access Locksmiths (Leeds) Limited,No
Http://opendatacommunities.org/id/metropolitan-district-council/leeds,Leeds City Council,31/05/2018,Resources and Housing,Leeds Building Services,Supplies and Services,Operational Materials,205,29/05/2018,1805-00198,0.00,33.75,R,Access Locksmiths (Leeds) Limited,No
Http://opendatacommunities.org/id/metropolitan-district-council/leeds,Leeds City Council,31/05/2018,Resources and Housing,Leeds Building Services,Supplies and Services,Operational Materials,205,29/05/2018,1805-00199,0.00,37.83,R,Access Locksmiths (Leeds) Limited,No
Http://opendatacommunities.org/id/metropolitan-district-council/leeds,Leeds City Council,31/05/2018,Resources and Housing,Leeds Building Services,Supplies and Services,Operational Materials,205,29/05/2018,1805-00200,0.00,37.98,R,Access Locksmiths (Leeds) Limited,No
Http://opendatacommunities.org/id/metropolitan-district-council/leeds,Leeds City Council,31/05/2018,Resources and Housing,Leeds Building Services,Supplies and Services,Operational Materials,205,29/05/2018,1805-00201,0.00,73.20,R,Access Locksmiths (Leeds) Limited,No
Http://opendatacommunities.org/id/metropolitan-district-council/leeds,Leeds City Council,31/05/2018,Resources and Housing,Leeds Building Services,Supplies and Services,Operational Materials,205,29/05/2018,1805-00202,0.00,40.76,R,Access Locksmiths (Leeds) Limited,No
Http://opendatacommunities.org/id/metropolitan-district-council/leeds,Leeds City Council,31/05/2018,Resources and Housing,Leeds Building Services,Supplies and Services,Operational Materials,205,29/05/2018,1805-00203,0.00,13.46,R,Access Locksmiths (Leeds) Limited,No
Http://opendatacommunities.org/id/metropolitan-district-council/leeds,Leeds City Council,31/05/2018,Resources and Housing,Leeds Building Services,Supplies and Services,Operational Materials,205,29/05/2018,1805-00204,0.00,107.30,R,Access Locksmiths (Leeds) Limited,No
Http://opendatacommunities.org/id/metropolitan-district-council/leeds,Leeds City Council,31/05/2018,Resources and Housing,Leeds Building Services,Supplies and Services,Operational Materials,205,29/05/2018,1805-00205,0.00,29.05,R,Access Locksmiths (Leeds) Limited,No
Http://opendatacommunities.org/id/metropolitan-district-council/leeds,Leeds City Council,31/05/2018,Resources and Housing,Leeds Building Services,Supplies and Services,Operational Materials,205,29/05/2018,1805-00206,0.00,17.55,R,Access Locksmiths (Leeds) Limited,No
Http://opendatacommunities.org/id/metropolitan-district-council/leeds,Leeds City Council,31/05/2018,Resources and Housing,Leeds Building Services,Supplies and Services,Operational Materials,205,29/05/2018,1805-00207,0.00,36.68,R,Access Locksmiths (Leeds) Limited,No
Http://opendatacommunities.org/id/metropolitan-district-council/leeds,Leeds City Council,31/05/2018,Resources and Housing,Leeds Building Services,Supplies and Services,Operational Materials,205,29/05/2018,1805-00208,0.00,16.83,R,Access Locksmiths (Leeds) Limited,No
Http://opendatacommunities.org/id/metropolitan-district-council/leeds,Leeds City Council,31/05/2018,Resources and Housing,Leeds Building Services,Supplies and Services,Operational Materials,205,29/05/2018,1805-00209,0.00,42.65,R,Access Locksmiths (Leeds) Limited,No
Http://opendatacommunities.org/id/metropolitan-district-council/leeds,Leeds City Council,31/05/2018,Resources and Housing,Leeds Building Services,Supplies and Services,Operational Materials,205,29/05/2018,1805-00210,0.00,5.90,R,Access Locksmiths (Leeds) Limited,No
Http://opendatacommunities.org/id/metropolitan-district-council/leeds,Leeds City Council,31/05/2018,Resources and Housing,Leeds Building Services,Supplies and Services,Operational Materials,205,29/05/2018,1805-00211,0.00,12.92,R,Access Locksmiths (Leeds) Limited,No
Http://opendatacommunities.org/id/metropolitan-district-council/leeds,Leeds City Council,31/05/2018,Resources and Housing,HRA Housing Leeds,Capital,Other Costs,7,31/05/2018,1805-00212,0.00,207.50,C,Access Locksmiths (Leeds) Limited,No
Http://opendatacommunities.org/id/metropolitan-district-council/leeds,Leeds City Council,31/05/2018,Strategic Landlord,Housing Management,Supplies and Services,Resaleable Materials,204,31/05/2018,1805-00213,0.00,7.50,R,Access Locksmiths (Leeds) Limited,No
Http://opendatacommunities.org/id/metropolitan-district-council/leeds,Leeds City Council,31/05/2018,Strategic Landlord,Housing Management,Supplies and Services,Resaleable Materials,204,31/05/2018,1805-00214,0.00,467.40,R,Access Locksmiths (Leeds) Limited,No
Http://opendatacommunities.org/id/metropolitan-district-council/leeds,Leeds City Council,31/05/2018,Strategic Landlord,Housing Management,Supplies and Services,Resaleable Materials,204,31/05/2018,1805-00215,0.00,171.00,R,Access Locksmiths (Leeds) Limited,No
Http://opendatacommunities.org/id/metropolitan-district-council/leeds,Leeds City Council,31/05/2018,Strategic Landlord,Housing Management,Supplies and Services,Resaleable Materials,204,31/05/2018,1805-00216,0.00,12.00,R,Access Locksmiths (Leeds) Limited,No
Http://opendatacommunities.org/id/metropolitan-district-council/leeds,Leeds City Council,31/05/2018,Resources and Housing,Leeds Building Services,Supplies and Services,Operational Materials,205,31/05/2018,1805-00217,0.00,18.34,R,Access Locksmiths (Leeds) Limited,No
Http://opendatacommunities.org/id/metropolitan-district-council/leeds,Leeds City Council,31/05/2018,Resources and Housing,Leeds Building Services,Supplies and Services,Other Hired And Contracted Services,265,31/05/2018,1805-00218,0.00,3.81,R,Access Locksmiths (Leeds) Limited,No
Http://opendatacommunities.org/id/metropolitan-district-council/leeds,Leeds City Council,31/05/2018,Resources and Housing,Leeds Building Services,Supplies and Services,Operational Materials,205,31/05/2018,1805-00219,0.00,74.00,R,Access Locksmiths (Leeds) Limited,No
Http://opendatacommunities.org/id/metropolitan-district-council/leeds,Leeds City Council,31/05/2018,Resources and Housing,Leeds Building Services,Supplies and Services,Operational Materials,205,31/05/2018,1805-00220,0.00,17.07,R,Access Locksmiths (Leeds) Limited,No
Http://opendatacommunities.org/id/metropolitan-district-council/leeds,Leeds City Council,31/05/2018,Resources and Housing,Leeds Building Services,Supplies and Services,Operational Materials,205,31/05/2018,1805-00221,0.00,15.75,R,Access Locksmiths (Leeds) Limited,No
Http://opendatacommunities.org/id/metropolitan-district-council/leeds,Leeds City Council,31/05/2018,Resources and Housing,Leeds Building Services,Supplies and Services,Operational Materials,205,31/05/2018,1805-00222,0.00,200.53,R,Access Locksmiths (Leeds) Limited,No
Http://opendatacommunities.org/id/metropolitan-district-council/leeds,Leeds City Council,31/05/2018,Resources and Housing,HRA Housing Leeds,Capital,Construction,3,31/05/2018,1805-00223,0.00,717.76,C,Access Locksmiths (Leeds) Limited,No
Http://opendatacommunities.org/id/metropolitan-district-council/leeds,Leeds City Council,31/05/2018,Resources and Housing,HRA Housing Leeds,Capital,Other Costs,7,31/05/2018,1805-00224,0.00,57.00,C,Access Locksmiths (Leeds) Limited,No
Http://opendatacommunities.org/id/metropolitan-district-council/leeds,Leeds City Council,31/05/2018,Resources and Housing,Leeds Building Services,Supplies and Services,Operational Materials,205,14/05/2018,1805-00225,0.00,27.40,R,Access Opening Systems,No
Http://opendatacommunities.org/id/metropolitan-district-council/leeds,Leeds City Council,31/05/2018,Resources and Housing,Leeds Building Services,Supplies and Services,Other Hired And Contracted Services,265,14/05/2018,1805-00226,0.00,95.00,R,Access Opening Systems,No
Http://opendatacommunities.org/id/metropolitan-district-council/leeds,Leeds City Council,31/05/2018,Resources and Housing,Leeds Building Services,Supplies and Services,Operational Materials,205,16/05/2018,1805-00227,0.00,85.00,R,Access Opening Systems,No
Http://opendatacommunities.org/id/metropolitan-district-council/leeds,Leeds City Council,31/05/2018,Resources and Housing,Leeds Building Services,Supplies and Services,Operational Materials,205,16/05/2018,1805-00228,0.00,225.00,R,Access Opening Systems,No
Http://opendatacommunities.org/id/metropolitan-district-council/leeds,Leeds City Council,31/05/2018,Resources and Housing,Leeds Building Services,Supplies and Services,Operational Materials,205,16/05/2018,1805-00229,0.00,50.00,R,Access Opening Systems,No
Http://opendatacommunities.org/id/metropolitan-district-council/leeds,Leeds City Council,31/05/2018,Insurance,Insurance,Supplies and Services,Insurance Claims,248,03/05/2018,1805-00230,0.00,1500.00,R,Accountant General Of The Senior Courts,No
Http://opendatacommunities.org/id/metropolitan-district-council/leeds,Leeds City Council,31/05/2018,Insurance,Insurance,Supplies and Services,Insurance Claims,248,17/05/2018,1805-00231,0.00,3500.00,R,Accountant General Of The Senior Courts,No
Http://opendatacommunities.org/id/metropolitan-district-council/leeds,Leeds City Council,31/05/2018,Insurance,Insurance,Supplies and Services,Insurance Claims,248,24/05/2018,1805-00232,0.00,4000.00,R,Accountant General Of The Senior Courts,No
Http://opendatacommunities.org/id/metropolitan-district-council/leeds,Leeds City Council,31/05/2018,City Development,Recreation,Supplies and Services,Other Hired And Contracted Services,265,10/05/2018,1805-00233,0.00,90.00,R,Ace Container Services Limited,No
Http://opendatacommunities.org/id/metropolitan-district-council/leeds,Leeds City Council,31/05/2018,City Development,Recreation,Transport,External Hire -Occasional,304,30/05/2018,1805-00234,0.00,128.65,R,Ace Container Services Limited,No
Http://opendatacommunities.org/id/metropolitan-district-council/leeds,Leeds City Council,31/05/2018,City Development,Libraries  Arts & Heritage,Transport,Hire Of Movable Plant & Machinery,315,30/05/2018,1805-00235,0.00,46.50,R,Ace Container Services Limited,No
Http://opendatacommunities.org/id/metropolitan-district-council/leeds,Leeds City Council,31/05/2018,Children and Families,Learning Places,Capital,Other Costs,7,18/05/2018,1805-00236,0.00,260.00,C,Ace Leaflet Distribution & Print Ltd,No
Http://opendatacommunities.org/id/metropolitan-district-council/leeds,Leeds City Council,31/05/2018,Communities and Environment,Waste Management,Supplies and Services,Advertising,211,25/05/2018,1805-00237,0.00,495.00,R,Ace Leaflet Distribution & Print Ltd,No
Http://opendatacommunities.org/id/metropolitan-district-council/leeds,Leeds City Council,31/05/2018,Children and Families,Partnerships,Third Party Payments,SEN Placements,566,03/05/2018,1805-00238,0.00,17139.00,R,Ackworth School,No
Http://opendatacommunities.org/id/metropolitan-district-council/leeds,Leeds City Council,31/05/2018,Children and Families,Partnerships,Third Party Payments,SEN Placements,566,03/05/2018,1805-00239,0.00,17250.20,R,Ackworth School,No
Http://opendatacommunities.org/id/metropolitan-district-council/leeds,Leeds City Council,31/05/2018,Children and Families,Partnerships,Third Party Payments,SEN Placements,566,03/05/2018,1805-00240,0.00,17390.26,R,Ackworth School,No
Http://opendatacommunities.org/id/metropolitan-district-council/leeds,Leeds City Council,31/05/2018,Children and Families,Partnerships,Third Party Payments,SEN Placements,566,03/05/2018,1805-00241,0.00,17144.00,R,Ackworth School,No
Http://opendatacommunities.org/id/metropolitan-district-council/leeds,Leeds City Council,31/05/2018,Children and Families,Partnerships,Third Party Payments,SEN Placements,566,03/05/2018,1805-00242,0.00,17814.00,R,Ackworth School,No
Http://opendatacommunities.org/id/metropolitan-district-council/leeds,Leeds City Council,31/05/2018,Children and Families,Partnerships,Third Party Payments,SEN Placements,566,03/05/2018,1805-00243,0.00,24289.00,R,Ackworth School,No
Http://opendatacommunities.org/id/metropolitan-district-council/leeds,Leeds City Council,31/05/2018,Resources and Housing,Leeds Building Services,Supplies and Services,Other Hired And Contracted Services,265,16/05/2018,1805-00244,0.00,2300.00,R,Acme Facilities Group Ltd,No
Http://opendatacommunities.org/id/metropolitan-district-council/leeds,Leeds City Council,31/05/2018,Communities and Environment,Waste Management,Supplies and Services,Other Hired And Contracted Services,265,04/05/2018,1805-00245,0.00,200.00,R,Acorn Analytical Services Limited,No
Http://opendatacommunities.org/id/metropolitan-district-council/leeds,Leeds City Council,31/05/2018,Children and Families,Partnerships,Third Party Payments,SEN Placements,566,17/05/2018,1805-00246,0.00,7000.00,R,Acorn Care And Education Ltd,No
Http://opendatacommunities.org/id/metropolitan-district-council/leeds,Leeds City Council,31/05/2018,Children and Families,Partnerships,Third Party Payments,SEN Placements,566,17/05/2018,1805-00247,0.00,7000.00,R,Acorn Care And Education Ltd,No
Http://opendatacommunities.org/id/metropolitan-district-council/leeds,Leeds City Council,31/05/2018,Children and Families,Partnerships,Third Party Payments,SEN Placements,566,17/05/2018,1805-00248,0.00,7000.00,R,Acorn Care And Education Ltd,No
Http://opendatacommunities.org/id/metropolitan-district-council/leeds,Leeds City Council,31/05/2018,Adults and Health,Services For Older People - 65 And Over,Third Party Payments,Nursing Care Dementia,574,02/05/2018,1805-00249,0.00,1662.36,R,Acorn Nursing Home,No
Http://opendatacommunities.org/id/metropolitan-district-council/leeds,Leeds City Council,31/05/2018,Adults and Health,Services For Older People - 65 And Over,Third Party Payments,Nursing Care Dementia,574,30/05/2018,1805-00250,0.00,1643.05,R,Acorn Nursing Home,No
Http://opendatacommunities.org/id/metropolitan-district-council/leeds,Leeds City Council,31/05/2018,Adults and Health,Other Adult Services,Third Party Payments,Residential - Drugs & Alcohol,583,18/05/2018,1805-00251,0.00,2435.71,R,Acorn Treatment & Housing,No
Http://opendatacommunities.org/id/metropolitan-district-council/leeds,Leeds City Council,31/05/2018,Children and Families,Safeguarding Targeted & Specialist,Third Party Payments,Services Rendered By Voluntary Sector,505,10/05/2018,1805-00252,0.00,4105.26,R,Acorns Nursery,No
Http://opendatacommunities.org/id/metropolitan-district-council/leeds,Leeds City Council,31/05/2018,City Development,Highways,Supplies and Services,Operational Furniture And Equipment,203,03/05/2018,1805-00253,0.00,195.00,R,Acoustic Calibration Services Limited,No
Http://opendatacommunities.org/id/metropolitan-district-council/leeds,Leeds City Council,31/05/2018,Adults and Health,Services For Older People - 65 And Over,Third Party Payments,Nursing Home,570,02/05/2018,1805-00254,0.00,23958.27,R,Acre Green,No
Http://opendatacommunities.org/id/metropolitan-district-council/leeds,Leeds City Council,31/05/2018,Adults and Health,Services For Older People - 65 And Over,Third Party Payments,Nursing Care Dementia,574,02/05/2018,1805-00255,0.00,1538.44,R,Acre Green,No
Http://opendatacommunities.org/id/metropolitan-district-council/leeds,Leeds City Council,31/05/2018,Adults and Health,Services For Older People - 65 And Over,Third Party Payments,Residential,580,02/05/2018,1805-00256,0.00,5015.20,R,Acre Green,No
Http://opendatacommunities.org/id/metropolitan-district-council/leeds,Leeds City Council,31/05/2018,Adults and Health,Services For Older People Under 65 P/Dis,Third Party Payments,Nursing Home,570,02/05/2018,1805-00257,0.00,2148.00,R,Acre Green,No
Http://opendatacommunities.org/id/metropolitan-district-council/leeds,Leeds City Council,31/05/2018,Adults and Health,Services For Older People Under 65 P/Dis,Third Party Payments,Residential,580,02/05/2018,1805-00258,0.00,3481.20,R,Acre Green,No
Http://opendatacommunities.org/id/metropolitan-district-council/leeds,Leeds City Council,31/05/2018,Adults and Health,Services For Older People - 65 And Over,Third Party Payments,Nursing Home,570,30/05/2018,1805-00259,0.00,19517.03,R,Acre Green,No
Http://opendatacommunities.org/id/metropolitan-district-council/leeds,Leeds City Council,31/05/2018,Adults and Health,Services For Older People - 65 And Over,Third Party Payments,Nursing Care Dementia,574,30/05/2018,1805-00260,0.00,1538.44,R,Acre Green,No
Http://opendatacommunities.org/id/metropolitan-district-council/leeds,Leeds City Council,31/05/2018,Adults and Health,Services For Older People - 65 And Over,Third Party Payments,Residential,580,30/05/2018,1805-00261,0.00,5463.10,R,Acre Green,No
Http://opendatacommunities.org/id/metropolitan-district-council/leeds,Leeds City Council,31/05/2018,Adults and Health,Services For Older People Under 65 P/Dis,Third Party Payments,Nursing Home,570,30/05/2018,1805-00262,0.00,3068.57,R,Acre Green,No
Http://opendatacommunities.org/id/metropolitan-district-council/leeds,Leeds City Council,31/05/2018,Adults and Health,Services For Older People Under 65 P/Dis,Third Party Payments,Residential,580,30/05/2018,1805-00263,0.00,3481.20,R,Acre Green,No
Http://opendatacommunities.org/id/metropolitan-district-council/leeds,Leeds City Council,31/05/2018,Adults and Health,Services For Adults Under 65 Mental/Dis,Third Party Payments,Fees - Level 4,520,18/05/2018,1805-00264,0.00,250.00,R,Action First Recruitment Ltd,No
Http://opendatacommunities.org/id/metropolitan-district-council/leeds,Leeds City Council,31/05/2018,Adults and Health,Services For Adults Under 65 Mental/Dis,Third Party Payments,Fees - Level 4,520,18/05/2018,1805-00265,0.00,250.00,R,Action First Recruitment Ltd,No
Http://opendatacommunities.org/id/metropolitan-district-council/leeds,Leeds City Council,31/05/2018,Adults and Health,Services For Adults Under 65 Mental/Dis,Third Party Payments,Fees - Level 4,520,18/05/2018,1805-00266,0.00,250.00,R,Action First Recruitment Ltd,No
Http://opendatacommunities.org/id/metropolitan-district-council/leeds,Leeds City Council,31/05/2018,Adults and Health,Services For Adults Under 65 Mental/Dis,Third Party Payments,Fees - Level 4,520,18/05/2018,1805-00267,0.00,250.00,R,Action First Recruitment Ltd,No
Http://opendatacommunities.org/id/metropolitan-district-council/leeds,Leeds City Council,31/05/2018,Adults and Health,Services For Adults Under 65 Mental/Dis,Third Party Payments,Fees - Level 4,520,18/05/2018,1805-00268,0.00,250.00,R,Action First Recruitment Ltd,No
Http://opendatacommunities.org/id/metropolitan-district-council/leeds,Leeds City Council,31/05/2018,Adults and Health,Services For Adults Under 65 Mental/Dis,Third Party Payments,Fees - Level 4,520,18/05/2018,1805-00269,0.00,250.00,R,Action First Recruitment Ltd,No
Http://opendatacommunities.org/id/metropolitan-district-council/leeds,Leeds City Council,31/05/2018,Adults and Health,Services For Adults Under 65 Mental/Dis,Third Party Payments,Fees - Level 4,520,18/05/2018,1805-00270,0.00,250.00,R,Action First Recruitment Ltd,No
Http://opendatacommunities.org/id/metropolitan-district-council/leeds,Leeds City Council,31/05/2018,Adults and Health,Services For Adults Under 65 Mental/Dis,Third Party Payments,Fees - Level 4,520,29/05/2018,1805-00271,0.00,250.00,R,Action First Recruitment Ltd,No
Http://opendatacommunities.org/id/metropolitan-district-council/leeds,Leeds City Council,31/05/2018,Adults and Health,Services For Adults Under 65 Mental/Dis,Third Party Payments,Fees - Level 4,520,29/05/2018,1805-00272,0.00,250.00,R,Action First Recruitment Ltd,No
Http://opendatacommunities.org/id/metropolitan-district-council/leeds,Leeds City Council,31/05/2018,Adults and Health,Services For Adults Under 65 Mental/Dis,Third Party Payments,Fees - Level 4,520,29/05/2018,1805-00273,0.00,250.00,R,Action First Recruitment Ltd,No
Http://opendatacommunities.org/id/metropolitan-district-council/leeds,Leeds City Council,31/05/2018,Adults and Health,Services For Adults Under 65 Mental/Dis,Third Party Payments,Fees - Level 4,520,29/05/2018,1805-00274,0.00,250.00,R,Action First Recruitment Ltd,No
Http://opendatacommunities.org/id/metropolitan-district-council/leeds,Leeds City Council,31/05/2018,Adults and Health,Services For Adults Under 65 Mental/Dis,Third Party Payments,Fees - Level 4,520,29/05/2018,1805-00275,0.00,220.00,R,Action First Recruitment Ltd,No
Http://opendatacommunities.org/id/metropolitan-district-council/leeds,Leeds City Council,31/05/2018,Adults and Health,Services For Adults Under 65 Mental/Dis,Third Party Payments,Fees - Level 4,520,29/05/2018,1805-00276,0.00,220.00,R,Action First Recruitment Ltd,No
Http://opendatacommunities.org/id/metropolitan-district-council/leeds,Leeds City Council,31/05/2018,Adults and Health,Services For Adults Under 65 Mental/Dis,Third Party Payments,Fees - Level 4,520,29/05/2018,1805-00277,0.00,220.00,R,Action First Recruitment Ltd,No
Http://opendatacommunities.org/id/metropolitan-district-council/leeds,Leeds City Council,31/05/2018,Adults and Health,Services For Adults Under 65 Mental/Dis,Third Party Payments,Fees - Level 4,520,29/05/2018,1805-00278,0.00,220.00,R,Action First Recruitment Ltd,No
Http://opendatacommunities.org/id/metropolitan-district-council/leeds,Leeds City Council,31/05/2018,Adults and Health,Services For Adults Under 65 Mental/Dis,Third Party Payments,Fees - Level 4,520,29/05/2018,1805-00279,0.00,220.00,R,Action First Recruitment Ltd,No
Http://opendatacommunities.org/id/metropolitan-district-council/leeds,Leeds City Council,31/05/2018,Adults and Health,Services For Adults Under 65 Mental/Dis,Third Party Payments,Fees - Level 4,520,29/05/2018,1805-00280,0.00,250.00,R,Action First Recruitment Ltd,No
Http://opendatacommunities.org/id/metropolitan-district-council/leeds,Leeds City Council,31/05/2018,Adults and Health,Services For Adults Under 65 Mental/Dis,Third Party Payments,Fees - Level 4,520,29/05/2018,1805-00281,0.00,250.00,R,Action First Recruitment Ltd,No
Http://opendatacommunities.org/id/metropolitan-district-council/leeds,Leeds City Council,31/05/2018,Adults and Health,Services For Adults Under 65 Mental/Dis,Third Party Payments,Fees - Level 4,520,29/05/2018,1805-00282,0.00,220.00,R,Action First Recruitment Ltd,No
Http://opendatacommunities.org/id/metropolitan-district-council/leeds,Leeds City Council,31/05/2018,Adults and Health,Services For Adults Under 65 Mental/Dis,Third Party Payments,Fees - Level 4,520,29/05/2018,1805-00283,0.00,220.00,R,Action First Recruitment Ltd,No
Http://opendatacommunities.org/id/metropolitan-district-council/leeds,Leeds City Council,31/05/2018,Adults and Health,Services For Adults Under 65 Mental/Dis,Third Party Payments,Fees - Level 4,520,29/05/2018,1805-00284,0.00,220.00,R,Action First Recruitment Ltd,No
Http://opendatacommunities.org/id/metropolitan-district-council/leeds,Leeds City Council,31/05/2018,Adults and Health,Services For Adults Under 65 Mental/Dis,Third Party Payments,Fees - Level 4,520,29/05/2018,1805-00285,0.00,220.00,R,Action First Recruitment Ltd,No
Http://opendatacommunities.org/id/metropolitan-district-council/leeds,Leeds City Council,31/05/2018,Adults and Health,Services For Adults Under 65 Mental/Dis,Third Party Payments,Fees - Level 4,520,29/05/2018,1805-00286,0.00,220.00,R,Action First Recruitment Ltd,No
Http://opendatacommunities.org/id/metropolitan-district-council/leeds,Leeds City Council,31/05/2018,Adults and Health,Services For Adults Under 65 Mental/Dis,Third Party Payments,Fees - Level 4,520,29/05/2018,1805-00287,0.00,250.00,R,Action First Recruitment Ltd,No
Http://opendatacommunities.org/id/metropolitan-district-council/leeds,Leeds City Council,31/05/2018,Adults and Health,Services For Adults Under 65 Mental/Dis,Third Party Payments,Fees - Level 4,520,29/05/2018,1805-00288,0.00,250.00,R,Action First Recruitment Ltd,No
Http://opendatacommunities.org/id/metropolitan-district-council/leeds,Leeds City Council,31/05/2018,Children and Families,Safeguarding Targeted & Specialist,Third Party Payments,Independent Fostering Agencies,509,25/05/2018,1805-00289,0.00,4622.40,R,Action For Children,No
Http://opendatacommunities.org/id/metropolitan-district-council/leeds,Leeds City Council,31/05/2018,Children and Families,Safeguarding Targeted & Specialist,Third Party Payments,Independent Fostering Agencies,509,25/05/2018,1805-00290,0.00,4622.40,R,Action For Children,No
Http://opendatacommunities.org/id/metropolitan-district-council/leeds,Leeds City Council,31/05/2018,Children and Families,Safeguarding Targeted & Specialist,Third Party Payments,Independent Fostering Agencies,509,25/05/2018,1805-00291,0.00,4622.40,R,Action For Children,No
Http://opendatacommunities.org/id/metropolitan-district-council/leeds,Leeds City Council,31/05/2018,Children and Families,Safeguarding Targeted & Specialist,Third Party Payments,Independent Fostering Agencies,509,25/05/2018,1805-00292,0.00,4622.40,R,Action For Children,No
Http://opendatacommunities.org/id/metropolitan-district-council/leeds,Leeds City Council,31/05/2018,Children and Families,Safeguarding Targeted & Specialist,Third Party Payments,Independent Fostering Agencies,509,16/05/2018,1805-00293,0.00,5163.67,R,Action For Children Services Ltd,No
Http://opendatacommunities.org/id/metropolitan-district-council/leeds,Leeds City Council,31/05/2018,Children and Families,Safeguarding Targeted & Specialist,Third Party Payments,Independent Fostering Agencies,509,25/05/2018,1805-00294,0.00,4997.10,R,Action For Children Services Ltd,No
Http://opendatacommunities.org/id/metropolitan-district-council/leeds,Leeds City Council,31/05/2018,Communities and Environment,Cleaner Neighbourhood Teams,Premises,Removal Of Workplace Waste,126,01/05/2018,1805-00295,0.00,110.00,R,Acumen Waste Services Ltd,No
Http://opendatacommunities.org/id/metropolitan-district-council/leeds,Leeds City Council,31/05/2018,Communities and Environment,Cleaner Neighbourhood Teams,Premises,Removal Of Workplace Waste,126,01/05/2018,1805-00296,0.00,110.00,R,Acumen Waste Services Ltd,No
Http://opendatacommunities.org/id/metropolitan-district-council/leeds,Leeds City Council,31/05/2018,Communities and Environment,Cleaner Neighbourhood Teams,Premises,Removal Of Workplace Waste,126,01/05/2018,1805-00297,0.00,110.00,R,Acumen Waste Services Ltd,No
Http://opendatacommunities.org/id/metropolitan-district-council/leeds,Leeds City Council,31/05/2018,Communities and Environment,Cleaner Neighbourhood Teams,Premises,Removal Of Workplace Waste,126,01/05/2018,1805-00298,0.00,110.00,R,Acumen Waste Services Ltd,No
Http://opendatacommunities.org/id/metropolitan-district-council/leeds,Leeds City Council,31/05/2018,Communities and Environment,Cleaner Neighbourhood Teams,Premises,Removal Of Workplace Waste,126,01/05/2018,1805-00299,0.00,110.00,R,Acumen Waste Services Ltd,No
Http://opendatacommunities.org/id/metropolitan-district-council/leeds,Leeds City Council,31/05/2018,Communities and Environment,Cleaner Neighbourhood Teams,Premises,Removal Of Workplace Waste,126,02/05/2018,1805-00300,0.00,110.00,R,Acumen Waste Services Ltd,No
Http://opendatacommunities.org/id/metropolitan-district-council/leeds,Leeds City Council,31/05/2018,Communities and Environment,Cleaner Neighbourhood Teams,Premises,Removal Of Workplace Waste,126,02/05/2018,1805-00301,0.00,110.00,R,Acumen Waste Services Ltd,No
Http://opendatacommunities.org/id/metropolitan-district-council/leeds,Leeds City Council,31/05/2018,Communities and Environment,Cleaner Neighbourhood Teams,Premises,Removal Of Workplace Waste,126,02/05/2018,1805-00302,0.00,110.00,R,Acumen Waste Services Ltd,No
Http://opendatacommunities.org/id/metropolitan-district-council/leeds,Leeds City Council,31/05/2018,Communities and Environment,Cleaner Neighbourhood Teams,Premises,Removal Of Workplace Waste,126,02/05/2018,1805-00303,0.00,110.00,R,Acumen Waste Services Ltd,No
Http://opendatacommunities.org/id/metropolitan-district-council/leeds,Leeds City Council,31/05/2018,Communities and Environment,Cleaner Neighbourhood Teams,Premises,Removal Of Workplace Waste,126,02/05/2018,1805-00304,0.00,110.00,R,Acumen Waste Services Ltd,No
Http://opendatacommunities.org/id/metropolitan-district-council/leeds,Leeds City Council,31/05/2018,Communities and Environment,Waste Management,Supplies and Services,Recycling & Reuse Charges,234,03/05/2018,1805-00305,0.00,6651.09,R,Acumen Waste Services Ltd,No
Http://opendatacommunities.org/id/metropolitan-district-council/leeds,Leeds City Council,31/05/2018,Communities and Environment,Cleaner Neighbourhood Teams,Premises,Removal Of Workplace Waste,126,03/05/2018,1805-00306,0.00,110.00,R,Acumen Waste Services Ltd,No
Http://opendatacommunities.org/id/metropolitan-district-council/leeds,Leeds City Council,31/05/2018,Communities and Environment,Cleaner Neighbourhood Teams,Premises,Removal Of Workplace Waste,126,03/05/2018,1805-00307,0.00,110.00,R,Acumen Waste Services Ltd,No
Http://opendatacommunities.org/id/metropolitan-district-council/leeds,Leeds City Council,31/05/2018,Communities and Environment,Cleaner Neighbourhood Teams,Premises,Removal Of Workplace Waste,126,03/05/2018,1805-00308,0.00,110.00,R,Acumen Waste Services Ltd,No
Http://opendatacommunities.org/id/metropolitan-district-council/leeds,Leeds City Council,31/05/2018,Communities and Environment,Cleaner Neighbourhood Teams,Premises,Removal Of Workplace Waste,126,03/05/2018,1805-00309,0.00,110.00,R,Acumen Waste Services Ltd,No
Http://opendatacommunities.org/id/metropolitan-district-council/leeds,Leeds City Council,31/05/2018,Communities and Environment,Cleaner Neighbourhood Teams,Premises,Removal Of Workplace Waste,126,03/05/2018,1805-00310,0.00,110.00,R,Acumen Waste Services Ltd,No
Http://opendatacommunities.org/id/metropolitan-district-council/leeds,Leeds City Council,31/05/2018,Communities and Environment,Cleaner Neighbourhood Teams,Premises,Removal Of Workplace Waste,126,03/05/2018,1805-00311,0.00,110.00,R,Acumen Waste Services Ltd,No
Http://opendatacommunities.org/id/metropolitan-district-council/leeds,Leeds City Council,31/05/2018,Communities and Environment,Cleaner Neighbourhood Teams,Premises,Removal Of Workplace Waste,126,03/05/2018,1805-00312,0.00,110.00,R,Acumen Waste Services Ltd,No
Http://opendatacommunities.org/id/metropolitan-district-council/leeds,Leeds City Council,31/05/2018,Communities and Environment,Cleaner Neighbourhood Teams,Premises,Removal Of Workplace Waste,126,03/05/2018,1805-00313,0.00,110.00,R,Acumen Waste Services Ltd,No
Http://opendatacommunities.org/id/metropolitan-district-council/leeds,Leeds City Council,31/05/2018,Communities and Environment,Cleaner Neighbourhood Teams,Premises,Removal Of Workplace Waste,126,03/05/2018,1805-00314,0.00,110.00,R,Acumen Waste Services Ltd,No
Http://opendatacommunities.org/id/metropolitan-district-council/leeds,Leeds City Council,31/05/2018,Communities and Environment,Cleaner Neighbourhood Teams,Premises,Removal Of Workplace Waste,126,03/05/2018,1805-00315,0.00,110.00,R,Acumen Waste Services Ltd,No
Http://opendatacommunities.org/id/metropolitan-district-council/leeds,Leeds City Council,31/05/2018,Communities and Environment,Waste Management,Supplies and Services,Recycling & Reuse Charges,234,11/05/2018,1805-00316,0.00,5650.78,R,Acumen Waste Services Ltd,No
Http://opendatacommunities.org/id/metropolitan-district-council/leeds,Leeds City Council,31/05/2018,Communities and Environment,Cleaner Neighbourhood Teams,Premises,Removal Of Workplace Waste,126,11/05/2018,1805-00317,0.00,110.00,R,Acumen Waste Services Ltd,No
Http://opendatacommunities.org/id/metropolitan-district-council/leeds,Leeds City Council,31/05/2018,Communities and Environment,Cleaner Neighbourhood Teams,Premises,Removal Of Workplace Waste,126,11/05/2018,1805-00318,0.00,110.00,R,Acumen Waste Services Ltd,No
Http://opendatacommunities.org/id/metropolitan-district-council/leeds,Leeds City Council,31/05/2018,Communities and Environment,Cleaner Neighbourhood Teams,Premises,Removal Of Workplace Waste,126,11/05/2018,1805-00319,0.00,110.00,R,Acumen Waste Services Ltd,No
Http://opendatacommunities.org/id/metropolitan-district-council/leeds,Leeds City Council,31/05/2018,Communities and Environment,Cleaner Neighbourhood Teams,Premises,Removal Of Workplace Waste,126,11/05/2018,1805-00320,0.00,110.00,R,Acumen Waste Services Ltd,No
Http://opendatacommunities.org/id/metropolitan-district-council/leeds,Leeds City Council,31/05/2018,Communities and Environment,Cleaner Neighbourhood Teams,Premises,Removal Of Workplace Waste,126,11/05/2018,1805-00321,0.00,110.00,R,Acumen Waste Services Ltd,No
Http://opendatacommunities.org/id/metropolitan-district-council/leeds,Leeds City Council,31/05/2018,Communities and Environment,Waste Management,Supplies and Services,Recycling & Reuse Charges,234,16/05/2018,1805-00322,0.00,9389.38,R,Acumen Waste Services Ltd,No
Http://opendatacommunities.org/id/metropolitan-district-council/leeds,Leeds City Council,31/05/2018,Communities and Environment,Cleaner Neighbourhood Teams,Premises,Removal Of Workplace Waste,126,16/05/2018,1805-00323,0.00,110.00,R,Acumen Waste Services Ltd,No
Http://opendatacommunities.org/id/metropolitan-district-council/leeds,Leeds City Council,31/05/2018,Communities and Environment,Cleaner Neighbourhood Teams,Premises,Removal Of Workplace Waste,126,16/05/2018,1805-00324,0.00,110.00,R,Acumen Waste Services Ltd,No
Http://opendatacommunities.org/id/metropolitan-district-council/leeds,Leeds City Council,31/05/2018,Communities and Environment,Cleaner Neighbourhood Teams,Premises,Removal Of Workplace Waste,126,16/05/2018,1805-00325,0.00,110.00,R,Acumen Waste Services Ltd,No
Http://opendatacommunities.org/id/metropolitan-district-council/leeds,Leeds City Council,31/05/2018,Communities and Environment,Cleaner Neighbourhood Teams,Premises,Removal Of Workplace Waste,126,18/05/2018,1805-00326,0.00,110.00,R,Acumen Waste Services Ltd,No
Http://opendatacommunities.org/id/metropolitan-district-council/leeds,Leeds City Council,31/05/2018,Communities and Environment,Waste Management,Supplies and Services,Recycling & Reuse Charges,234,24/05/2018,1805-00327,0.00,5447.77,R,Acumen Waste Services Ltd,No
Http://opendatacommunities.org/id/metropolitan-district-council/leeds,Leeds City Council,31/05/2018,Communities and Environment,Cleaner Neighbourhood Teams,Premises,Removal Of Workplace Waste,126,25/05/2018,1805-00328,0.00,110.00,R,Acumen Waste Services Ltd,No
Http://opendatacommunities.org/id/metropolitan-district-council/leeds,Leeds City Council,31/05/2018,Communities and Environment,Cleaner Neighbourhood Teams,Premises,Removal Of Workplace Waste,126,25/05/2018,1805-00329,0.00,110.00,R,Acumen Waste Services Ltd,No
Http://opendatacommunities.org/id/metropolitan-district-council/leeds,Leeds City Council,31/05/2018,Communities and Environment,Cleaner Neighbourhood Teams,Premises,Removal Of Workplace Waste,126,25/05/2018,1805-00330,0.00,110.00,R,Acumen Waste Services Ltd,No
Http://opendatacommunities.org/id/metropolitan-district-council/leeds,Leeds City Council,31/05/2018,Communities and Environment,Cleaner Neighbourhood Teams,Premises,Removal Of Workplace Waste,126,29/05/2018,1805-00331,0.00,110.00,R,Acumen Waste Services Ltd,No
Http://opendatacommunities.org/id/metropolitan-district-council/leeds,Leeds City Council,31/05/2018,Communities and Environment,Waste Management,Supplies and Services,Recycling & Reuse Charges,234,29/05/2018,1805-00332,0.00,9526.73,R,Acumen Waste Services Ltd,No
Http://opendatacommunities.org/id/metropolitan-district-council/leeds,Leeds City Council,31/05/2018,Communities and Environment,Cleaner Neighbourhood Teams,Premises,Removal Of Workplace Waste,126,29/05/2018,1805-00333,0.00,110.00,R,Acumen Waste Services Ltd,No
Http://opendatacommunities.org/id/metropolitan-district-council/leeds,Leeds City Council,31/05/2018,Communities and Environment,Parks and Countryside,Supplies and Services,Resaleable Materials,204,29/05/2018,1805-00334,0.00,207.90,R,Acushnet Europe Limited,No
Http://opendatacommunities.org/id/metropolitan-district-council/leeds,Leeds City Council,31/05/2018,Communities and Environment,Parks and Countryside,Supplies and Services,Resaleable Materials,204,29/05/2018,1805-00335,0.00,601.65,R,Acushnet Europe Limited,No
Http://opendatacommunities.org/id/metropolitan-district-council/leeds,Leeds City Council,31/05/2018,Resources and Housing,Shared Services,Supplies and Services,Other Hired And Contracted Services,265,16/05/2018,1805-00336,0.00,473.00,R,Ad3 Envelope Printers Limited,No
Http://opendatacommunities.org/id/metropolitan-district-council/leeds,Leeds City Council,31/05/2018,Resources and Housing,Shared Services,Supplies and Services,Operational Materials,205,25/05/2018,1805-00337,0.00,705.00,R,Ad3 Envelope Printers Limited,No
Http://opendatacommunities.org/id/metropolitan-district-council/leeds,Leeds City Council,31/05/2018,City Development,Libraries  Arts & Heritage,Supplies and Services,Bought In Professional Services,277,04/05/2018,1805-00338,0.00,1000.00,R,Adam Clarke,No
Http://opendatacommunities.org/id/metropolitan-district-council/leeds,Leeds City Council,31/05/2018,Adults and Health,Services For Older People - 65 And Over,Third Party Payments,Nursing Home,570,02/05/2018,1805-00339,0.00,3761.12,R,Adbolton Hall,No
Http://opendatacommunities.org/id/metropolitan-district-council/leeds,Leeds City Council,31/05/2018,Adults and Health,Services For Older People - 65 And Over,Third Party Payments,Nursing Home,570,30/05/2018,1805-00340,0.00,4173.98,R,Adbolton Hall,No
Http://opendatacommunities.org/id/metropolitan-district-council/leeds,Leeds City Council,31/05/2018,Children and Families,Safeguarding Targeted & Specialist,Supplies and Services,Conference Meetings,253,22/05/2018,1805-00341,0.00,780.00,R,Adcs,No
Http://opendatacommunities.org/id/metropolitan-district-council/leeds,Leeds City Council,31/05/2018,Resources and Housing,HRA Housing Leeds,Capital,Internal Fees,6,25/05/2018,1805-00342,0.00,4984.50,C,Addleshaw Goddard Llp,No
Http://opendatacommunities.org/id/metropolitan-district-council/leeds,Leeds City Council,31/05/2018,Resources and Housing,Technology  ,Employees,Agency Staff,8,03/04/2018,1805-00343,0.00,9265.00,R,Adecco Alfred Marks,Yes
Http://opendatacommunities.org/id/metropolitan-district-council/leeds,Leeds City Council,31/05/2018,Resources and Housing,Technology  ,Employees,Agency Staff,8,16/04/2018,1805-00344,0.00,23228.59,R,Adecco Alfred Marks,Yes
Http://opendatacommunities.org/id/metropolitan-district-council/leeds,Leeds City Council,31/05/2018,Resources and Housing,Technology  ,Employees,Agency Staff,8,20/04/2018,1805-00345,0.00,5042.04,R,Adecco Alfred Marks,Yes
Http://opendatacommunities.org/id/metropolitan-district-council/leeds,Leeds City Council,31/05/2018,Resources and Housing,Technology  ,Employees,Agency Staff,8,27/04/2018,1805-00346,0.00,59757.42,R,Adecco Alfred Marks,Yes
Http://opendatacommunities.org/id/metropolitan-district-council/leeds,Leeds City Council,31/05/2018,Communities and Environment,Elections  Licensing and Registration,Premises,Rents,141,14/05/2018,1805-00347,0.00,320.00,R,Adel Methodist Church Trustees,No
Http://opendatacommunities.org/id/metropolitan-district-council/leeds,Leeds City Council,31/05/2018,Adults and Health,Services For Older People - 65 And Over,Third Party Payments,Nursing Home,570,02/05/2018,1805-00348,0.00,1130.76,R,Aden House,No
Http://opendatacommunities.org/id/metropolitan-district-council/leeds,Leeds City Council,31/05/2018,Adults and Health,Services For Older People - 65 And Over,Third Party Payments,Nursing Home,570,30/05/2018,1805-00349,0.00,1130.76,R,Aden House,No
Http://opendatacommunities.org/id/metropolitan-district-council/leeds,Leeds City Council,31/05/2018,Resources and Housing,Leeds Building Services,Supplies and Services,Operational Materials,205,03/05/2018,1805-00350,0.00,49.53,R,Adi Global,No
Http://opendatacommunities.org/id/metropolitan-district-council/leeds,Leeds City Council,31/05/2018,Resources and Housing,Leeds Building Services,Supplies and Services,Operational Materials,205,03/05/2018,1805-00351,0.00,48.68,R,Adi Global,No
Http://opendatacommunities.org/id/metropolitan-district-council/leeds,Leeds City Council,31/05/2018,Resources and Housing,Leeds Building Services,Supplies and Services,Operational Materials,205,03/05/2018,1805-00352,0.00,585.00,R,Adi Global,No
Http://opendatacommunities.org/id/metropolitan-district-council/leeds,Leeds City Council,31/05/2018,Resources and Housing,Leeds Building Services,Supplies and Services,Operational Materials,205,09/05/2018,1805-00353,0.00,89.76,R,Adi Global,No
Http://opendatacommunities.org/id/metropolitan-district-council/leeds,Leeds City Council,31/05/2018,Resources and Housing,Leeds Building Services,Supplies and Services,Operational Materials,205,09/05/2018,1805-00354,0.00,541.94,R,Adi Global,No
Http://opendatacommunities.org/id/metropolitan-district-council/leeds,Leeds City Council,31/05/2018,Resources and Housing,Leeds Building Services,Supplies and Services,Operational Materials,205,09/05/2018,1805-00355,0.00,3693.63,R,Adi Global,No
Http://opendatacommunities.org/id/metropolitan-district-council/leeds,Leeds City Council,31/05/2018,Resources and Housing,Leeds Building Services,Supplies and Services,Operational Materials,205,09/05/2018,1805-00356,0.00,717.93,R,Adi Global,No
Http://opendatacommunities.org/id/metropolitan-district-council/leeds,Leeds City Council,31/05/2018,Resources and Housing,Leeds Building Services,Supplies and Services,Operational Materials,205,09/05/2018,1805-00357,0.00,99.06,R,Adi Global,No
Http://opendatacommunities.org/id/metropolitan-district-council/leeds,Leeds City Council,31/05/2018,Resources and Housing,Leeds Building Services,Supplies and Services,Operational Materials,205,14/05/2018,1805-00358,0.00,68.88,R,Adi Global,No
Http://opendatacommunities.org/id/metropolitan-district-council/leeds,Leeds City Council,31/05/2018,Resources and Housing,Leeds Building Services,Supplies and Services,Operational Materials,205,14/05/2018,1805-00359,0.00,1137.22,R,Adi Global,No
Http://opendatacommunities.org/id/metropolitan-district-council/leeds,Leeds City Council,31/05/2018,Resources and Housing,Leeds Building Services,Supplies and Services,Operational Materials,205,14/05/2018,1805-00360,0.00,1753.40,R,Adi Global,No
Http://opendatacommunities.org/id/metropolitan-district-council/leeds,Leeds City Council,31/05/2018,Resources and Housing,Leeds Building Services,Supplies and Services,Operational Materials,205,14/05/2018,1805-00361,0.00,25.67,R,Adi Global,No
Http://opendatacommunities.org/id/metropolitan-district-council/leeds,Leeds City Council,31/05/2018,Resources and Housing,Leeds Building Services,Supplies and Services,Operational Materials,205,14/05/2018,1805-00362,0.00,163.32,R,Adi Global,No
Http://opendatacommunities.org/id/metropolitan-district-council/leeds,Leeds City Council,31/05/2018,Resources and Housing,Leeds Building Services,Supplies and Services,Operational Materials,205,14/05/2018,1805-00363,0.00,2944.75,R,Adi Global,No
Http://opendatacommunities.org/id/metropolitan-district-council/leeds,Leeds City Council,31/05/2018,Resources and Housing,Leeds Building Services,Supplies and Services,Operational Materials,205,18/05/2018,1805-00364,0.00,2430.88,R,Adi Global,No
Http://opendatacommunities.org/id/metropolitan-district-council/leeds,Leeds City Council,31/05/2018,Resources and Housing,Leeds Building Services,Supplies and Services,Operational Materials,205,29/05/2018,1805-00365,0.00,13.42,R,Adi Global,No
Http://opendatacommunities.org/id/metropolitan-district-council/leeds,Leeds City Council,31/05/2018,Resources and Housing,Leeds Building Services,Supplies and Services,Operational Materials,205,29/05/2018,1805-00366,0.00,22.89,R,Adi Global,No
Http://opendatacommunities.org/id/metropolitan-district-council/leeds,Leeds City Council,31/05/2018,Resources and Housing,Leeds Building Services,Supplies and Services,Operational Materials,205,29/05/2018,1805-00367,0.00,14.75,R,Adi Global,No
Http://opendatacommunities.org/id/metropolitan-district-council/leeds,Leeds City Council,31/05/2018,Resources and Housing,Leeds Building Services,Supplies and Services,Operational Materials,205,29/05/2018,1805-00368,0.00,14.75,R,Adi Global,No
Http://opendatacommunities.org/id/metropolitan-district-council/leeds,Leeds City Council,31/05/2018,Resources and Housing,Leeds Building Services,Supplies and Services,Operational Materials,205,29/05/2018,1805-00369,0.00,14.75,R,Adi Global,No
Http://opendatacommunities.org/id/metropolitan-district-council/leeds,Leeds City Council,31/05/2018,Resources and Housing,Leeds Building Services,Supplies and Services,Operational Materials,205,29/05/2018,1805-00370,0.00,14.75,R,Adi Global,No
Http://opendatacommunities.org/id/metropolitan-district-council/leeds,Leeds City Council,31/05/2018,Resources and Housing,Leeds Building Services,Supplies and Services,Operational Materials,205,29/05/2018,1805-00371,0.00,2337.60,R,Adi Global,No
Http://opendatacommunities.org/id/metropolitan-district-council/leeds,Leeds City Council,31/05/2018,Resources and Housing,Leeds Building Services,Supplies and Services,Operational Materials,205,31/05/2018,1805-00372,0.00,38.34,R,Adi Global,No
Http://opendatacommunities.org/id/metropolitan-district-council/leeds,Leeds City Council,31/05/2018,Communities and Environment,Community Safety  ,Supplies and Services,Other Hired And Contracted Services,265,12/04/2018,1805-00373,0.00,274.56,R,Adi-Gardiner Ltd,Yes
Http://opendatacommunities.org/id/metropolitan-district-council/leeds,Leeds City Council,31/05/2018,Communities and Environment,Community Safety  ,Supplies and Services,Other Hired And Contracted Services,265,12/04/2018,1805-00374,0.00,327.04,R,Adi-Gardiner Ltd,Yes
Http://opendatacommunities.org/id/metropolitan-district-council/leeds,Leeds City Council,31/05/2018,Adults and Health,Services For Older People - 65 And Over,Third Party Payments,Home Care,568,30/05/2018,1805-00375,0.00,4288.00,R,Adjuvo (North) Support For Living Ltd,No
Http://opendatacommunities.org/id/metropolitan-district-council/leeds,Leeds City Council,31/05/2018,Children and Families,Safeguarding Targeted & Specialist,Third Party Payments,Independent Fostering Agencies,509,03/05/2018,1805-00376,0.00,2945.00,R,Adolescent And Childrens Trust,No
Http://opendatacommunities.org/id/metropolitan-district-council/leeds,Leeds City Council,31/05/2018,Children and Families,Safeguarding Targeted & Specialist,Third Party Payments,Independent Fostering Agencies,509,03/05/2018,1805-00377,0.00,2945.00,R,Adolescent And Childrens Trust,No
Http://opendatacommunities.org/id/metropolitan-district-council/leeds,Leeds City Council,31/05/2018,Children and Families,Safeguarding Targeted & Specialist,Third Party Payments,Independent Fostering Agencies,509,03/05/2018,1805-00378,0.00,2945.00,R,Adolescent And Childrens Trust,No
Http://opendatacommunities.org/id/metropolitan-district-council/leeds,Leeds City Council,31/05/2018,Children and Families,Safeguarding Targeted & Specialist,Third Party Payments,Independent Fostering Agencies,509,03/05/2018,1805-00379,0.00,2945.00,R,Adolescent And Childrens Trust,No
Http://opendatacommunities.org/id/metropolitan-district-council/leeds,Leeds City Council,31/05/2018,Children and Families,Safeguarding Targeted & Specialist,Third Party Payments,Independent Fostering Agencies,509,03/05/2018,1805-00380,0.00,3224.00,R,Adolescent And Childrens Trust,No
Http://opendatacommunities.org/id/metropolitan-district-council/leeds,Leeds City Council,31/05/2018,Children and Families,Safeguarding Targeted & Specialist,Third Party Payments,Independent Fostering Agencies,509,03/05/2018,1805-00381,0.00,832.00,R,Adolescent And Childrens Trust,No
Http://opendatacommunities.org/id/metropolitan-district-council/leeds,Leeds City Council,31/05/2018,Children and Families,Safeguarding Targeted & Specialist,Third Party Payments,Independent Fostering Agencies,509,03/05/2018,1805-00382,0.00,200.00,R,Adolescent And Childrens Trust,No
Http://opendatacommunities.org/id/metropolitan-district-council/leeds,Leeds City Council,31/05/2018,Children and Families,Safeguarding Targeted & Specialist,Third Party Payments,Independent Fostering Agencies,509,03/05/2018,1805-00383,0.00,208.00,R,Adolescent And Childrens Trust,No
Http://opendatacommunities.org/id/metropolitan-district-council/leeds,Leeds City Council,31/05/2018,Children and Families,Safeguarding Targeted & Specialist,Third Party Payments,Placement Support,550,02/05/2018,1805-00384,0.00,285.72,R,REDACTED PERSONAL DATA,No
Http://opendatacommunities.org/id/metropolitan-district-council/leeds,Leeds City Council,31/05/2018,Children and Families,Safeguarding Targeted & Specialist,Third Party Payments,Placement Support,550,11/05/2018,1805-00385,0.00,142.86,R,REDACTED PERSONAL DATA,No
Http://opendatacommunities.org/id/metropolitan-district-council/leeds,Leeds City Council,31/05/2018,Children and Families,Safeguarding Targeted & Specialist,Third Party Payments,Section 17,551,18/05/2018,1805-00386,0.00,142.86,R,REDACTED PERSONAL DATA,No
Http://opendatacommunities.org/id/metropolitan-district-council/leeds,Leeds City Council,31/05/2018,Children and Families,Safeguarding Targeted & Specialist,Third Party Payments,Placement Support,550,25/05/2018,1805-00387,0.00,142.86,R,REDACTED PERSONAL DATA,No
Http://opendatacommunities.org/id/metropolitan-district-council/leeds,Leeds City Council as Accountable Body,31/05/2018,Social Services Pooled Budgets,Jcs For People With Learning Disabilitie,Third Party Payments,Residential,580,24/05/2018,1805-00388,0.00,2609.36,R,Adrian House,No
Http://opendatacommunities.org/id/metropolitan-district-council/leeds,Leeds City Council,31/05/2018,Communities and Environment,Parks and Countryside,Capital,Construction,3,22/05/2018,1805-00389,0.00,1500.00,C,Adrian Ray Photography Ltd,No
Http://opendatacommunities.org/id/metropolitan-district-council/leeds,Leeds City Council,31/05/2018,Resources and Housing,Corporate Property Management,Premises,Maintenance Of Buildings,101,02/05/2018,1805-00390,0.00,483.32,R,Adt Fire And Security Plc,No
Http://opendatacommunities.org/id/metropolitan-district-council/leeds,Leeds City Council,31/05/2018,Resources and Housing,Corporate Property Management,Premises,Maintenance Of Buildings,101,09/05/2018,1805-00391,0.00,159.00,R,Adt Fire And Security Plc,No
Http://opendatacommunities.org/id/metropolitan-district-council/leeds,Leeds City Council,31/05/2018,Strategic Landlord,Housing Management,Premises,Premises Security Services,162,14/05/2018,1805-00392,0.00,148.35,R,Adt Fire And Security Plc,No
Http://opendatacommunities.org/id/metropolitan-district-council/leeds,Leeds City Council,31/05/2018,Resources and Housing,Corporate Property Management,Premises,Maintenance Of Buildings,101,21/05/2018,1805-00393,0.00,159.00,R,Adt Fire And Security Plc,No
Http://opendatacommunities.org/id/metropolitan-district-council/leeds,Leeds City Council,31/05/2018,Resources and Housing,Commercial Services  ,Supplies and Services,Operational Materials,205,05/04/2018,1805-00394,0.00,304.80,R,Adt Leeds Cc,Yes
Http://opendatacommunities.org/id/metropolitan-district-council/leeds,Leeds City Council as Accountable Body,31/05/2018,Social Services Pooled Budgets,Jcs For People With Learning Disabilitie,Third Party Payments,Sheltered Accommodation,569,04/05/2018,1805-00395,0.00,1332.20,R,Adult Placement Services,No
Http://opendatacommunities.org/id/metropolitan-district-council/leeds,Leeds City Council as Accountable Body,31/05/2018,Social Services Pooled Budgets,Jcs For People With Learning Disabilitie,Third Party Payments,Sheltered Accommodation,569,29/05/2018,1805-00396,0.00,113.07,R,Adult Placement Services,No
Http://opendatacommunities.org/id/metropolitan-district-council/leeds,Leeds City Council as Accountable Body,31/05/2018,Social Services Pooled Budgets,Jcs For People With Learning Disabilitie,Third Party Payments,Sheltered Accommodation,569,31/05/2018,1805-00397,0.00,1332.20,R,Adult Placement Services,No
Http://opendatacommunities.org/id/metropolitan-district-council/leeds,Leeds City Council,31/05/2018,City Development,Recreation,Supplies and Services,External Audit Fees,261,03/05/2018,1805-00398,0.00,135.00,R,Advance Stocks Ltd,No
Http://opendatacommunities.org/id/metropolitan-district-council/leeds,Leeds City Council,31/05/2018,City Development,Recreation,Supplies and Services,External Audit Fees,261,03/05/2018,1805-00399,0.00,85.00,R,Advance Stocks Ltd,No
Http://opendatacommunities.org/id/metropolitan-district-council/leeds,Leeds City Council,31/05/2018,City Development,Libraries  Arts & Heritage,Supplies and Services,External Audit Fees,261,03/05/2018,1805-00400,0.00,90.00,R,Advance Stocks Ltd,No
Http://opendatacommunities.org/id/metropolitan-district-council/leeds,Leeds City Council,31/05/2018,City Development,Libraries  Arts & Heritage,Supplies and Services,External Audit Fees,261,03/05/2018,1805-00401,0.00,90.00,R,Advance Stocks Ltd,No
Http://opendatacommunities.org/id/metropolitan-district-council/leeds,Leeds City Council,31/05/2018,City Development,Libraries  Arts & Heritage,Supplies and Services,External Audit Fees,261,03/05/2018,1805-00402,0.00,85.00,R,Advance Stocks Ltd,No
Http://opendatacommunities.org/id/metropolitan-district-council/leeds,Leeds City Council,31/05/2018,City Development,Recreation,Supplies and Services,External Audit Fees,261,25/05/2018,1805-00403,0.00,135.00,R,Advance Stocks Ltd,No
Http://opendatacommunities.org/id/metropolitan-district-council/leeds,Leeds City Council,31/05/2018,City Development,Recreation,Supplies and Services,External Audit Fees,261,25/05/2018,1805-00404,0.00,85.00,R,Advance Stocks Ltd,No
Http://opendatacommunities.org/id/metropolitan-district-council/leeds,Leeds City Council,31/05/2018,City Development,Libraries  Arts & Heritage,Supplies and Services,External Audit Fees,261,31/05/2018,1805-00405,0.00,90.00,R,Advance Stocks Ltd,No
Http://opendatacommunities.org/id/metropolitan-district-council/leeds,Leeds City Council,31/05/2018,Children and Families,Safeguarding Targeted & Specialist,Support Services,Legal Disbursements,411,17/05/2018,1805-00406,0.00,968.97,R,Advanced Child Care Assessments Ltd,No
Http://opendatacommunities.org/id/metropolitan-district-council/leeds,Leeds City Council as Accountable Body,31/05/2018,Social Services Pooled Budgets,Jcs For People With Learning Disabilitie,Third Party Payments,Residential,580,02/05/2018,1805-00407,0.00,24530.39,R,Advitam Ltd,No
Http://opendatacommunities.org/id/metropolitan-district-council/leeds,Leeds City Council as Accountable Body,31/05/2018,Social Services Pooled Budgets,Jcs For People With Learning Disabilitie,Third Party Payments,Residential,580,30/05/2018,1805-00408,0.00,17782.08,R,Advitam Ltd,No
Http://opendatacommunities.org/id/metropolitan-district-council/leeds,Leeds City Council,31/05/2018,Adults and Health,Services For Adults Under 65 Mental/Dis,Third Party Payments,Payments To Voluntary Organisations,561,01/05/2018,1805-00409,0.00,733.56,R,Advonet,No
Http://opendatacommunities.org/id/metropolitan-district-council/leeds,Leeds City Council,31/05/2018,Adults and Health,Services For Adults Under 65 Mental/Dis,Third Party Payments,Payments To Voluntary Organisations,561,01/05/2018,1805-00410,0.00,10305.59,R,Advonet,No
Http://opendatacommunities.org/id/metropolitan-district-council/leeds,Leeds City Council,31/05/2018,Adults and Health,Services For Adults Under 65 Mental/Dis,Third Party Payments,Payments To Voluntary Organisations,561,10/05/2018,1805-00411,0.00,9451.84,R,Advonet,No
Http://opendatacommunities.org/id/metropolitan-district-council/leeds,Leeds City Council,31/05/2018,Adults and Health,Services For Adults Under 65 Mental/Dis,Third Party Payments,Payments To Voluntary Organisations,561,11/05/2018,1805-00412,0.00,22861.07,R,Advonet,No
Http://opendatacommunities.org/id/metropolitan-district-council/leeds,Leeds City Council as Accountable Body,31/05/2018,Social Services Pooled Budgets,Jcs For People With Learning Disabilitie,Third Party Payments,Other Agency Services,561,14/05/2018,1805-00413,0.00,150.00,R,Advonet,No
Http://opendatacommunities.org/id/metropolitan-district-council/leeds,Leeds City Council as Accountable Body,31/05/2018,Social Services Pooled Budgets,Jcs For People With Learning Disabilitie,Third Party Payments,Other Agency Services,561,14/05/2018,1805-00414,0.00,84.90,R,Advonet,No
Http://opendatacommunities.org/id/metropolitan-district-council/leeds,Leeds City Council as Accountable Body,31/05/2018,Social Services Pooled Budgets,Jcs For People With Learning Disabilitie,Third Party Payments,Other Agency Services,561,14/05/2018,1805-00415,0.00,6567.66,R,Advonet,No
Http://opendatacommunities.org/id/metropolitan-district-council/leeds,Leeds City Council as Accountable Body,31/05/2018,Social Services Pooled Budgets,Jcs For People With Learning Disabilitie,Third Party Payments,Other Agency Services,561,14/05/2018,1805-00416,0.00,11372.30,R,Advonet,No
Http://opendatacommunities.org/id/metropolitan-district-council/leeds,Leeds City Council as Accountable Body,31/05/2018,Social Services Pooled Budgets,Jcs For People With Learning Disabilitie,Third Party Payments,Other Agency Services,561,14/05/2018,1805-00417,0.00,117.30,R,Advonet,No
Http://opendatacommunities.org/id/metropolitan-district-council/leeds,Leeds City Council as Accountable Body,31/05/2018,Social Services Pooled Budgets,Jcs For People With Learning Disabilitie,Third Party Payments,Other Agency Services,561,14/05/2018,1805-00418,0.00,90.00,R,Advonet,No
Http://opendatacommunities.org/id/metropolitan-district-council/leeds,Leeds City Council as Accountable Body,31/05/2018,Social Services Pooled Budgets,Jcs For People With Learning Disabilitie,Third Party Payments,Other Agency Services,561,15/05/2018,1805-00419,0.00,147.60,R,Advonet,No
Http://opendatacommunities.org/id/metropolitan-district-council/leeds,Leeds City Council as Accountable Body,31/05/2018,Social Services Pooled Budgets,Jcs For People With Learning Disabilitie,Third Party Payments,Other Agency Services,561,15/05/2018,1805-00420,0.00,9.90,R,Advonet,No
Http://opendatacommunities.org/id/metropolitan-district-council/leeds,Leeds City Council as Accountable Body,31/05/2018,Social Services Pooled Budgets,Jcs For People With Learning Disabilitie,Third Party Payments,Other Agency Services,561,15/05/2018,1805-00421,0.00,24.90,R,Advonet,No
Http://opendatacommunities.org/id/metropolitan-district-council/leeds,Leeds City Council as Accountable Body,31/05/2018,Social Services Pooled Budgets,Jcs For People With Learning Disabilitie,Third Party Payments,Other Agency Services,561,15/05/2018,1805-00422,0.00,30.00,R,Advonet,No
Http://opendatacommunities.org/id/metropolitan-district-council/leeds,Leeds City Council as Accountable Body,31/05/2018,Social Services Pooled Budgets,Jcs For People With Learning Disabilitie,Third Party Payments,Other Agency Services,561,15/05/2018,1805-00423,0.00,50.10,R,Advonet,No
Http://opendatacommunities.org/id/metropolitan-district-council/leeds,Leeds City Council as Accountable Body,31/05/2018,Social Services Pooled Budgets,Jcs For People With Learning Disabilitie,Third Party Payments,Other Agency Services,561,15/05/2018,1805-00424,0.00,87.60,R,Advonet,No
Http://opendatacommunities.org/id/metropolitan-district-council/leeds,Leeds City Council as Accountable Body,31/05/2018,Social Services Pooled Budgets,Jcs For People With Learning Disabilitie,Third Party Payments,Other Agency Services,561,15/05/2018,1805-00425,0.00,144.90,R,Advonet,No
Http://opendatacommunities.org/id/metropolitan-district-council/leeds,Leeds City Council as Accountable Body,31/05/2018,Social Services Pooled Budgets,Jcs For People With Learning Disabilitie,Third Party Payments,Other Agency Services,561,17/05/2018,1805-00426,0.00,99.90,R,Advonet,No
Http://opendatacommunities.org/id/metropolitan-district-council/leeds,Leeds City Council as Accountable Body,31/05/2018,Social Services Pooled Budgets,Jcs For People With Learning Disabilitie,Third Party Payments,Other Agency Services,561,25/05/2018,1805-00427,0.00,250.20,R,Advonet,No
Http://opendatacommunities.org/id/metropolitan-district-council/leeds,Leeds City Council,31/05/2018,Strategic Accounts,Miscellaneous,Supplies and Services,Non-Recurring Grants,227,21/05/2018,1805-00428,0.00,500.00,R,Adwalton Cricket Club,No
Http://opendatacommunities.org/id/metropolitan-district-council/leeds,Leeds City Council,31/05/2018,City Development,Highways,Capital,Other Costs,7,23/05/2018,1805-00429,0.00,21015.12,C,Aecom Limited,No
Http://opendatacommunities.org/id/metropolitan-district-council/leeds,Leeds City Council,31/05/2018,City Development,Economic Development,Capital,Other Costs,7,31/05/2018,1805-00430,0.00,1000.00,C,Aecom Limited,No
Http://opendatacommunities.org/id/metropolitan-district-council/leeds,Leeds City Council,31/05/2018,Resources and Housing,Leeds Building Services,Supplies and Services,Other Hired And Contracted Services,265,23/05/2018,1805-00431,0.00,210.00,R,Aerial Satellite Link,No
Http://opendatacommunities.org/id/metropolitan-district-council/leeds,Leeds City Council,31/05/2018,Communities and Environment,Customer Access,Supplies and Services,Other Hired And Contracted Services,265,03/05/2018,1805-00432,0.00,12.00,R,Afbedel Ltd,No
Http://opendatacommunities.org/id/metropolitan-district-council/leeds,Leeds City Council,31/05/2018,Communities and Environment,Elections  Licensing and Registration,Premises,Rents,141,15/05/2018,1805-00433,0.00,155.00,R,Affinity Sutton,No
Http://opendatacommunities.org/id/metropolitan-district-council/leeds,Leeds City Council as Accountable Body,31/05/2018,Social Services Pooled Budgets,Jcs For People With Learning Disabilitie,Third Party Payments,Day Centre,564,02/05/2018,1805-00434,0.00,1232.64,R,Affinity Trust,No
Http://opendatacommunities.org/id/metropolitan-district-council/leeds,Leeds City Council as Accountable Body,31/05/2018,Social Services Pooled Budgets,Jcs For People With Learning Disabilitie,Third Party Payments,Day Centre,564,03/05/2018,1805-00435,0.00,2031.48,R,Affinity Trust,No
Http://opendatacommunities.org/id/metropolitan-district-council/leeds,Leeds City Council as Accountable Body,31/05/2018,Social Services Pooled Budgets,Jcs For People With Learning Disabilitie,Third Party Payments,Day Centre,564,03/05/2018,1805-00436,0.00,2031.48,R,Affinity Trust,No
Http://opendatacommunities.org/id/metropolitan-district-council/leeds,Leeds City Council as Accountable Body,31/05/2018,Social Services Pooled Budgets,Jcs For People With Learning Disabilitie,Third Party Payments,Day Centre,564,03/05/2018,1805-00437,0.00,2031.48,R,Affinity Trust,No
Http://opendatacommunities.org/id/metropolitan-district-council/leeds,Leeds City Council as Accountable Body,31/05/2018,Social Services Pooled Budgets,Jcs For People With Learning Disabilitie,Third Party Payments,Day Centre,564,04/05/2018,1805-00438,0.00,1350.00,R,Affinity Trust,No
Http://opendatacommunities.org/id/metropolitan-district-council/leeds,Leeds City Council as Accountable Body,31/05/2018,Social Services Pooled Budgets,Jcs For People With Learning Disabilitie,Third Party Payments,Day Centre,564,04/05/2018,1805-00439,0.00,960.66,R,Affinity Trust,No
Http://opendatacommunities.org/id/metropolitan-district-council/leeds,Leeds City Council as Accountable Body,31/05/2018,Social Services Pooled Budgets,Jcs For People With Learning Disabilitie,Third Party Payments,Home Care,568,04/05/2018,1805-00440,0.00,1470.00,R,Affinity Trust,No
Http://opendatacommunities.org/id/metropolitan-district-council/leeds,Leeds City Council,31/05/2018,Adults and Health,Services For Older People - 65 And Over,Third Party Payments,Home Care,568,22/05/2018,1805-00441,0.00,1076.48,R,Affinity Trust,No
Http://opendatacommunities.org/id/metropolitan-district-council/leeds,Leeds City Council,31/05/2018,Adults and Health,Services For Older People Under 65 P/Dis,Third Party Payments,Home Care,568,22/05/2018,1805-00442,0.00,2141.32,R,Affinity Trust,No
Http://opendatacommunities.org/id/metropolitan-district-council/leeds,Leeds City Council as Accountable Body,31/05/2018,Social Services Pooled Budgets,Jcs For People With Learning Disabilitie,Third Party Payments,Home Care,568,23/05/2018,1805-00443,0.00,287.64,R,Affinity Trust,No
Http://opendatacommunities.org/id/metropolitan-district-council/leeds,Leeds City Council as Accountable Body,31/05/2018,Social Services Pooled Budgets,Jcs For People With Learning Disabilitie,Third Party Payments,Home Care,568,23/05/2018,1805-00444,0.00,375.53,R,Affinity Trust,No
Http://opendatacommunities.org/id/metropolitan-district-council/leeds,Leeds City Council,31/05/2018,Adults and Health,Services For Older People Under 65 P/Dis,Third Party Payments,Home Care,568,23/05/2018,1805-00445,0.00,134.56,R,Affinity Trust,No
Http://opendatacommunities.org/id/metropolitan-district-council/leeds,Leeds City Council,31/05/2018,Adults and Health,Assessment And Care Management,Third Party Payments,Home Care,568,23/05/2018,1805-00446,0.00,431.46,R,Affinity Trust,No
Http://opendatacommunities.org/id/metropolitan-district-council/leeds,Leeds City Council,31/05/2018,Adults and Health,Assessment And Care Management,Third Party Payments,Home Care,568,23/05/2018,1805-00447,0.00,495.38,R,Affinity Trust,No
Http://opendatacommunities.org/id/metropolitan-district-council/leeds,Leeds City Council as Accountable Body,31/05/2018,Social Services Pooled Budgets,Jcs For People With Learning Disabilitie,Third Party Payments,Home Care,568,24/05/2018,1805-00448,0.00,439.45,R,Affinity Trust,No
Http://opendatacommunities.org/id/metropolitan-district-council/leeds,Leeds City Council as Accountable Body,31/05/2018,Social Services Pooled Budgets,Jcs For People With Learning Disabilitie,Third Party Payments,Home Care,568,25/05/2018,1805-00449,0.00,306.00,R,Affinity Trust,No
Http://opendatacommunities.org/id/metropolitan-district-council/leeds,Leeds City Council as Accountable Body,31/05/2018,Social Services Pooled Budgets,Jcs For People With Learning Disabilitie,Third Party Payments,Day Centre,564,25/05/2018,1805-00450,0.00,416.64,R,Affinity Trust,No
Http://opendatacommunities.org/id/metropolitan-district-council/leeds,Leeds City Council as Accountable Body,31/05/2018,Social Services Pooled Budgets,Jcs For People With Learning Disabilitie,Third Party Payments,Home Care,568,25/05/2018,1805-00451,0.00,1518.00,R,Affinity Trust,No
Http://opendatacommunities.org/id/metropolitan-district-council/leeds,Leeds City Council as Accountable Body,31/05/2018,Social Services Pooled Budgets,Jcs For People With Learning Disabilitie,Third Party Payments,Home Care,568,25/05/2018,1805-00452,0.00,143.82,R,Affinity Trust,No
Http://opendatacommunities.org/id/metropolitan-district-council/leeds,Leeds City Council as Accountable Body,31/05/2018,Social Services Pooled Budgets,Jcs For People With Learning Disabilitie,Third Party Payments,Home Care,568,25/05/2018,1805-00453,0.00,639.20,R,Affinity Trust,No
Http://opendatacommunities.org/id/metropolitan-district-council/leeds,Leeds City Council as Accountable Body,31/05/2018,Social Services Pooled Budgets,Jcs For People With Learning Disabilitie,Third Party Payments,Home Care,568,25/05/2018,1805-00454,0.00,408.00,R,Affinity Trust,No
Http://opendatacommunities.org/id/metropolitan-district-council/leeds,Leeds City Council as Accountable Body,31/05/2018,Social Services Pooled Budgets,Jcs For People With Learning Disabilitie,Third Party Payments,Home Care,568,25/05/2018,1805-00455,0.00,204.32,R,Affinity Trust,No
Http://opendatacommunities.org/id/metropolitan-district-council/leeds,Leeds City Council as Accountable Body,31/05/2018,Social Services Pooled Budgets,Jcs For People With Learning Disabilitie,Third Party Payments,Home Care,568,25/05/2018,1805-00456,0.00,824.18,R,Affinity Trust,No
Http://opendatacommunities.org/id/metropolitan-district-council/leeds,Leeds City Council as Accountable Body,31/05/2018,Social Services Pooled Budgets,Jcs For People With Learning Disabilitie,Third Party Payments,Home Care,568,25/05/2018,1805-00457,0.00,127.84,R,Affinity Trust,No
Http://opendatacommunities.org/id/metropolitan-district-council/leeds,Leeds City Council as Accountable Body,31/05/2018,Social Services Pooled Budgets,Jcs For People With Learning Disabilitie,Third Party Payments,Home Care,568,25/05/2018,1805-00458,0.00,958.80,R,Affinity Trust,No
Http://opendatacommunities.org/id/metropolitan-district-council/leeds,Leeds City Council as Accountable Body,31/05/2018,Social Services Pooled Budgets,Jcs For People With Learning Disabilitie,Third Party Payments,Home Care,568,25/05/2018,1805-00459,0.00,423.47,R,Affinity Trust,No
Http://opendatacommunities.org/id/metropolitan-district-council/leeds,Leeds City Council as Accountable Body,31/05/2018,Social Services Pooled Budgets,Jcs For People With Learning Disabilitie,Third Party Payments,Home Care,568,25/05/2018,1805-00460,0.00,383.52,R,Affinity Trust,No
Http://opendatacommunities.org/id/metropolitan-district-council/leeds,Leeds City Council as Accountable Body,31/05/2018,Social Services Pooled Budgets,Jcs For People With Learning Disabilitie,Third Party Payments,Home Care,568,25/05/2018,1805-00461,0.00,255.68,R,Affinity Trust,No
Http://opendatacommunities.org/id/metropolitan-district-council/leeds,Leeds City Council as Accountable Body,31/05/2018,Social Services Pooled Budgets,Jcs For People With Learning Disabilitie,Third Party Payments,Home Care,568,31/05/2018,1805-00462,0.00,958.80,R,Affinity Trust,No
Http://opendatacommunities.org/id/metropolitan-district-council/leeds,Leeds City Council as Accountable Body,31/05/2018,Social Services Pooled Budgets,Jcs For People With Learning Disabilitie,Third Party Payments,Home Care,568,31/05/2018,1805-00463,0.00,1118.60,R,Affinity Trust,No
Http://opendatacommunities.org/id/metropolitan-district-council/leeds,Leeds City Council as Accountable Body,31/05/2018,Social Services Pooled Budgets,Jcs For People With Learning Disabilitie,Third Party Payments,Home Care,568,31/05/2018,1805-00464,0.00,287.64,R,Affinity Trust,No
Http://opendatacommunities.org/id/metropolitan-district-council/leeds,Leeds City Council as Accountable Body,31/05/2018,Social Services Pooled Budgets,Jcs For People With Learning Disabilitie,Third Party Payments,Home Care,568,31/05/2018,1805-00465,0.00,538.24,R,Affinity Trust,No
Http://opendatacommunities.org/id/metropolitan-district-council/leeds,Leeds City Council as Accountable Body,31/05/2018,Social Services Pooled Budgets,Jcs For People With Learning Disabilitie,Third Party Payments,Home Care,568,31/05/2018,1805-00466,0.00,671.16,R,Affinity Trust,No
Http://opendatacommunities.org/id/metropolitan-district-council/leeds,Leeds City Council as Accountable Body,31/05/2018,Social Services Pooled Budgets,Jcs For People With Learning Disabilitie,Third Party Payments,Home Care,568,31/05/2018,1805-00467,0.00,1810.89,R,Affinity Trust,No
Http://opendatacommunities.org/id/metropolitan-district-council/leeds,Leeds City Council as Accountable Body,31/05/2018,Social Services Pooled Budgets,Jcs For People With Learning Disabilitie,Third Party Payments,Home Care,568,31/05/2018,1805-00468,0.00,525.72,R,Affinity Trust,No
Http://opendatacommunities.org/id/metropolitan-district-council/leeds,Leeds City Council as Accountable Body,31/05/2018,Social Services Pooled Budgets,Jcs For People With Learning Disabilitie,Third Party Payments,Home Care,568,31/05/2018,1805-00469,0.00,754.20,R,Affinity Trust,No
Http://opendatacommunities.org/id/metropolitan-district-council/leeds,Leeds City Council as Accountable Body,31/05/2018,Social Services Pooled Budgets,Jcs For People With Learning Disabilitie,Third Party Payments,Home Care,568,31/05/2018,1805-00470,0.00,1005.60,R,Affinity Trust,No
Http://opendatacommunities.org/id/metropolitan-district-council/leeds,Leeds City Council as Accountable Body,31/05/2018,Social Services Pooled Budgets,Jcs For People With Learning Disabilitie,Third Party Payments,Home Care,568,31/05/2018,1805-00471,0.00,360.00,R,Affinity Trust,No
Http://opendatacommunities.org/id/metropolitan-district-council/leeds,Leeds City Council as Accountable Body,31/05/2018,Social Services Pooled Budgets,Jcs For People With Learning Disabilitie,Third Party Payments,Day Centre,564,31/05/2018,1805-00472,0.00,583.11,R,Affinity Trust,No
Http://opendatacommunities.org/id/metropolitan-district-council/leeds,Leeds City Council as Accountable Body,31/05/2018,Social Services Pooled Budgets,Jcs For People With Learning Disabilitie,Third Party Payments,Home Care,568,31/05/2018,1805-00473,0.00,926.84,R,Affinity Trust,No
Http://opendatacommunities.org/id/metropolitan-district-council/leeds,Leeds City Council as Accountable Body,31/05/2018,Social Services Pooled Budgets,Jcs For People With Learning Disabilitie,Third Party Payments,Home Care,568,31/05/2018,1805-00474,0.00,950.81,R,Affinity Trust,No
Http://opendatacommunities.org/id/metropolitan-district-council/leeds,Leeds City Council as Accountable Body,31/05/2018,Social Services Pooled Budgets,Jcs For People With Learning Disabilitie,Third Party Payments,Home Care,568,31/05/2018,1805-00475,0.00,583.27,R,Affinity Trust,No
Http://opendatacommunities.org/id/metropolitan-district-council/leeds,Leeds City Council as Accountable Body,31/05/2018,Social Services Pooled Budgets,Jcs For People With Learning Disabilitie,Third Party Payments,Home Care,568,31/05/2018,1805-00476,0.00,272.00,R,Affinity Trust,No
Http://opendatacommunities.org/id/metropolitan-district-council/leeds,Leeds City Council as Accountable Body,31/05/2018,Social Services Pooled Budgets,Jcs For People With Learning Disabilitie,Third Party Payments,Home Care,568,31/05/2018,1805-00477,0.00,1452.00,R,Affinity Trust,No
Http://opendatacommunities.org/id/metropolitan-district-council/leeds,Leeds City Council as Accountable Body,31/05/2018,Social Services Pooled Budgets,Jcs For People With Learning Disabilitie,Third Party Payments,Home Care,568,31/05/2018,1805-00478,0.00,1211.04,R,Affinity Trust,No
Http://opendatacommunities.org/id/metropolitan-district-council/leeds,Leeds City Council as Accountable Body,31/05/2018,Social Services Pooled Budgets,Jcs For People With Learning Disabilitie,Third Party Payments,Home Care,568,31/05/2018,1805-00479,0.00,191.76,R,Affinity Trust,No
Http://opendatacommunities.org/id/metropolitan-district-council/leeds,Leeds City Council as Accountable Body,31/05/2018,Social Services Pooled Budgets,Jcs For People With Learning Disabilitie,Third Party Payments,Home Care,568,31/05/2018,1805-00480,0.00,639.20,R,Affinity Trust,No
Http://opendatacommunities.org/id/metropolitan-district-council/leeds,Leeds City Council as Accountable Body,31/05/2018,Social Services Pooled Budgets,Jcs For People With Learning Disabilitie,Third Party Payments,Home Care,568,31/05/2018,1805-00481,0.00,306.00,R,Affinity Trust,No
Http://opendatacommunities.org/id/metropolitan-district-council/leeds,Leeds City Council as Accountable Body,31/05/2018,Social Services Pooled Budgets,Jcs For People With Learning Disabilitie,Third Party Payments,Home Care,568,31/05/2018,1805-00482,0.00,204.32,R,Affinity Trust,No
Http://opendatacommunities.org/id/metropolitan-district-council/leeds,Leeds City Council as Accountable Body,31/05/2018,Social Services Pooled Budgets,Jcs For People With Learning Disabilitie,Third Party Payments,Home Care,568,31/05/2018,1805-00483,0.00,941.92,R,Affinity Trust,No
Http://opendatacommunities.org/id/metropolitan-district-council/leeds,Leeds City Council as Accountable Body,31/05/2018,Social Services Pooled Budgets,Jcs For People With Learning Disabilitie,Third Party Payments,Home Care,568,31/05/2018,1805-00484,0.00,191.76,R,Affinity Trust,No
Http://opendatacommunities.org/id/metropolitan-district-council/leeds,Leeds City Council as Accountable Body,31/05/2018,Social Services Pooled Budgets,Jcs For People With Learning Disabilitie,Third Party Payments,Home Care,568,31/05/2018,1805-00485,0.00,958.80,R,Affinity Trust,No
Http://opendatacommunities.org/id/metropolitan-district-council/leeds,Leeds City Council as Accountable Body,31/05/2018,Social Services Pooled Budgets,Jcs For People With Learning Disabilitie,Third Party Payments,Home Care,568,31/05/2018,1805-00486,0.00,367.54,R,Affinity Trust,No
Http://opendatacommunities.org/id/metropolitan-district-council/leeds,Leeds City Council as Accountable Body,31/05/2018,Social Services Pooled Budgets,Jcs For People With Learning Disabilitie,Third Party Payments,Home Care,568,31/05/2018,1805-00487,0.00,383.52,R,Affinity Trust,No
Http://opendatacommunities.org/id/metropolitan-district-council/leeds,Leeds City Council as Accountable Body,31/05/2018,Social Services Pooled Budgets,Jcs For People With Learning Disabilitie,Third Party Payments,Home Care,568,31/05/2018,1805-00488,0.00,191.76,R,Affinity Trust,No
Http://opendatacommunities.org/id/metropolitan-district-council/leeds,Leeds City Council as Accountable Body,31/05/2018,Social Services Pooled Budgets,Jcs For People With Learning Disabilitie,Third Party Payments,Home Care,568,31/05/2018,1805-00489,0.00,994.76,R,Affinity Trust,No
Http://opendatacommunities.org/id/metropolitan-district-council/leeds,Leeds City Council as Accountable Body,31/05/2018,Social Services Pooled Budgets,Jcs For People With Learning Disabilitie,Third Party Payments,Home Care,568,31/05/2018,1805-00490,0.00,191.76,R,Affinity Trust,No
Http://opendatacommunities.org/id/metropolitan-district-council/leeds,Leeds City Council as Accountable Body,31/05/2018,Social Services Pooled Budgets,Jcs For People With Learning Disabilitie,Third Party Payments,Sheltered Accommodation,569,02/05/2018,1805-00491,0.00,118239.66,R,Affinity Trust North Divisional Office,No
Http://opendatacommunities.org/id/metropolitan-district-council/leeds,Leeds City Council as Accountable Body,31/05/2018,Social Services Pooled Budgets,Jcs For People With Learning Disabilitie,Third Party Payments,Sheltered Accommodation,569,30/05/2018,1805-00492,0.00,101245.64,R,Affinity Trust North Divisional Office,No
Http://opendatacommunities.org/id/metropolitan-district-council/leeds,Leeds City Council,31/05/2018,Communities and Environment,Parks and Countryside,Transport,Hire Of Movable Plant & Machinery,315,01/05/2018,1805-00493,0.00,950.00,R,Afi-Uplift Limited,No
Http://opendatacommunities.org/id/metropolitan-district-council/leeds,Leeds City Council,31/05/2018,Communities and Environment,Parks and Countryside,Transport,Hire Of Movable Plant & Machinery,315,11/05/2018,1805-00494,0.00,950.00,R,Afi-Uplift Limited,No
Http://opendatacommunities.org/id/metropolitan-district-council/leeds,Leeds City Council,31/05/2018,Communities and Environment,Parks and Countryside,Transport,Hire Of Movable Plant & Machinery,315,15/05/2018,1805-00495,0.00,950.00,R,Afi-Uplift Limited,No
Http://opendatacommunities.org/id/metropolitan-district-council/leeds,Leeds City Council,31/05/2018,Communities and Environment,Parks and Countryside,Transport,Hire Of Movable Plant & Machinery,315,22/05/2018,1805-00496,0.00,950.00,R,Afi-Uplift Limited,No
Http://opendatacommunities.org/id/metropolitan-district-council/leeds,Leeds City Council,31/05/2018,Communities and Environment,Parks and Countryside,Transport,Hire Of Movable Plant & Machinery,315,31/05/2018,1805-00497,0.00,950.00,R,Afi-Uplift Limited,No
Http://opendatacommunities.org/id/metropolitan-district-council/leeds,Leeds City Council,31/05/2018,Resources and Housing,Shared Services,Supplies and Services,Operational Furniture And Equipment,203,03/05/2018,1805-00498,0.00,560.65,R,Afm Europe Ltd,No
Http://opendatacommunities.org/id/metropolitan-district-council/leeds,Leeds City Council,31/05/2018,Resources and Housing,Strategic Housing Partnership & Support,Supplies and Services,Other Hired And Contracted Services,265,17/05/2018,1805-00499,0.00,480.00,R,Aftongreen Retail Ltd,No
Http://opendatacommunities.org/id/metropolitan-district-council/leeds,Leeds City Council,31/05/2018,Communities and Environment,Elections  Licensing and Registration,Premises,Rents,141,15/05/2018,1805-00500,0.00,50.00,R,REDACTED PERSONAL DATA,No
Http://opendatacommunities.org/id/metropolitan-district-council/leeds,Leeds City Council,31/05/2018,City Development,Employment & Skills,Supplies and Services,Commissioned Services,264,03/05/2018,1805-00501,0.00,4000.00,R,Ahead Partnership Ltd,No
Http://opendatacommunities.org/id/metropolitan-district-council/leeds,Leeds City Council,31/05/2018,Strategic Landlord,Property And Contracts  ,Supplies and Services,Office Furniture & Equipment,201,04/04/2018,1805-00502,0.00,416.67,R,Ahm Flooring,Yes
Http://opendatacommunities.org/id/metropolitan-district-council/leeds,Leeds City Council,31/05/2018,Strategic Landlord,Property And Contracts  ,Supplies and Services,Office Furniture & Equipment,201,04/04/2018,1805-00503,0.00,241.67,R,Ahm Flooring,Yes
Http://opendatacommunities.org/id/metropolitan-district-council/leeds,Leeds City Council,31/05/2018,Communities and Environment,Elections  Licensing and Registration,Income,Admissions  Booking Fees & Ticket Sales,933,24/05/2018,1805-00504,0.00,25.00,R,REDACTED PERSONAL DATA,No
Http://opendatacommunities.org/id/metropolitan-district-council/leeds,Leeds City Council,31/05/2018,Children and Families,Learning Skills & Universal,Supplies and Services,Teaching Materials,202,11/05/2018,1805-00505,0.00,28.52,R,Aid Training & Operations Ltd,No
Http://opendatacommunities.org/id/metropolitan-district-council/leeds,Leeds City Council,31/05/2018,Children and Families,Learning Skills & Universal,Supplies and Services,Teaching Materials,202,23/05/2018,1805-00506,0.00,160.00,R,Aid Training & Operations Ltd,No
Http://opendatacommunities.org/id/metropolitan-district-council/leeds,Leeds City Council as Accountable Body,31/05/2018,Social Services Pooled Budgets,Leeds Community Equip Store Pooled Budgt,Supplies and Services,Other Equipment,203,04/05/2018,1805-00507,0.00,1099.40,R,Aidapt Bathrooms Ltd,No
Http://opendatacommunities.org/id/metropolitan-district-council/leeds,Leeds City Council as Accountable Body,31/05/2018,Social Services Pooled Budgets,Leeds Community Equip Store Pooled Budgt,Supplies and Services,Other Equipment,203,10/05/2018,1805-00508,0.00,2067.10,R,Aidapt Bathrooms Ltd,No
Http://opendatacommunities.org/id/metropolitan-district-council/leeds,Leeds City Council as Accountable Body,31/05/2018,Social Services Pooled Budgets,Leeds Community Equip Store Pooled Budgt,Supplies and Services,Other Equipment,203,11/05/2018,1805-00509,0.00,405.10,R,Aidapt Bathrooms Ltd,No
Http://opendatacommunities.org/id/metropolitan-district-council/leeds,Leeds City Council as Accountable Body,31/05/2018,Social Services Pooled Budgets,Leeds Community Equip Store Pooled Budgt,Supplies and Services,Other Equipment,203,16/05/2018,1805-00510,0.00,1275.10,R,Aidapt Bathrooms Ltd,No
Http://opendatacommunities.org/id/metropolitan-district-council/leeds,Leeds City Council as Accountable Body,31/05/2018,Social Services Pooled Budgets,Leeds Community Equip Store Pooled Budgt,Supplies and Services,Other Equipment,203,23/05/2018,1805-00511,0.00,1142.20,R,Aidapt Bathrooms Ltd,No
Http://opendatacommunities.org/id/metropolitan-district-council/leeds,Leeds City Council as Accountable Body,31/05/2018,Social Services Pooled Budgets,Leeds Community Equip Store Pooled Budgt,Supplies and Services,Other Equipment,203,25/05/2018,1805-00512,0.00,549.70,R,Aidapt Bathrooms Ltd,No
Http://opendatacommunities.org/id/metropolitan-district-council/leeds,Leeds City Council as Accountable Body,31/05/2018,Social Services Pooled Budgets,Leeds Community Equip Store Pooled Budgt,Supplies and Services,Other Equipment,203,25/05/2018,1805-00513,0.00,830.80,R,Aidapt Bathrooms Ltd,No
Http://opendatacommunities.org/id/metropolitan-district-council/leeds,Leeds City Council,31/05/2018,Strategic Accounts,Miscellaneous,Transfer Payments,Land Drainage Levies,665,01/05/2018,1805-00514,0.00,3737.65,R,Ainsty (2008) Internal Drainage Board,No
Http://opendatacommunities.org/id/metropolitan-district-council/leeds,Leeds City Council,31/05/2018,Resources and Housing,Leeds Building Services,Supplies and Services,Operational Materials,205,04/05/2018,1805-00515,0.00,80.00,R,Air Conditioning Accessories,No
Http://opendatacommunities.org/id/metropolitan-district-council/leeds,Leeds City Council,31/05/2018,Resources and Housing,Leeds Building Services,Supplies and Services,Operational Materials,205,09/05/2018,1805-00516,0.00,251.70,R,Air Conditioning Accessories,No
Http://opendatacommunities.org/id/metropolitan-district-council/leeds,Leeds City Council,31/05/2018,Resources and Housing,Leeds Building Services,Supplies and Services,Operational Materials,205,09/05/2018,1805-00517,0.00,27.29,R,Air Conditioning Accessories,No
Http://opendatacommunities.org/id/metropolitan-district-council/leeds,Leeds City Council,31/05/2018,Resources and Housing,Leeds Building Services,Supplies and Services,Operational Materials,205,09/05/2018,1805-00518,0.00,57.99,R,Air Conditioning Accessories,No
Http://opendatacommunities.org/id/metropolitan-district-council/leeds,Leeds City Council,31/05/2018,Resources and Housing,Leeds Building Services,Supplies and Services,Operational Materials,205,14/05/2018,1805-00519,0.00,30.65,R,Air Conditioning Accessories,No
Http://opendatacommunities.org/id/metropolitan-district-council/leeds,Leeds City Council,31/05/2018,Resources and Housing,Leeds Building Services,Supplies and Services,Operational Materials,205,14/05/2018,1805-00520,0.00,25.58,R,Air Conditioning Accessories,No
Http://opendatacommunities.org/id/metropolitan-district-council/leeds,Leeds City Council,31/05/2018,Resources and Housing,Leeds Building Services,Supplies and Services,Operational Materials,205,14/05/2018,1805-00521,0.00,206.29,R,Air Conditioning Accessories,No
Http://opendatacommunities.org/id/metropolitan-district-council/leeds,Leeds City Council,31/05/2018,Resources and Housing,Leeds Building Services,Supplies and Services,Operational Materials,205,18/05/2018,1805-00522,0.00,561.70,R,Air Conditioning Accessories,No
Http://opendatacommunities.org/id/metropolitan-district-council/leeds,Leeds City Council,31/05/2018,Resources and Housing,Leeds Building Services,Supplies and Services,Operational Materials,205,18/05/2018,1805-00523,0.00,89.52,R,Air Conditioning Accessories,No
Http://opendatacommunities.org/id/metropolitan-district-council/leeds,Leeds City Council,31/05/2018,Resources and Housing,Leeds Building Services,Supplies and Services,Operational Materials,205,29/05/2018,1805-00524,0.00,466.25,R,Air Conditioning Accessories,No
Http://opendatacommunities.org/id/metropolitan-district-council/leeds,Leeds City Council,31/05/2018,Resources and Housing,Leeds Building Services,Supplies and Services,Operational Materials,205,29/05/2018,1805-00525,0.00,56.66,R,Air Conditioning Accessories,No
Http://opendatacommunities.org/id/metropolitan-district-council/leeds,Leeds City Council,31/05/2018,Resources and Housing,Leeds Building Services,Supplies and Services,Operational Materials,205,29/05/2018,1805-00526,0.00,80.00,R,Air Conditioning Accessories,No
Http://opendatacommunities.org/id/metropolitan-district-council/leeds,Leeds City Council,31/05/2018,Communities and Environment,Environmental Health,Supplies and Services,Other Hired And Contracted Services,265,02/05/2018,1805-00527,0.00,9.86,R,Air Liquide Uk,No
Http://opendatacommunities.org/id/metropolitan-district-council/leeds,Leeds City Council,31/05/2018,Communities and Environment,Environmental Health,Supplies and Services,Other Hired And Contracted Services,265,02/05/2018,1805-00528,0.00,9.86,R,Air Liquide Uk,No
Http://opendatacommunities.org/id/metropolitan-district-council/leeds,Leeds City Council,31/05/2018,Communities and Environment,Environmental Health,Supplies and Services,Other Hired And Contracted Services,265,02/05/2018,1805-00529,0.00,15.03,R,Air Liquide Uk,No
Http://opendatacommunities.org/id/metropolitan-district-council/leeds,Leeds City Council,31/05/2018,Communities and Environment,Environmental Health,Supplies and Services,Other Hired And Contracted Services,265,02/05/2018,1805-00530,0.00,69.02,R,Air Liquide Uk,No
Http://opendatacommunities.org/id/metropolitan-district-council/leeds,Leeds City Council,31/05/2018,Resources and Housing,Leeds Building Services,Supplies and Services,Operational Materials,205,09/05/2018,1805-00531,0.00,189.71,R,Air Liquide Uk,No
Http://opendatacommunities.org/id/metropolitan-district-council/leeds,Leeds City Council,31/05/2018,Resources and Housing,Leeds Building Services,Supplies and Services,Operational Materials,205,29/05/2018,1805-00532,0.00,235.42,R,Air Liquide Uk,No
Http://opendatacommunities.org/id/metropolitan-district-council/leeds,Leeds City Council,31/05/2018,Resources and Housing,Technology,Supplies and Services,Computer Software & Equipment,214,29/05/2018,1805-00533,0.00,6050.00,R,Aire Logic Ltd,No
Http://opendatacommunities.org/id/metropolitan-district-council/leeds,Leeds City Council,31/05/2018,Communities and Environment,Parks And Countryside  ,Supplies and Services,Operational Materials,205,10/04/2018,1805-00534,0.00,2525.00,R,Aire Valley Tree Servi,Yes
Http://opendatacommunities.org/id/metropolitan-district-council/leeds,Leeds City Council,31/05/2018,Communities and Environment,Parks And Countryside  ,Supplies and Services,Operational Materials,205,10/04/2018,1805-00535,0.00,2195.00,R,Aire Valley Tree Servi,Yes
Http://opendatacommunities.org/id/metropolitan-district-council/leeds,Leeds City Council,31/05/2018,Communities and Environment,Parks And Countryside  ,Supplies and Services,Operational Materials,205,10/04/2018,1805-00536,0.00,1625.00,R,Aire Valley Tree Servi,Yes
Http://opendatacommunities.org/id/metropolitan-district-council/leeds,Leeds City Council,31/05/2018,Communities and Environment,Parks And Countryside  ,Supplies and Services,Operational Materials,205,10/04/2018,1805-00537,0.00,2500.00,R,Aire Valley Tree Servi,Yes
Http://opendatacommunities.org/id/metropolitan-district-council/leeds,Leeds City Council,31/05/2018,Communities and Environment,Parks and Countryside,Supplies and Services,Other Hired And Contracted Services,265,10/05/2018,1805-00538,0.00,425.00,R,Aire Valley Tree Services Ltd,No
Http://opendatacommunities.org/id/metropolitan-district-council/leeds,Leeds City Council,31/05/2018,Communities and Environment,Parks and Countryside,Supplies and Services,Other Hired And Contracted Services,265,10/05/2018,1805-00539,0.00,475.00,R,Aire Valley Tree Services Ltd,No
Http://opendatacommunities.org/id/metropolitan-district-council/leeds,Leeds City Council,31/05/2018,Communities and Environment,Parks and Countryside,Supplies and Services,Other Hired And Contracted Services,265,10/05/2018,1805-00540,0.00,725.00,R,Aire Valley Tree Services Ltd,No
Http://opendatacommunities.org/id/metropolitan-district-council/leeds,Leeds City Council,31/05/2018,Communities and Environment,Parks and Countryside,Supplies and Services,Other Hired And Contracted Services,265,10/05/2018,1805-00541,0.00,335.00,R,Aire Valley Tree Services Ltd,No
Http://opendatacommunities.org/id/metropolitan-district-council/leeds,Leeds City Council,31/05/2018,Communities and Environment,Parks and Countryside,Supplies and Services,Other Hired And Contracted Services,265,10/05/2018,1805-00542,0.00,1395.00,R,Aire Valley Tree Services Ltd,No
Http://opendatacommunities.org/id/metropolitan-district-council/leeds,Leeds City Council,31/05/2018,Communities and Environment,Parks and Countryside,Supplies and Services,Other Hired And Contracted Services,265,10/05/2018,1805-00543,0.00,860.00,R,Aire Valley Tree Services Ltd,No
Http://opendatacommunities.org/id/metropolitan-district-council/leeds,Leeds City Council,31/05/2018,Communities and Environment,Parks and Countryside,Supplies and Services,Other Hired And Contracted Services,265,10/05/2018,1805-00544,0.00,975.00,R,Aire Valley Tree Services Ltd,No
Http://opendatacommunities.org/id/metropolitan-district-council/leeds,Leeds City Council,31/05/2018,Communities and Environment,Parks and Countryside,Supplies and Services,Other Hired And Contracted Services,265,15/05/2018,1805-00545,0.00,495.00,R,Aire Valley Tree Services Ltd,No
Http://opendatacommunities.org/id/metropolitan-district-council/leeds,Leeds City Council,31/05/2018,Communities and Environment,Parks and Countryside,Supplies and Services,Other Hired And Contracted Services,265,23/05/2018,1805-00546,0.00,275.00,R,Aire Valley Tree Services Ltd,No
Http://opendatacommunities.org/id/metropolitan-district-council/leeds,Leeds City Council,31/05/2018,Adults and Health,Services For Older People - 65 And Over,Third Party Payments,Residential Care Dementia,571,02/05/2018,1805-00547,0.00,51170.62,R,Aire View Residential Home,No
Http://opendatacommunities.org/id/metropolitan-district-council/leeds,Leeds City Council,31/05/2018,Adults and Health,Services For Older People - 65 And Over,Third Party Payments,Residential,580,02/05/2018,1805-00548,0.00,19235.16,R,Aire View Residential Home,No
Http://opendatacommunities.org/id/metropolitan-district-council/leeds,Leeds City Council,31/05/2018,Adults and Health,Services For Older People - 65 And Over,Third Party Payments,Residential Care Dementia,571,30/05/2018,1805-00549,0.00,39958.65,R,Aire View Residential Home,No
Http://opendatacommunities.org/id/metropolitan-district-council/leeds,Leeds City Council,31/05/2018,Adults and Health,Services For Older People - 65 And Over,Third Party Payments,Residential,580,30/05/2018,1805-00550,0.00,19235.16,R,Aire View Residential Home,No
Http://opendatacommunities.org/id/metropolitan-district-council/leeds,Leeds City Council,31/05/2018,Resources and Housing,Human Resources,Employees,Occupational Health,85,21/05/2018,1805-00551,0.00,109.50,R,Aireborough Family Practice,No
Http://opendatacommunities.org/id/metropolitan-district-council/leeds,Leeds City Council,31/05/2018,Adults and Health,Services For Older People - 65 And Over,Third Party Payments,Residential Care Dementia,571,02/05/2018,1805-00552,0.00,4017.48,R,Airedale Care Home,No
Http://opendatacommunities.org/id/metropolitan-district-council/leeds,Leeds City Council,31/05/2018,Adults and Health,Services For Older People - 65 And Over,Third Party Payments,Residential,580,02/05/2018,1805-00553,0.00,25063.73,R,Airedale Care Home,No
Http://opendatacommunities.org/id/metropolitan-district-council/leeds,Leeds City Council,31/05/2018,Adults and Health,Services For Older People - 65 And Over,Third Party Payments,Residential Care Dementia,571,30/05/2018,1805-00554,0.00,4017.48,R,Airedale Care Home,No
Http://opendatacommunities.org/id/metropolitan-district-council/leeds,Leeds City Council,31/05/2018,Adults and Health,Services For Older People - 65 And Over,Third Party Payments,Residential,580,30/05/2018,1805-00555,0.00,12011.22,R,Airedale Care Home,No
Http://opendatacommunities.org/id/metropolitan-district-council/leeds,Leeds City Council,31/05/2018,Resources and Housing,Leeds Building Services,Supplies and Services,Other Hired And Contracted Services,265,03/05/2018,1805-00556,0.00,5890.00,R,Airedale Catering Equipment Ltd,No
Http://opendatacommunities.org/id/metropolitan-district-council/leeds,Leeds City Council,31/05/2018,Adults and Health,Assessment And Care Management,Employees,Training Costs,71,03/05/2018,1805-00557,0.00,150.00,R,Airedale Community Trading (Act) Ltd,No
Http://opendatacommunities.org/id/metropolitan-district-council/leeds,Leeds City Council,31/05/2018,Communities and Environment,Environmental Health,Supplies and Services,Other Hired And Contracted Services,265,09/05/2018,1805-00558,0.00,1209.41,R,Aireworth Vets,No
Http://opendatacommunities.org/id/metropolitan-district-council/leeds,Leeds City Council,31/05/2018,Communities and Environment,Community Safety,Supplies and Services,Bought In Professional Services,277,10/05/2018,1805-00559,0.00,832.44,R,Airwave Solutions Ltd,No
Http://opendatacommunities.org/id/metropolitan-district-council/leeds,Leeds City Council,31/05/2018,Resources and Housing,Commercial Services,Supplies and Services,Other Hired And Contracted Services,265,01/05/2018,1805-00560,0.00,270.00,R,Air-Weigh Europe Limited,No
Http://opendatacommunities.org/id/metropolitan-district-council/leeds,Leeds City Council,31/05/2018,Resources and Housing,Commercial Services,Supplies and Services,Other Hired And Contracted Services,265,14/05/2018,1805-00561,0.00,157.50,R,Air-Weigh Europe Limited,No
Http://opendatacommunities.org/id/metropolitan-district-council/leeds,Leeds City Council,31/05/2018,Resources and Housing,Commercial Services,Supplies and Services,Other Hired And Contracted Services,265,18/05/2018,1805-00562,0.00,180.00,R,Air-Weigh Europe Limited,No
Http://opendatacommunities.org/id/metropolitan-district-council/leeds,Leeds City Council,31/05/2018,Resources and Housing,Commercial Services,Supplies and Services,Other Hired And Contracted Services,265,25/05/2018,1805-00563,0.00,90.00,R,Air-Weigh Europe Limited,No
Http://opendatacommunities.org/id/metropolitan-district-council/leeds,Leeds City Council,31/05/2018,Resources and Housing,Commercial Services,Supplies and Services,Other Hired And Contracted Services,265,25/05/2018,1805-00564,0.00,101.25,R,Air-Weigh Europe Limited,No
Http://opendatacommunities.org/id/metropolitan-district-council/leeds,Leeds City Council,31/05/2018,Adults and Health,Services For Adults Under 65 Mental/Dis,Third Party Payments,Fees - Level 4,520,04/05/2018,1805-00565,0.00,175.00,R,Ait Mitra,No
Http://opendatacommunities.org/id/metropolitan-district-council/leeds,Leeds City Council,31/05/2018,Adults and Health,Services For Adults Under 65 Mental/Dis,Third Party Payments,Fees - Level 4,520,04/05/2018,1805-00566,0.00,175.00,R,Ait Mitra,No
Http://opendatacommunities.org/id/metropolitan-district-council/leeds,Leeds City Council,31/05/2018,Adults and Health,Services For Adults Under 65 Mental/Dis,Third Party Payments,Fees - Level 4,520,04/05/2018,1805-00567,0.00,175.00,R,Ait Mitra,No
Http://opendatacommunities.org/id/metropolitan-district-council/leeds,Leeds City Council,31/05/2018,Adults and Health,Services For Adults Under 65 Mental/Dis,Third Party Payments,Fees - Level 4,520,04/05/2018,1805-00568,0.00,175.00,R,Ait Mitra,No
Http://opendatacommunities.org/id/metropolitan-district-council/leeds,Leeds City Council,31/05/2018,Adults and Health,Services For Adults Under 65 Mental/Dis,Third Party Payments,Fees - Level 4,520,04/05/2018,1805-00569,0.00,230.90,R,Ait Mitra,No
Http://opendatacommunities.org/id/metropolitan-district-council/leeds,Leeds City Council as Accountable Body,31/05/2018,Social Services Pooled Budgets,Jcs For People With Learning Disabilitie,Third Party Payments,Residential,580,02/05/2018,1805-00570,0.00,6173.24,R,Aitch Care Homes,No
Http://opendatacommunities.org/id/metropolitan-district-council/leeds,Leeds City Council as Accountable Body,31/05/2018,Social Services Pooled Budgets,Jcs For People With Learning Disabilitie,Third Party Payments,Residential,580,30/05/2018,1805-00571,0.00,6173.24,R,Aitch Care Homes,No
Http://opendatacommunities.org/id/metropolitan-district-council/leeds,Leeds City Council,31/05/2018,Communities and Environment,Parks and Countryside,Supplies and Services,Operational Materials,205,25/05/2018,1805-00572,0.00,916.40,R,Aitkens Sportsturf Ltd,No
Http://opendatacommunities.org/id/metropolitan-district-council/leeds,Leeds City Council,31/05/2018,Resources and Housing,Commercial Services,Supplies and Services,Other Hired And Contracted Services,265,09/05/2018,1805-00573,0.00,600.00,R,REDACTED PERSONAL DATA,No
Http://opendatacommunities.org/id/metropolitan-district-council/leeds,Leeds City Council,31/05/2018,Resources and Housing,Commercial Services,Supplies and Services,Other Hired And Contracted Services,265,09/05/2018,1805-00574,0.00,675.00,R,REDACTED PERSONAL DATA,No
Http://opendatacommunities.org/id/metropolitan-district-council/leeds,Leeds City Council,31/05/2018,Adults and Health,Services For Older People Under 65 P/Dis,Third Party Payments,Home Care,568,02/05/2018,1805-00575,0.00,24.88,R,Aj Community Care Ltd,No
Http://opendatacommunities.org/id/metropolitan-district-council/leeds,Leeds City Council,31/05/2018,Adults and Health,Services For Older People - 65 And Over,Third Party Payments,Home Care,568,04/05/2018,1805-00576,0.00,1135.44,R,Aj Community Care Ltd,No
Http://opendatacommunities.org/id/metropolitan-district-council/leeds,Leeds City Council,31/05/2018,Adults and Health,Services For Older People - 65 And Over,Third Party Payments,Home Care,568,04/05/2018,1805-00577,0.00,6084.39,R,Aj Community Care Ltd,No
Http://opendatacommunities.org/id/metropolitan-district-council/leeds,Leeds City Council,31/05/2018,Adults and Health,Services For Older People - 65 And Over,Third Party Payments,Home Care,568,04/05/2018,1805-00578,0.00,20105.51,R,Aj Community Care Ltd,No
Http://opendatacommunities.org/id/metropolitan-district-council/leeds,Leeds City Council,31/05/2018,Adults and Health,Services For Older People Under 65 P/Dis,Third Party Payments,Home Care,568,04/05/2018,1805-00579,0.00,7395.30,R,Aj Community Care Ltd,No
Http://opendatacommunities.org/id/metropolitan-district-council/leeds,Leeds City Council,31/05/2018,Adults and Health,Services For Older People - 65 And Over,Third Party Payments,Home Care,568,30/05/2018,1805-00580,0.00,5535.77,R,Aj Community Care Ltd,No
Http://opendatacommunities.org/id/metropolitan-district-council/leeds,Leeds City Council,31/05/2018,Resources and Housing,Leeds Building Services,Supplies and Services,Operational Materials,205,03/05/2018,1805-00581,0.00,1068.20,R,Ajm Fixings & Power Tools Ltd,No
Http://opendatacommunities.org/id/metropolitan-district-council/leeds,Leeds City Council,31/05/2018,Resources and Housing,Leeds Building Services,Supplies and Services,Operational Furniture And Equipment,203,03/05/2018,1805-00582,0.00,5264.20,R,Ajm Fixings & Power Tools Ltd,No
Http://opendatacommunities.org/id/metropolitan-district-council/leeds,Leeds City Council,31/05/2018,Resources and Housing,Leeds Building Services,Supplies and Services,Operational Furniture And Equipment,203,04/05/2018,1805-00583,0.00,4822.02,R,Ajm Fixings & Power Tools Ltd,No
Http://opendatacommunities.org/id/metropolitan-district-council/leeds,Leeds City Council,31/05/2018,Resources and Housing,Leeds Building Services,Supplies and Services,Operational Furniture And Equipment,203,04/05/2018,1805-00584,0.00,1390.47,R,Ajm Fixings & Power Tools Ltd,No
Http://opendatacommunities.org/id/metropolitan-district-council/leeds,Leeds City Council,31/05/2018,Resources and Housing,Leeds Building Services,Supplies and Services,Operational Furniture And Equipment,203,09/05/2018,1805-00585,0.00,51.65,R,Ajm Fixings & Power Tools Ltd,No
Http://opendatacommunities.org/id/metropolitan-district-council/leeds,Leeds City Council,31/05/2018,Resources and Housing,Leeds Building Services,Supplies and Services,Stores - Central And Other Depots,005,11/05/2018,1805-00586,0.00,1052.20,R,Ajm Fixings & Power Tools Ltd,No
Http://opendatacommunities.org/id/metropolitan-district-council/leeds,Leeds City Council,31/05/2018,Resources and Housing,Leeds Building Services,Supplies and Services,Operational Furniture And Equipment,203,16/05/2018,1805-00587,0.00,358.46,R,Ajm Fixings & Power Tools Ltd,No
Http://opendatacommunities.org/id/metropolitan-district-council/leeds,Leeds City Council,31/05/2018,Resources and Housing,Leeds Building Services,Supplies and Services,Operational Furniture And Equipment,203,16/05/2018,1805-00588,0.00,92.12,R,Ajm Fixings & Power Tools Ltd,No
Http://opendatacommunities.org/id/metropolitan-district-council/leeds,Leeds City Council,31/05/2018,Resources and Housing,Leeds Building Services,Supplies and Services,Operational Materials,205,18/05/2018,1805-00589,0.00,60.00,R,Ajm Fixings & Power Tools Ltd,No
Http://opendatacommunities.org/id/metropolitan-district-council/leeds,Leeds City Council,31/05/2018,Resources and Housing,Leeds Building Services,Supplies and Services,Operational Furniture And Equipment,203,18/05/2018,1805-00590,0.00,27.17,R,Ajm Fixings & Power Tools Ltd,No
Http://opendatacommunities.org/id/metropolitan-district-council/leeds,Leeds City Council,31/05/2018,Resources and Housing,Leeds Building Services,Supplies and Services,Stores - Central And Other Depots,005,25/05/2018,1805-00591,0.00,659.76,R,Ajm Fixings & Power Tools Ltd,No
Http://opendatacommunities.org/id/metropolitan-district-council/leeds,Leeds City Council,31/05/2018,Resources and Housing,Leeds Building Services,Supplies and Services,Operational Furniture And Equipment,203,29/05/2018,1805-00592,0.00,470.79,R,Ajm Fixings & Power Tools Ltd,No
Http://opendatacommunities.org/id/metropolitan-district-council/leeds,Leeds City Council,31/05/2018,Resources and Housing,Leeds Building Services,Supplies and Services,Stores - Central And Other Depots,005,29/05/2018,1805-00593,0.00,237.60,R,Ajm Fixings & Power Tools Ltd,No
Http://opendatacommunities.org/id/metropolitan-district-council/leeds,Leeds City Council,31/05/2018,Resources and Housing,Leeds Building Services,Supplies and Services,Stores - Central And Other Depots,005,29/05/2018,1805-00594,0.00,192.96,R,Ajm Fixings & Power Tools Ltd,No
Http://opendatacommunities.org/id/metropolitan-district-council/leeds,Leeds City Council,31/05/2018,Resources and Housing,Leeds Building Services,Supplies and Services,Operational Furniture And Equipment,203,29/05/2018,1805-00595,0.00,499.14,R,Ajm Fixings & Power Tools Ltd,No
Http://opendatacommunities.org/id/metropolitan-district-council/leeds,Leeds City Council,31/05/2018,Adults and Health,Social Services Support Services,Employees,Training & Development,70,04/05/2018,1805-00596,0.00,7500.00,R,Akd Solutions Ltd,No
Http://opendatacommunities.org/id/metropolitan-district-council/leeds,Leeds City Council,31/05/2018,Resources and Housing,Commercial Services,Premises,Maintenance Of Buildings,101,02/05/2018,1805-00597,0.00,3880.20,R,Akua Uk Ltd,No
Http://opendatacommunities.org/id/metropolitan-district-council/leeds,Leeds City Council,31/05/2018,Resources and Housing,Commercial Services,Premises,Maintenance Of Buildings,101,02/05/2018,1805-00598,0.00,3880.20,R,Akua Uk Ltd,No
Http://opendatacommunities.org/id/metropolitan-district-council/leeds,Leeds City Council,31/05/2018,Resources and Housing,Commercial Services,Premises,Maintenance Of Buildings,101,02/05/2018,1805-00599,0.00,3880.20,R,Akua Uk Ltd,No
Http://opendatacommunities.org/id/metropolitan-district-council/leeds,Leeds City Council,31/05/2018,Resources and Housing,Commercial Services,Premises,Maintenance Of Buildings,101,21/05/2018,1805-00600,0.00,521.07,R,Akua Uk Ltd,No
Http://opendatacommunities.org/id/metropolitan-district-council/leeds,Leeds City Council,31/05/2018,Resources and Housing,Commercial Services,Premises,Maintenance Of Buildings,101,21/05/2018,1805-00601,0.00,181.21,R,Akua Uk Ltd,No
Http://opendatacommunities.org/id/metropolitan-district-council/leeds,Leeds City Council,31/05/2018,Resources and Housing,Commercial Services,Premises,Maintenance Of Buildings,101,21/05/2018,1805-00602,0.00,490.56,R,Akua Uk Ltd,No
Http://opendatacommunities.org/id/metropolitan-district-council/leeds,Leeds City Council,31/05/2018,Children and Families,Safeguarding Targeted & Specialist,Transfer Payments,Leaving Care Allowances,634,31/05/2018,1805-00603,0.00,50.00,R,REDACTED PERSONAL DATA,No
Http://opendatacommunities.org/id/metropolitan-district-council/leeds,Leeds City Council,31/05/2018,Resources and Housing,Human Resources  ,Supplies and Services,Conference Meetings,253,18/04/2018,1805-00604,0.00,60.00,R,Alan Brown Flowers,Yes
Http://opendatacommunities.org/id/metropolitan-district-council/leeds,Leeds City Council,31/05/2018,Children and Families,Learning Skills & Universal,Supplies and Services,Bought In Professional Services,277,25/05/2018,1805-00605,0.00,250.00,R,Alan Pergusey,No
Http://opendatacommunities.org/id/metropolitan-district-council/leeds,Leeds City Council,31/05/2018,Communities and Environment,Waste Management,Supplies and Services,Publication And Promotion,267,23/05/2018,1805-00606,0.00,30.00,R,REDACTED PERSONAL DATA,No
Http://opendatacommunities.org/id/metropolitan-district-council/leeds,Leeds City Council,31/05/2018,Communities and Environment,Communities,Supplies and Services,Other Hired And Contracted Services,265,15/05/2018,1805-00607,0.00,2300.00,R,Al-Bashir Academy Ltd,No
Http://opendatacommunities.org/id/metropolitan-district-council/leeds,Leeds City Council,31/05/2018,Resources and Housing,Commercial Services,Transport,Vehicle Spares,345,11/05/2018,1805-00608,0.00,79.51,R,Albert Jagger Limited,No
Http://opendatacommunities.org/id/metropolitan-district-council/leeds,Leeds City Council,31/05/2018,Communities and Environment,Communities,Supplies and Services,Other Hired And Contracted Services,265,31/05/2018,1805-00609,0.00,1075.00,R,Alcium Software Ltd,No
Http://opendatacommunities.org/id/metropolitan-district-council/leeds,Leeds City Council,31/05/2018,Resources and Housing,Leeds Building Services,Supplies and Services,Memberships,226,08/05/2018,1805-00610,0.00,5515.00,R,Alcumus Sypol Limited,No
Http://opendatacommunities.org/id/metropolitan-district-council/leeds,Leeds City Council,31/05/2018,Resources and Housing,Strategic Housing Partnership & Support  ,Supplies and Services,Other Hired And Contracted Services,265,25/04/2018,1805-00611,0.00,8.69,R,Aldi,Yes
Http://opendatacommunities.org/id/metropolitan-district-council/leeds,Leeds City Council,31/05/2018,Communities and Environment,Parks And Countryside  ,Supplies and Services,Food & Drink,231,29/03/2018,1805-00612,0.00,29.08,R,Aldi 103 779,Yes
Http://opendatacommunities.org/id/metropolitan-district-council/leeds,Leeds City Council,31/05/2018,City Development,Libraries  Arts & Heritage  ,Supplies and Services,Operational Materials,205,03/04/2018,1805-00613,0.00,13.36,R,Aldi 774 003,Yes
Http://opendatacommunities.org/id/metropolitan-district-council/leeds,Leeds City Council,31/05/2018,Children and Families,Partnerships  ,Premises,Cleaning Maintenance & Toiletries,127,09/04/2018,1805-00614,0.00,7.53,R,Aldi 85 779,Yes
Http://opendatacommunities.org/id/metropolitan-district-council/leeds,Leeds City Council,31/05/2018,Children and Families,Partnerships  ,Premises,Cleaning Maintenance & Toiletries,127,25/04/2018,1805-00615,0.00,2.75,R,Aldi 85 779,Yes
Http://opendatacommunities.org/id/metropolitan-district-council/leeds,Leeds City Council,31/05/2018,City Development,Libraries  Arts & Heritage  ,Supplies and Services,Food & Drink,231,13/04/2018,1805-00616,0.00,10.69,R,Aldi 89 779,Yes
Http://opendatacommunities.org/id/metropolitan-district-council/leeds,Leeds City Council,31/05/2018,Communities and Environment,Customer Access,Supplies and Services,Other Hired And Contracted Services,265,03/05/2018,1805-00617,0.00,204.60,R,Alena Zueva,No
Http://opendatacommunities.org/id/metropolitan-district-council/leeds,Leeds City Council,31/05/2018,Children and Families,Safeguarding Targeted & Specialist,Support Services,Legal Disbursements,411,25/05/2018,1805-00618,0.00,113.00,R,Alere Toxicology Plc,No
Http://opendatacommunities.org/id/metropolitan-district-council/leeds,Leeds City Council,31/05/2018,Communities and Environment,Waste Management,Supplies and Services,Publication And Promotion,267,08/05/2018,1805-00619,0.00,30.00,R,REDACTED PERSONAL DATA,No
Http://opendatacommunities.org/id/metropolitan-district-council/leeds,Leeds City Council,31/05/2018,Resources and Housing,Commercial Services,Transport,Vehicle Spares,345,03/05/2018,1805-00620,0.00,185.00,R,Alex Wagg,No
Http://opendatacommunities.org/id/metropolitan-district-council/leeds,Leeds City Council,31/05/2018,Resources and Housing,Commercial Services,Supplies and Services,Other Hired And Contracted Services,265,03/05/2018,1805-00621,0.00,80.00,R,Alex Wagg,No
Http://opendatacommunities.org/id/metropolitan-district-council/leeds,Leeds City Council,31/05/2018,Resources and Housing,Commercial Services,Supplies and Services,Other Hired And Contracted Services,265,03/05/2018,1805-00622,0.00,80.00,R,Alex Wagg,No
Http://opendatacommunities.org/id/metropolitan-district-council/leeds,Leeds City Council,31/05/2018,Resources and Housing,Commercial Services,Supplies and Services,Other Hired And Contracted Services,265,03/05/2018,1805-00623,0.00,60.00,R,Alex Wagg,No
Http://opendatacommunities.org/id/metropolitan-district-council/leeds,Leeds City Council,31/05/2018,Resources and Housing,Commercial Services,Supplies and Services,Other Hired And Contracted Services,265,03/05/2018,1805-00624,0.00,60.00,R,Alex Wagg,No
Http://opendatacommunities.org/id/metropolitan-district-council/leeds,Leeds City Council,31/05/2018,Resources and Housing,Commercial Services,Supplies and Services,Other Hired And Contracted Services,265,03/05/2018,1805-00625,0.00,100.00,R,Alex Wagg,No
Http://opendatacommunities.org/id/metropolitan-district-council/leeds,Leeds City Council,31/05/2018,Resources and Housing,Commercial Services,Supplies and Services,Other Hired And Contracted Services,265,03/05/2018,1805-00626,0.00,80.00,R,Alex Wagg,No
Http://opendatacommunities.org/id/metropolitan-district-council/leeds,Leeds City Council,31/05/2018,Resources and Housing,Commercial Services,Supplies and Services,Other Hired And Contracted Services,265,10/05/2018,1805-00627,0.00,80.00,R,Alex Wagg,No
Http://opendatacommunities.org/id/metropolitan-district-council/leeds,Leeds City Council,31/05/2018,Resources and Housing,Commercial Services,Supplies and Services,Other Hired And Contracted Services,265,10/05/2018,1805-00628,0.00,80.00,R,Alex Wagg,No
Http://opendatacommunities.org/id/metropolitan-district-council/leeds,Leeds City Council,31/05/2018,Resources and Housing,Commercial Services,Supplies and Services,Other Hired And Contracted Services,265,10/05/2018,1805-00629,0.00,1600.00,R,Alex Wagg,No
Http://opendatacommunities.org/id/metropolitan-district-council/leeds,Leeds City Council,31/05/2018,Resources and Housing,Commercial Services,Supplies and Services,Other Hired And Contracted Services,265,10/05/2018,1805-00630,0.00,100.00,R,Alex Wagg,No
Http://opendatacommunities.org/id/metropolitan-district-council/leeds,Leeds City Council,31/05/2018,Resources and Housing,Commercial Services,Supplies and Services,Other Hired And Contracted Services,265,10/05/2018,1805-00631,0.00,100.00,R,Alex Wagg,No
Http://opendatacommunities.org/id/metropolitan-district-council/leeds,Leeds City Council,31/05/2018,Resources and Housing,Commercial Services,Supplies and Services,Other Hired And Contracted Services,265,10/05/2018,1805-00632,0.00,40.00,R,Alex Wagg,No
Http://opendatacommunities.org/id/metropolitan-district-council/leeds,Leeds City Council,31/05/2018,Resources and Housing,Commercial Services,Supplies and Services,Other Hired And Contracted Services,265,10/05/2018,1805-00633,0.00,40.00,R,Alex Wagg,No
Http://opendatacommunities.org/id/metropolitan-district-council/leeds,Leeds City Council,31/05/2018,Resources and Housing,Commercial Services,Supplies and Services,Other Hired And Contracted Services,265,10/05/2018,1805-00634,0.00,40.00,R,Alex Wagg,No
Http://opendatacommunities.org/id/metropolitan-district-council/leeds,Leeds City Council,31/05/2018,Resources and Housing,Commercial Services,Supplies and Services,Other Hired And Contracted Services,265,10/05/2018,1805-00635,0.00,40.00,R,Alex Wagg,No
Http://opendatacommunities.org/id/metropolitan-district-council/leeds,Leeds City Council,31/05/2018,Resources and Housing,Commercial Services,Supplies and Services,Other Hired And Contracted Services,265,10/05/2018,1805-00636,0.00,50.00,R,Alex Wagg,No
Http://opendatacommunities.org/id/metropolitan-district-council/leeds,Leeds City Council,31/05/2018,Resources and Housing,Commercial Services,Supplies and Services,Other Hired And Contracted Services,265,17/05/2018,1805-00637,0.00,80.00,R,Alex Wagg,No
Http://opendatacommunities.org/id/metropolitan-district-council/leeds,Leeds City Council,31/05/2018,Resources and Housing,Commercial Services,Supplies and Services,Other Hired And Contracted Services,265,17/05/2018,1805-00638,0.00,120.00,R,Alex Wagg,No
Http://opendatacommunities.org/id/metropolitan-district-council/leeds,Leeds City Council,31/05/2018,Resources and Housing,Commercial Services,Supplies and Services,Other Hired And Contracted Services,265,17/05/2018,1805-00639,0.00,40.00,R,Alex Wagg,No
Http://opendatacommunities.org/id/metropolitan-district-council/leeds,Leeds City Council,31/05/2018,Resources and Housing,Commercial Services,Supplies and Services,Other Hired And Contracted Services,265,17/05/2018,1805-00640,0.00,60.00,R,Alex Wagg,No
Http://opendatacommunities.org/id/metropolitan-district-council/leeds,Leeds City Council,31/05/2018,Resources and Housing,Commercial Services,Supplies and Services,Other Hired And Contracted Services,265,17/05/2018,1805-00641,0.00,80.00,R,Alex Wagg,No
Http://opendatacommunities.org/id/metropolitan-district-council/leeds,Leeds City Council,31/05/2018,Resources and Housing,Commercial Services,Supplies and Services,Other Hired And Contracted Services,265,17/05/2018,1805-00642,0.00,40.00,R,Alex Wagg,No
Http://opendatacommunities.org/id/metropolitan-district-council/leeds,Leeds City Council,31/05/2018,Resources and Housing,Commercial Services,Supplies and Services,Other Hired And Contracted Services,265,17/05/2018,1805-00643,0.00,40.00,R,Alex Wagg,No
Http://opendatacommunities.org/id/metropolitan-district-council/leeds,Leeds City Council,31/05/2018,Resources and Housing,Commercial Services,Supplies and Services,Other Hired And Contracted Services,265,17/05/2018,1805-00644,0.00,100.00,R,Alex Wagg,No
Http://opendatacommunities.org/id/metropolitan-district-council/leeds,Leeds City Council,31/05/2018,Resources and Housing,Commercial Services,Supplies and Services,Other Hired And Contracted Services,265,24/05/2018,1805-00645,0.00,40.00,R,Alex Wagg,No
Http://opendatacommunities.org/id/metropolitan-district-council/leeds,Leeds City Council,31/05/2018,Resources and Housing,Commercial Services,Supplies and Services,Other Hired And Contracted Services,265,24/05/2018,1805-00646,0.00,40.00,R,Alex Wagg,No
Http://opendatacommunities.org/id/metropolitan-district-council/leeds,Leeds City Council,31/05/2018,Resources and Housing,Commercial Services,Supplies and Services,Other Hired And Contracted Services,265,24/05/2018,1805-00647,0.00,160.00,R,Alex Wagg,No
Http://opendatacommunities.org/id/metropolitan-district-council/leeds,Leeds City Council,31/05/2018,Resources and Housing,Commercial Services,Supplies and Services,Other Hired And Contracted Services,265,31/05/2018,1805-00648,0.00,50.00,R,Alex Wagg,No
Http://opendatacommunities.org/id/metropolitan-district-council/leeds,Leeds City Council,31/05/2018,Resources and Housing,Commercial Services,Supplies and Services,Other Hired And Contracted Services,265,31/05/2018,1805-00649,0.00,50.00,R,Alex Wagg,No
Http://opendatacommunities.org/id/metropolitan-district-council/leeds,Leeds City Council,31/05/2018,Resources and Housing,Commercial Services,Supplies and Services,Other Hired And Contracted Services,265,31/05/2018,1805-00650,0.00,40.00,R,Alex Wagg,No
Http://opendatacommunities.org/id/metropolitan-district-council/leeds,Leeds City Council,31/05/2018,Resources and Housing,Commercial Services,Supplies and Services,Other Hired And Contracted Services,265,31/05/2018,1805-00651,0.00,250.00,R,Alex Wagg,No
Http://opendatacommunities.org/id/metropolitan-district-council/leeds,Leeds City Council,31/05/2018,Resources and Housing,Commercial Services,Supplies and Services,Other Hired And Contracted Services,265,31/05/2018,1805-00652,0.00,250.00,R,Alex Wagg,No
Http://opendatacommunities.org/id/metropolitan-district-council/leeds,Leeds City Council,31/05/2018,Resources and Housing,Commercial Services,Supplies and Services,Other Hired And Contracted Services,265,31/05/2018,1805-00653,0.00,170.00,R,Alex Wagg,No
Http://opendatacommunities.org/id/metropolitan-district-council/leeds,Leeds City Council,31/05/2018,Adults and Health,Services For Older People - 65 And Over,Third Party Payments,Residential Care Dementia,571,02/05/2018,1805-00654,0.00,16110.98,R,Alexander Residential Home,No
Http://opendatacommunities.org/id/metropolitan-district-council/leeds,Leeds City Council,31/05/2018,Adults and Health,Services For Older People - 65 And Over,Third Party Payments,Residential,580,02/05/2018,1805-00655,0.00,19994.80,R,Alexander Residential Home,No
Http://opendatacommunities.org/id/metropolitan-district-council/leeds,Leeds City Council,31/05/2018,Adults and Health,Services For Older People - 65 And Over,Third Party Payments,Residential Care Dementia,571,30/05/2018,1805-00656,0.00,15880.29,R,Alexander Residential Home,No
Http://opendatacommunities.org/id/metropolitan-district-council/leeds,Leeds City Council,31/05/2018,Adults and Health,Services For Older People - 65 And Over,Third Party Payments,Residential,580,30/05/2018,1805-00657,0.00,21870.22,R,Alexander Residential Home,No
Http://opendatacommunities.org/id/metropolitan-district-council/leeds,Leeds City Council,31/05/2018,Communities and Environment,Customer Access,Supplies and Services,Other Hired And Contracted Services,265,03/05/2018,1805-00658,0.00,513.50,R,Alexandra Costenco,No
Http://opendatacommunities.org/id/metropolitan-district-council/leeds,Leeds City Council,31/05/2018,Adults and Health,Services For Older People - 65 And Over,Third Party Payments,Residential,580,02/05/2018,1805-00659,0.00,8080.84,R,Alexandra Court,No
Http://opendatacommunities.org/id/metropolitan-district-council/leeds,Leeds City Council,31/05/2018,Adults and Health,Services For Older People - 65 And Over,Third Party Payments,Residential,580,30/05/2018,1805-00660,0.00,8080.84,R,Alexandra Court,No
Http://opendatacommunities.org/id/metropolitan-district-council/leeds,Leeds City Council,31/05/2018,Communities and Environment,Customer Access,Supplies and Services,Other Hired And Contracted Services,265,03/05/2018,1805-00661,0.00,35.75,R,Alexandra Hirst,No
Http://opendatacommunities.org/id/metropolitan-district-council/leeds,Leeds City Council,31/05/2018,Resources and Housing,Corporate Property Management,Capital,Construction,3,03/05/2018,1805-00662,0.00,5175.00,C,Alfred Bagnall & Sons (Leeds) Ltd,No
Http://opendatacommunities.org/id/metropolitan-district-council/leeds,Leeds City Council,31/05/2018,Resources and Housing,Corporate Property Management,Capital,Construction,3,03/05/2018,1805-00663,0.00,3918.00,C,Alfred Bagnall & Sons (Leeds) Ltd,No
Http://opendatacommunities.org/id/metropolitan-district-council/leeds,Leeds City Council,31/05/2018,Resources and Housing,Leeds Building Services,Supplies and Services,Other Hired And Contracted Services,265,04/05/2018,1805-00664,0.00,800.00,R,Alfred Bagnall & Sons (Leeds) Ltd,No
Http://opendatacommunities.org/id/metropolitan-district-council/leeds,Leeds City Council,31/05/2018,Resources and Housing,Leeds Building Services,Supplies and Services,Other Hired And Contracted Services,265,18/05/2018,1805-00665,0.00,980.00,R,Alfred Bagnall & Sons (Leeds) Ltd,No
Http://opendatacommunities.org/id/metropolitan-district-council/leeds,Leeds City Council,31/05/2018,Resources and Housing,Leeds Building Services,Supplies and Services,Other Hired And Contracted Services,265,18/05/2018,1805-00666,0.00,390.00,R,Alfred Bagnall & Sons (Leeds) Ltd,No
Http://opendatacommunities.org/id/metropolitan-district-council/leeds,Leeds City Council,31/05/2018,Resources and Housing,Leeds Building Services,Supplies and Services,Other Hired And Contracted Services,265,18/05/2018,1805-00667,0.00,470.18,R,Alfred Bagnall & Sons (Leeds) Ltd,No
Http://opendatacommunities.org/id/metropolitan-district-council/leeds,Leeds City Council,31/05/2018,Resources and Housing,Leeds Building Services,Supplies and Services,Other Hired And Contracted Services,265,22/05/2018,1805-00668,0.00,4400.00,R,Alfred Bagnall & Sons (Leeds) Ltd,No
Http://opendatacommunities.org/id/metropolitan-district-council/leeds,Leeds City Council,31/05/2018,Resources and Housing,Leeds Building Services,Supplies and Services,Other Hired And Contracted Services,265,22/05/2018,1805-00669,0.00,1727.93,R,Alfred Bagnall & Sons (Leeds) Ltd,No
Http://opendatacommunities.org/id/metropolitan-district-council/leeds,Leeds City Council,31/05/2018,Resources and Housing,Corporate Property Management,Capital,Construction,3,24/05/2018,1805-00670,0.00,2590.00,C,Alfred Bagnall & Sons (Leeds) Ltd,No
Http://opendatacommunities.org/id/metropolitan-district-council/leeds,Leeds City Council,31/05/2018,Resources and Housing,Leeds Building Services,Supplies and Services,Other Hired And Contracted Services,265,24/05/2018,1805-00671,0.00,5000.00,R,Alfred Bagnall & Sons (Leeds) Ltd,No
Http://opendatacommunities.org/id/metropolitan-district-council/leeds,Leeds City Council,31/05/2018,Resources and Housing,Leeds Building Services,Supplies and Services,Other Hired And Contracted Services,265,25/05/2018,1805-00672,0.00,2200.00,R,Alfred Bagnall & Sons (Leeds) Ltd,No
Http://opendatacommunities.org/id/metropolitan-district-council/leeds,Leeds City Council,31/05/2018,City Development,Libraries  Arts & Heritage  ,Supplies and Services,Computer Software & Equipment,214,02/04/2018,1805-00673,0.00,448.18,R,Algolia Algolia Starte,Yes
Http://opendatacommunities.org/id/metropolitan-district-council/leeds,Leeds City Council,31/05/2018,Communities and Environment,Customer Access,Supplies and Services,Other Hired And Contracted Services,265,03/05/2018,1805-00674,0.00,483.55,R,Ali Pourakaberian,No
Http://opendatacommunities.org/id/metropolitan-district-council/leeds,Leeds City Council,31/05/2018,Children and Families,Partnerships,Employees,Training & Development,70,16/05/2018,1805-00675,0.00,1416.64,R,REDACTED PERSONAL DATA,No
Http://opendatacommunities.org/id/metropolitan-district-council/leeds,Leeds City Council,31/05/2018,Communities and Environment,Customer Access,Supplies and Services,Other Hired And Contracted Services,265,02/05/2018,1805-00676,0.00,1500.00,R,Alice Smith,No
Http://opendatacommunities.org/id/metropolitan-district-council/leeds,Leeds City Council,31/05/2018,City Development,Libraries  Arts & Heritage,Supplies and Services,Other Hired And Contracted Services,265,25/05/2018,1805-00677,0.00,350.00,R,Alison Glew,No
Http://opendatacommunities.org/id/metropolitan-district-council/leeds,Leeds City Council,31/05/2018,Children and Families,Safeguarding Targeted & Specialist,Transfer Payments,Leaving Care Allowances,634,25/05/2018,1805-00678,0.00,30.00,R,All Abode,No
Http://opendatacommunities.org/id/metropolitan-district-council/leeds,Leeds City Council,31/05/2018,Resources and Housing,Leeds Building Services,Supplies and Services,Other Hired And Contracted Services,265,09/05/2018,1805-00679,0.00,195.00,R,All Clear Solutions Ltd,No
Http://opendatacommunities.org/id/metropolitan-district-council/leeds,Leeds City Council,31/05/2018,Resources and Housing,Leeds Building Services,Supplies and Services,Other Hired And Contracted Services,265,14/05/2018,1805-00680,0.00,390.00,R,All Clear Solutions Ltd,No
Http://opendatacommunities.org/id/metropolitan-district-council/leeds,Leeds City Council,31/05/2018,Resources and Housing,Leeds Building Services,Supplies and Services,Other Hired And Contracted Services,265,14/05/2018,1805-00681,0.00,195.00,R,All Clear Solutions Ltd,No
Http://opendatacommunities.org/id/metropolitan-district-council/leeds,Leeds City Council,31/05/2018,Resources and Housing,Leeds Building Services,Supplies and Services,Other Hired And Contracted Services,265,14/05/2018,1805-00682,0.00,195.00,R,All Clear Solutions Ltd,No
Http://opendatacommunities.org/id/metropolitan-district-council/leeds,Leeds City Council,31/05/2018,Resources and Housing,Leeds Building Services,Supplies and Services,Other Hired And Contracted Services,265,14/05/2018,1805-00683,0.00,195.00,R,All Clear Solutions Ltd,No
Http://opendatacommunities.org/id/metropolitan-district-council/leeds,Leeds City Council,31/05/2018,Resources and Housing,Leeds Building Services,Supplies and Services,Other Hired And Contracted Services,265,18/05/2018,1805-00684,0.00,195.00,R,All Clear Solutions Ltd,No
Http://opendatacommunities.org/id/metropolitan-district-council/leeds,Leeds City Council,31/05/2018,Resources and Housing,Leeds Building Services,Supplies and Services,Other Hired And Contracted Services,265,18/05/2018,1805-00685,0.00,195.00,R,All Clear Solutions Ltd,No
Http://opendatacommunities.org/id/metropolitan-district-council/leeds,Leeds City Council,31/05/2018,Resources and Housing,Leeds Building Services,Supplies and Services,Other Hired And Contracted Services,265,18/05/2018,1805-00686,0.00,350.00,R,All Clear Solutions Ltd,No
Http://opendatacommunities.org/id/metropolitan-district-council/leeds,Leeds City Council,31/05/2018,Resources and Housing,Leeds Building Services,Supplies and Services,Other Hired And Contracted Services,265,25/05/2018,1805-00687,0.00,195.00,R,All Clear Solutions Ltd,No
Http://opendatacommunities.org/id/metropolitan-district-council/leeds,Leeds City Council,31/05/2018,Resources and Housing,Leeds Building Services,Supplies and Services,Other Hired And Contracted Services,265,25/05/2018,1805-00688,0.00,195.00,R,All Clear Solutions Ltd,No
Http://opendatacommunities.org/id/metropolitan-district-council/leeds,Leeds City Council,31/05/2018,Resources and Housing,Leeds Building Services,Supplies and Services,Other Hired And Contracted Services,265,25/05/2018,1805-00689,0.00,250.00,R,All Clear Solutions Ltd,No
Http://opendatacommunities.org/id/metropolitan-district-council/leeds,Leeds City Council,31/05/2018,Resources and Housing,Leeds Building Services,Supplies and Services,Other Hired And Contracted Services,265,25/05/2018,1805-00690,0.00,250.00,R,All Clear Solutions Ltd,No
Http://opendatacommunities.org/id/metropolitan-district-council/leeds,Leeds City Council,31/05/2018,Communities and Environment,Elections  Licensing and Registration,Premises,Rents,141,15/05/2018,1805-00691,0.00,370.00,R,All Saints Parish Church,No
Http://opendatacommunities.org/id/metropolitan-district-council/leeds,Leeds City Council,31/05/2018,Communities and Environment,Elections  Licensing and Registration,Premises,Rents,141,15/05/2018,1805-00692,0.00,250.00,R,All Souls Church General Account,No
Http://opendatacommunities.org/id/metropolitan-district-council/leeds,Leeds City Council,31/05/2018,Children and Families,Safeguarding Targeted & Specialist,Third Party Payments,Services Rendered By Voluntary Sector,505,21/05/2018,1805-00693,0.00,2873.68,R,All Stars Childcare,No
Http://opendatacommunities.org/id/metropolitan-district-council/leeds,Leeds City Council as Accountable Body,31/05/2018,Social Services Pooled Budgets,Jcs For People With Learning Disabilitie,Third Party Payments,Sheltered Accommodation,569,02/05/2018,1805-00694,0.00,13578.36,R,Allerton Avenue,No
Http://opendatacommunities.org/id/metropolitan-district-council/leeds,Leeds City Council as Accountable Body,31/05/2018,Social Services Pooled Budgets,Jcs For People With Learning Disabilitie,Third Party Payments,Sheltered Accommodation,569,30/05/2018,1805-00695,0.00,13578.36,R,Allerton Avenue,No
Http://opendatacommunities.org/id/metropolitan-district-council/leeds,Leeds City Council,31/05/2018,Communities and Environment,Parks and Countryside,Supplies and Services,Non-Recurring Grants,227,10/05/2018,1805-00696,0.00,1000.00,R,Allerton Bywater Parish Council,No
Http://opendatacommunities.org/id/metropolitan-district-council/leeds,Leeds City Council,31/05/2018,Resources and Housing,Finance,Supplies and Services,Bank Charges,263,01/05/2018,1805-00697,0.00,-113.11,R,Alliance & Leicester Commercial Bank,No
Http://opendatacommunities.org/id/metropolitan-district-council/leeds,Leeds City Council,31/05/2018,Resources and Housing,Finance,Supplies and Services,Bank Charges,263,04/05/2018,1805-00698,0.00,525.63,R,Alliance & Leicester Commercial Bank,No
Http://opendatacommunities.org/id/metropolitan-district-council/leeds,Leeds City Council,31/05/2018,Resources and Housing,Finance,Supplies and Services,Bank Charges,263,04/05/2018,1805-00699,0.00,100.00,R,Alliance & Leicester Commercial Bank,No
Http://opendatacommunities.org/id/metropolitan-district-council/leeds,Leeds City Council,31/05/2018,Resources and Housing,Shared Services,Supplies and Services,Licences,266,15/05/2018,1805-00700,0.00,-99.46,R,Alliance Disposables Ltd,No
Http://opendatacommunities.org/id/metropolitan-district-council/leeds,Leeds City Council,31/05/2018,City Development,Highways,Capital,Other Costs,7,09/05/2018,1805-00701,0.00,63.80,C,Allied Exploration & Geotechnics Ltd,No
Http://opendatacommunities.org/id/metropolitan-district-council/leeds,Leeds City Council,31/05/2018,City Development,Highways,Supplies and Services,Other Hired And Contracted Services,265,17/05/2018,1805-00702,0.00,923.20,R,Allied Exploration & Geotechnics Ltd,No
Http://opendatacommunities.org/id/metropolitan-district-council/leeds,Leeds City Council,31/05/2018,City Development,Asset Management,Capital,Other Costs,7,22/05/2018,1805-00703,0.00,4042.00,C,Allied Exploration & Geotechnics Ltd,No
Http://opendatacommunities.org/id/metropolitan-district-council/leeds,Leeds City Council,31/05/2018,City Development,Highways,Supplies and Services,Other Hired And Contracted Services,265,23/05/2018,1805-00704,0.00,3531.00,R,Allied Exploration & Geotechnics Ltd,No
Http://opendatacommunities.org/id/metropolitan-district-council/leeds,Leeds City Council,31/05/2018,City Development,Highways,Supplies and Services,Other Hired And Contracted Services,265,23/05/2018,1805-00705,0.00,874.80,R,Allied Exploration & Geotechnics Ltd,No
Http://opendatacommunities.org/id/metropolitan-district-council/leeds,Leeds City Council,31/05/2018,City Development,Highways,Supplies and Services,Other Hired And Contracted Services,265,23/05/2018,1805-00706,0.00,650.00,R,Allied Exploration & Geotechnics Ltd,No
Http://opendatacommunities.org/id/metropolitan-district-council/leeds,Leeds City Council,31/05/2018,City Development,Highways,Supplies and Services,Other Hired And Contracted Services,265,29/05/2018,1805-00707,0.00,875.00,R,Allied Exploration & Geotechnics Ltd,No
Http://opendatacommunities.org/id/metropolitan-district-council/leeds,Leeds City Council as Accountable Body,31/05/2018,Social Services Pooled Budgets,Jcs For People With Learning Disabilitie,Third Party Payments,Home Care,568,04/05/2018,1805-00708,0.00,15713.24,R,Allied Healthcare,No
Http://opendatacommunities.org/id/metropolitan-district-council/leeds,Leeds City Council,31/05/2018,Adults and Health,Services For Older People - 65 And Over,Third Party Payments,Home Care,568,11/05/2018,1805-00709,0.00,1003.53,R,Allied Healthcare,No
Http://opendatacommunities.org/id/metropolitan-district-council/leeds,Leeds City Council,31/05/2018,Adults and Health,Services For Older People - 65 And Over,Third Party Payments,Home Care,568,11/05/2018,1805-00710,0.00,1062.09,R,Allied Healthcare,No
Http://opendatacommunities.org/id/metropolitan-district-council/leeds,Leeds City Council,31/05/2018,Adults and Health,Services For Older People - 65 And Over,Third Party Payments,Home Care,568,11/05/2018,1805-00711,0.00,10515.37,R,Allied Healthcare,No
Http://opendatacommunities.org/id/metropolitan-district-council/leeds,Leeds City Council,31/05/2018,Adults and Health,Services For Older People Under 65 P/Dis,Third Party Payments,Home Care,568,11/05/2018,1805-00712,0.00,1507.74,R,Allied Healthcare,No
Http://opendatacommunities.org/id/metropolitan-district-council/leeds,Leeds City Council,31/05/2018,Adults and Health,Services For Older People - 65 And Over,Third Party Payments,Home Care,568,11/05/2018,1805-00713,0.00,10024.29,R,Allied Healthcare,No
Http://opendatacommunities.org/id/metropolitan-district-council/leeds,Leeds City Council,31/05/2018,Adults and Health,Services For Older People Under 65 P/Dis,Third Party Payments,Home Care,568,11/05/2018,1805-00714,0.00,1766.66,R,Allied Healthcare,No
Http://opendatacommunities.org/id/metropolitan-district-council/leeds,Leeds City Council,31/05/2018,Adults and Health,Services For Older People - 65 And Over,Third Party Payments,Home Care,568,11/05/2018,1805-00715,0.00,9105.48,R,Allied Healthcare,No
Http://opendatacommunities.org/id/metropolitan-district-council/leeds,Leeds City Council,31/05/2018,Adults and Health,Services For Older People Under 65 P/Dis,Third Party Payments,Home Care,568,11/05/2018,1805-00716,0.00,11826.21,R,Allied Healthcare,No
Http://opendatacommunities.org/id/metropolitan-district-council/leeds,Leeds City Council as Accountable Body,31/05/2018,Social Services Pooled Budgets,Jcs For People With Learning Disabilitie,Third Party Payments,Home Care,568,16/05/2018,1805-00717,0.00,14769.96,R,Allied Healthcare,No
Http://opendatacommunities.org/id/metropolitan-district-council/leeds,Leeds City Council as Accountable Body,31/05/2018,Social Services Pooled Budgets,Jcs For People With Learning Disabilitie,Third Party Payments,Home Care,568,16/05/2018,1805-00718,0.00,82.88,R,Allied Healthcare,No
Http://opendatacommunities.org/id/metropolitan-district-council/leeds,Leeds City Council as Accountable Body,31/05/2018,Social Services Pooled Budgets,Jcs For People With Learning Disabilitie,Third Party Payments,Home Care,568,16/05/2018,1805-00719,0.00,799.51,R,Allied Healthcare,No
Http://opendatacommunities.org/id/metropolitan-district-council/leeds,Leeds City Council as Accountable Body,31/05/2018,Social Services Pooled Budgets,Jcs For People With Learning Disabilitie,Third Party Payments,Home Care,568,16/05/2018,1805-00720,0.00,233.53,R,Allied Healthcare,No
Http://opendatacommunities.org/id/metropolitan-district-council/leeds,Leeds City Council as Accountable Body,31/05/2018,Social Services Pooled Budgets,Jcs For People With Learning Disabilitie,Third Party Payments,Home Care,568,16/05/2018,1805-00721,0.00,13580.00,R,Allied Healthcare,No
Http://opendatacommunities.org/id/metropolitan-district-council/leeds,Leeds City Council,31/05/2018,Adults and Health,Other Generic Services,Third Party Payments,Home Care,568,17/05/2018,1805-00722,0.00,16254.75,R,Allied Healthcare,No
Http://opendatacommunities.org/id/metropolitan-district-council/leeds,Leeds City Council,31/05/2018,Adults and Health,Other Generic Services,Third Party Payments,Home Care,568,17/05/2018,1805-00723,0.00,6220.53,R,Allied Healthcare,No
Http://opendatacommunities.org/id/metropolitan-district-council/leeds,Leeds City Council as Accountable Body,31/05/2018,Social Services Pooled Budgets,Jcs For People With Learning Disabilitie,Third Party Payments,Home Care,568,24/05/2018,1805-00724,0.00,17066.91,R,Allied Healthcare,No
Http://opendatacommunities.org/id/metropolitan-district-council/leeds,Leeds City Council,31/05/2018,Children and Families,Partnerships,Third Party Payments,Services Rendered By Voluntary Sector,505,25/05/2018,1805-00725,0.00,598.50,R,Allied Healthcare,No
Http://opendatacommunities.org/id/metropolitan-district-council/leeds,Leeds City Council,31/05/2018,Resources and Housing,Finance,Supplies and Services,Bank Charges,263,03/05/2018,1805-00726,0.00,6089.14,R,Allpay Limted,No
Http://opendatacommunities.org/id/metropolitan-district-council/leeds,Leeds City Council,31/05/2018,Resources and Housing,Finance,Supplies and Services,Bank Charges,263,03/05/2018,1805-00727,0.00,5750.85,R,Allpay Limted,No
Http://opendatacommunities.org/id/metropolitan-district-council/leeds,Leeds City Council,31/05/2018,Resources and Housing,Finance,Supplies and Services,Bank Charges,263,03/05/2018,1805-00728,0.00,356.84,R,Allpay Limted,No
Http://opendatacommunities.org/id/metropolitan-district-council/leeds,Leeds City Council,31/05/2018,Resources and Housing,Finance,Supplies and Services,Bank Charges,263,03/05/2018,1805-00729,0.00,2656.12,R,Allpay Limted,No
Http://opendatacommunities.org/id/metropolitan-district-council/leeds,Leeds City Council,31/05/2018,Resources and Housing,Finance,Supplies and Services,Bank Charges,263,03/05/2018,1805-00730,0.00,6.60,R,Allpay Limted,No
Http://opendatacommunities.org/id/metropolitan-district-council/leeds,Leeds City Council,31/05/2018,Resources and Housing,Finance,Supplies and Services,Bank Charges,263,03/05/2018,1805-00731,0.00,108.70,R,Allpay Limted,No
Http://opendatacommunities.org/id/metropolitan-district-council/leeds,Leeds City Council,31/05/2018,Strategic Landlord,Housing Management,Supplies and Services,Other Hired And Contracted Services,265,04/05/2018,1805-00732,0.00,393.71,R,Allpay Limted,No
Http://opendatacommunities.org/id/metropolitan-district-council/leeds,Leeds City Council,31/05/2018,Strategic Landlord,Housing Management,Supplies and Services,Other Hired And Contracted Services,265,04/05/2018,1805-00733,0.00,0.15,R,Allpay Limted,No
Http://opendatacommunities.org/id/metropolitan-district-council/leeds,Leeds City Council,31/05/2018,Strategic Landlord,Housing Management,Supplies and Services,Other Hired And Contracted Services,265,04/05/2018,1805-00734,0.00,14.61,R,Allpay Limted,No
Http://opendatacommunities.org/id/metropolitan-district-council/leeds,Leeds City Council,31/05/2018,Resources and Housing,Strategic Housing Partnership & Support  ,Supplies and Services,Other Hired And Contracted Services,265,05/04/2018,1805-00735,0.00,25.00,R,Allpay Moto (Callpay/I,Yes
Http://opendatacommunities.org/id/metropolitan-district-council/leeds,Leeds City Council,31/05/2018,Resources and Housing,Strategic Housing Partnership & Support  ,Supplies and Services,Other Hired And Contracted Services,265,16/04/2018,1805-00736,0.00,30.00,R,Allpay Moto (Callpay/I,Yes
Http://opendatacommunities.org/id/metropolitan-district-council/leeds,Leeds City Council,31/05/2018,Children and Families,Safeguarding Targeted & Specialist  ,Transfer Payments,Leaving Care Allowances,634,24/04/2018,1805-00737,0.00,176.74,R,Allpay Moto (Callpay/I,Yes
Http://opendatacommunities.org/id/metropolitan-district-council/leeds,Leeds City Council,31/05/2018,Resources and Housing,Democratic Services,Transport,Fuel (Non LCC Supplies),321,08/05/2018,1805-00738,0.00,134.17,R,Allstar Business Solutions Ltd,No
Http://opendatacommunities.org/id/metropolitan-district-council/leeds,Leeds City Council,31/05/2018,Children and Families,Learning Skills & Universal,Transport,Fuel (Non LCC Supplies),321,08/05/2018,1805-00739,0.00,944.91,R,Allstar Business Solutions Ltd,No
Http://opendatacommunities.org/id/metropolitan-district-council/leeds,Leeds City Council,31/05/2018,Communities and Environment,Parks and Countryside,Transport,Fuel (Non LCC Supplies),321,08/05/2018,1805-00740,0.00,223.09,R,Allstar Business Solutions Ltd,No
Http://opendatacommunities.org/id/metropolitan-district-council/leeds,Leeds City Council,31/05/2018,City Development,Highways,Transport,Fuel (Non LCC Supplies),321,08/05/2018,1805-00741,0.00,347.72,R,Allstar Business Solutions Ltd,No
Http://opendatacommunities.org/id/metropolitan-district-council/leeds,Leeds City Council,31/05/2018,Resources and Housing,Leeds Building Services,Transport,Fuel (Non LCC Supplies),321,14/05/2018,1805-00742,0.00,51.78,R,Allstar Business Solutions Ltd,No
Http://opendatacommunities.org/id/metropolitan-district-council/leeds,Leeds City Council,31/05/2018,Resources and Housing,Leeds Building Services,Transport,Fuel (Non LCC Supplies),321,29/05/2018,1805-00743,0.00,31.45,R,Allstar Business Solutions Ltd,No
Http://opendatacommunities.org/id/metropolitan-district-council/leeds,Leeds City Council,31/05/2018,Children and Families,Safeguarding Targeted & Specialist,Support Services,Legal Disbursements,411,04/05/2018,1805-00744,0.00,300.00,R,Alphabiolabs,No
Http://opendatacommunities.org/id/metropolitan-district-council/leeds,Leeds City Council,31/05/2018,Children and Families,Safeguarding Targeted & Specialist,Support Services,Legal Disbursements,411,04/05/2018,1805-00745,0.00,47.50,R,Alphabiolabs,No
Http://opendatacommunities.org/id/metropolitan-district-council/leeds,Leeds City Council,31/05/2018,Children and Families,Safeguarding Targeted & Specialist,Support Services,Legal Disbursements,411,04/05/2018,1805-00746,0.00,133.01,R,Alphabiolabs,No
Http://opendatacommunities.org/id/metropolitan-district-council/leeds,Leeds City Council,31/05/2018,Children and Families,Safeguarding Targeted & Specialist,Support Services,Legal Disbursements,411,10/05/2018,1805-00747,0.00,99.75,R,Alphabiolabs,No
Http://opendatacommunities.org/id/metropolitan-district-council/leeds,Leeds City Council,31/05/2018,Children and Families,Safeguarding Targeted & Specialist,Support Services,Legal Disbursements,411,11/05/2018,1805-00748,0.00,115.00,R,Alphabiolabs,No
Http://opendatacommunities.org/id/metropolitan-district-council/leeds,Leeds City Council,31/05/2018,Children and Families,Safeguarding Targeted & Specialist,Support Services,Legal Disbursements,411,16/05/2018,1805-00749,0.00,105.00,R,Alphabiolabs,No
Http://opendatacommunities.org/id/metropolitan-district-council/leeds,Leeds City Council,31/05/2018,Children and Families,Safeguarding Targeted & Specialist,Support Services,Legal Disbursements,411,16/05/2018,1805-00750,0.00,21.00,R,Alphabiolabs,No
Http://opendatacommunities.org/id/metropolitan-district-council/leeds,Leeds City Council,31/05/2018,Children and Families,Safeguarding Targeted & Specialist,Support Services,Legal Disbursements,411,16/05/2018,1805-00751,0.00,115.00,R,Alphabiolabs,No
Http://opendatacommunities.org/id/metropolitan-district-council/leeds,Leeds City Council,31/05/2018,Children and Families,Safeguarding Targeted & Specialist,Support Services,Legal Disbursements,411,16/05/2018,1805-00752,0.00,425.00,R,Alphabiolabs,No
Http://opendatacommunities.org/id/metropolitan-district-council/leeds,Leeds City Council,31/05/2018,Children and Families,Safeguarding Targeted & Specialist,Support Services,Legal Disbursements,411,22/05/2018,1805-00753,0.00,430.00,R,Alphabiolabs,No
Http://opendatacommunities.org/id/metropolitan-district-council/leeds,Leeds City Council,31/05/2018,Children and Families,Safeguarding Targeted & Specialist,Support Services,Legal Disbursements,411,24/05/2018,1805-00754,0.00,105.00,R,Alphabiolabs,No
Http://opendatacommunities.org/id/metropolitan-district-council/leeds,Leeds City Council,31/05/2018,Children and Families,Safeguarding Targeted & Specialist,Support Services,Legal Disbursements,411,24/05/2018,1805-00755,0.00,179.67,R,Alphabiolabs,No
Http://opendatacommunities.org/id/metropolitan-district-council/leeds,Leeds City Council,31/05/2018,Communities and Environment,Waste Management,Supplies and Services,Other Hired And Contracted Services,265,11/05/2018,1805-00756,0.00,186.00,R,Als Life Sciences Limited,No
Http://opendatacommunities.org/id/metropolitan-district-council/leeds,Leeds City Council,31/05/2018,Children and Families,Safeguarding Targeted & Specialist  ,Supplies and Services,General Amenity For Clients/Residents,285,04/04/2018,1805-00757,0.00,85.83,R,Alton Towers,Yes
Http://opendatacommunities.org/id/metropolitan-district-council/leeds,Leeds City Council,31/05/2018,Children and Families,Safeguarding Targeted & Specialist  ,Supplies and Services,General Amenity For Clients/Residents,285,04/04/2018,1805-00758,0.00,43.04,R,Alton Towers,Yes
Http://opendatacommunities.org/id/metropolitan-district-council/leeds,Leeds City Council,31/05/2018,Communities and Environment,Elections  Licensing and Registration,Premises,Rents,141,14/05/2018,1805-00759,0.00,260.00,R,Alwoodley Community Association,No
Http://opendatacommunities.org/id/metropolitan-district-council/leeds,Leeds City Council,31/05/2018,Children and Families,Safeguarding Targeted & Specialist,Third Party Payments,Services Rendered By Other Organisations,511,18/05/2018,1805-00760,0.00,1326.00,R,REDACTED PERSONAL DATA,No
